Service Delivery Area(T),Service Delivery Team(T),ExpenditureGroup(T),Account(T),Supplier Name(T),Trans Date,Amount
Adult Social Care,ASC Directorate,Supplies & Services,Other Grants (Expenses),ACCORD HOUSING ASSOCIATION LTD ,04/06/2021,2000
Adult Social Care,ASC Directorate,Supplies & Services,Other Grants (Expenses),ACCORD HOUSING ASSOCIATION LTD ,04/06/2021,2000
Adult Social Care,ASC Directorate,Supplies & Services,Other Grants (Expenses),BETHPHAGE,04/06/2021,2000
Adult Social Care,ASC Directorate,Supplies & Services,Other Grants (Expenses),COVERAGE CARE SERVICES LTD,04/06/2021,2000
Adult Social Care,ASC Directorate,Supplies & Services,Other Grants (Expenses),COVERAGE CARE SERVICES LTD,04/06/2021,2000
Adult Social Care,ASC Directorate,Supplies & Services,Other Grants (Expenses),COVERAGE CARE SERVICES LTD,04/06/2021,2000
Adult Social Care,ASC Directorate,Supplies & Services,Other Grants (Expenses),Rose Manor Extra Care,04/06/2021,2000
Adult Social Care,ASC Directorate,Supplies & Services,Other Grants (Expenses),YMCA,04/06/2021,1000
Adult Social Care,ASC Directorate,Supplies & Services,Other Grants (Expenses),Swanton Care & Community Ltd,04/06/2021,2000
Adult Social Care,ASC Directorate,Supplies & Services,Other Grants (Expenses),COMPLETE CARE HOLDINGS LTD,04/06/2021,2000
Adult Social Care,ASC Directorate,Supplies & Services,Other Grants (Expenses),Sentinel Care Services,04/06/2021,2000
Adult Social Care,ASC Directorate,Supplies & Services,Other Grants (Expenses),CREATIVE SUPPORT LTD,04/06/2021,2000
Adult Social Care,ASC Directorate,Supplies & Services,Other Grants (Expenses),CREATIVE SUPPORT LTD,04/06/2021,2000
Adult Social Care,ASC Directorate,Supplies & Services,Other Grants (Expenses),NEWPORT COTTAGE CARE CENTRE,04/06/2021,2000
Adult Social Care,ASC Directorate,Supplies & Services,Other Grants (Expenses),PHOENIX CARE,04/06/2021,2000
Adult Social Care,ASC Directorate,Supplies & Services,Other Grants (Expenses),PARADIGM HEALTH & SOCIAL CARE LTD,04/06/2021,2000
Adult Social Care,ASC Directorate,Supplies & Services,Other Grants (Expenses),PEACE OF MIND HOMECARE LIMITED,04/06/2021,2000
Adult Social Care,ASC Directorate,Supplies & Services,Other Grants (Expenses),STAY TELFORD XC SUPPORTED HOUSE,04/06/2021,1000
Adult Social Care,ASC Directorate,Supplies & Services,Other Grants (Expenses),SENIOR CITIZENS FORUM,04/06/2021,1000
Adult Social Care,ASC Directorate,Supplies & Services,Other Grants (Expenses),SUPREME HOME CARE,04/06/2021,2000
Adult Social Care,ASC Directorate,Supplies & Services,Other Grants (Expenses),TELFORD & WREKIN CVS,04/06/2021,1000
Adult Social Care,ASC Directorate,Supplies & Services,Other Grants (Expenses),TAKING PART,04/06/2021,1000
Adult Social Care,ASC Directorate,Supplies & Services,Other Grants (Expenses),WE ARE THE CARE COMPANY LTD,04/06/2021,2000
Adult Social Care,ASC Directorate,Supplies & Services,Other Grants (Expenses),Home Instead,04/06/2021,2000
Adult Social Care,ASC Directorate,Supplies & Services,Other Grants (Expenses),THE CARE BUREAU,04/06/2021,2000
Adult Social Care,ASC Directorate,Supplies & Services,Other Grants (Expenses),Brockton Care LTD,04/06/2021,2000
Adult Social Care,ASC Directorate,Supplies & Services,Other Grants (Expenses),Letter shanner,04/06/2021,2000
Adult Social Care,ASC Directorate,Supplies & Services,Other Grants (Expenses),Sanctuary Home Care ,04/06/2021,2000
Adult Social Care,ASC Directorate,Supplies & Services,Other Grants (Expenses),Helping Hands Domiciliary Care Services,04/06/2021,2000
Adult Social Care,ASC Directorate,Supplies & Services,Other Grants (Expenses),Oleander House - Sanctuary Housing,04/06/2021,2000
Adult Social Care,ASC Directorate,Supplies & Services,Other Grants (Expenses),Empowering U Care Ltd,04/06/2021,2000
Adult Social Care,ASC Directorate,Supplies & Services,Other Grants (Expenses),Rotherwood Healthcare (Roden Hall) Ltd,04/06/2021,2000
Adult Social Care,ASC Directorate,Supplies & Services,Other Grants (Expenses),Daily Care 4 U,04/06/2021,2000
Adult Social Care,ASC Directorate,Supplies & Services,Other Grants (Expenses),Inspire (Acorn House),04/06/2021,2000
Adult Social Care,ASC Directorate,Supplies & Services,Other Grants (Expenses),Inspire (Acorn House),04/06/2021,2000
Adult Social Care,ASC Directorate,Supplies & Services,Other Grants (Expenses),Inspire (Acorn House),04/06/2021,2000
Adult Social Care,ASC Directorate,Supplies & Services,Other Grants (Expenses),M T Support Ltd,04/06/2021,2000
Adult Social Care,ASC Directorate,Supplies & Services,Other Grants (Expenses),Nutrix Curae Care Ltd,04/06/2021,2000
Adult Social Care,ASC Directorate,Supplies & Services,Other Grants (Expenses),Hands On Care Homecare Services Ltd,04/06/2021,2000
Adult Social Care,ASC Directorate,Supplies & Services,Other Grants (Expenses),Aldersey House CIC,04/06/2021,2000
Adult Social Care,ASC Directorate,Supplies & Services,Other Grants (Expenses),THE QUIL CARE GROUP,04/06/2021,2000
Adult Social Care,ASC Directorate,Supplies & Services,Other Grants (Expenses),Wl Support Services,04/06/2021,2000
Adult Social Care,ASC Directorate,Supplies & Services,Other Grants (Expenses),Willow Home Care Ltd,04/06/2021,2000
Adult Social Care,ASC Directorate,Supplies & Services,Other Grants (Expenses),Komplex Care Limited,04/06/2021,2000
Adult Social Care,ASC Directorate,Supplies & Services,Other Grants (Expenses),Kensington Community Care (Gloucester) Ltd,04/06/2021,2000
Adult Social Care,ASC Directorate,Supplies & Services,Other Grants (Expenses),Beaumaris Healthcare Ltd,04/06/2021,2000
Adult Social Care,ASC Directorate,Supplies & Services,Other Grants (Expenses),AGE UK SHROPSHIRE TELFORD & WREKIN,04/06/2021,1000
Adult Social Care,ASC Directorate,Supplies & Services,Other Grants (Expenses),Sutton Hill Community Trust,04/06/2021,1000
Adult Social Care,ASC Directorate,Supplies & Services,Other Grants (Expenses),TACT,04/06/2021,1000
Adult Social Care,ASC Prevention & Enablement,Employees,Course Fees,Promoting Independence LTD,18/06/2021,249
Adult Social Care,ASC Prevention & Enablement,Employees,Employee Costs Recharged,SHROPSHIRE COMMUNITY HEALTH NHS TRUST,18/06/2021,19662
Adult Social Care,ASC Prevention & Enablement,Supplies & Services,Aids & Appliances,Easylink,04/06/2021,125.1
Adult Social Care,ASC Prevention & Enablement,Supplies & Services,Aids & Appliances,Easylink,14/06/2021,123.58
Adult Social Care,ASC Prevention & Enablement,Supplies & Services,Aids & Appliances,Easylink,07/06/2021,533.16
Adult Social Care,ASC Prevention & Enablement,Supplies & Services,Aids & Appliances,SHROPSHIRE COMMUNITY HEALTH NHS TRUST,04/06/2021,6301.66
Adult Social Care,ASC Prevention & Enablement,Supplies & Services,Aids & Appliances,SHROPSHIRE COMMUNITY HEALTH NHS TRUST,18/06/2021,6301.66
Adult Social Care,ASC Prevention & Enablement,Supplies & Services,Aids & Appliances, Nottingham Rehab Ltd,04/06/2021,115.65
Adult Social Care,ASC Prevention & Enablement,Supplies & Services,Aids & Appliances, Nottingham Rehab Ltd,25/06/2021,104.7
Adult Social Care,ASC Prevention & Enablement,Supplies & Services,Aids & Appliances,OSPREY HEALTHCARE LTD,04/06/2021,840
Adult Social Care,ASC Prevention & Enablement,Supplies & Services,Aids & Appliances,SARABEC LIMITED,09/06/2021,224.58
Adult Social Care,ASC Prevention & Enablement,Supplies & Services,Aids & Appliances,SARABEC LIMITED,01/06/2021,304.71
Adult Social Care,ASC Prevention & Enablement,Supplies & Services,Aids & Appliances,THE WREKIN HOUSING TRUST ,14/06/2021,199.08
Adult Social Care,ASC Prevention & Enablement,Supplies & Services,Aids & Appliances,THE WREKIN HOUSING TRUST ,14/06/2021,278.85
Adult Social Care,ASC Prevention & Enablement,Supplies & Services,Aids & Appliances,THE WREKIN HOUSING TRUST ,14/06/2021,223.08
Adult Social Care,ASC Prevention & Enablement,Supplies & Services,Aids & Appliances,THE WREKIN HOUSING TRUST ,14/06/2021,199.08
Adult Social Care,ASC Prevention & Enablement,Supplies & Services,Aids & Appliances,WREKIN HOUSING TRUST (SUBSIDIARY) LTD,14/06/2021,125
Adult Social Care,ASC Prevention & Enablement,Supplies & Services,Aids & Appliances,WREKIN HOUSING TRUST (SUBSIDIARY) LTD,14/06/2021,125
Adult Social Care,ASC Prevention & Enablement,Supplies & Services,Aids & Appliances,WREKIN HOUSING TRUST (SUBSIDIARY) LTD,14/06/2021,125
Adult Social Care,ASC Prevention & Enablement,Supplies & Services,Aids & Appliances,WREKIN HOUSING TRUST (SUBSIDIARY) LTD,14/06/2021,125
Adult Social Care,ASC Prevention & Enablement,Supplies & Services,Aids & Appliances,WREKIN HOUSING TRUST (SUBSIDIARY) LTD,14/06/2021,125
Adult Social Care,ASC Prevention & Enablement,Supplies & Services,Aids & Appliances,WREKIN HOUSING TRUST (SUBSIDIARY) LTD,14/06/2021,125
Adult Social Care,ASC Prevention & Enablement,Supplies & Services,Aids & Appliances,1st Call Mobility,22/06/2021,240
Adult Social Care,ASC Prevention & Enablement,Supplies & Services,Aids & Appliances,Chanter Biomed Ltd,18/06/2021,485.22
Adult Social Care,ASC Prevention & Enablement,Supplies & Services,Aids & Appliances,Oysta technology Ltd,22/06/2021,252.37
Adult Social Care,ASC Prevention & Enablement,Supplies & Services,Aids & Appliances,Direct Healthcare Group Limited,25/06/2021,235
Adult Social Care,ASC Prevention & Enablement,Supplies & Services,Equipment - Repair,Closomat Limited,18/06/2021,190
Adult Social Care,ASC Prevention & Enablement,Supplies & Services,Equipment - Repair,Closomat Limited,18/06/2021,190
Adult Social Care,ASC Prevention & Enablement,Supplies & Services,Medical Consultants Fees,TEC Services Association C.I.C,29/06/2021,420
Adult Social Care,ASC Prevention & Enablement,Supplies & Services,Other Services,VISS LTD,14/06/2021,115
Adult Social Care,ASC Prevention & Enablement,Third Party Payments,Homecare Expenditure,Serenity Always Healthcare,14/06/2021,402.96
Adult Social Care,ASC Prevention & Enablement,Third Party Payments,Homecare Expenditure,Serenity Always Healthcare,14/06/2021,673.32
Adult Social Care,ASC Prevention & Enablement,Third Party Payments,Homecare Expenditure,Serenity Always Healthcare,14/06/2021,192.72
Adult Social Care,ASC Prevention & Enablement,Third Party Payments,Homecare Expenditure,Serenity Always Healthcare,14/06/2021,106.96
Adult Social Care,ASC Prevention & Enablement,Third Party Payments,Nursing Expenditure,"NHS Shropshire, Telford and Wrekin CCG",18/06/2021,7200
Adult Social Care,Community Social Work & Adult Safeguarding,Premises-Related Expenditure,Bed & Breakfast Charges,OPH Telford Ltd,23/06/2021,1414.29
Adult Social Care,Community Social Work & Adult Safeguarding,Premises-Related Expenditure,General Rents,BOURNVILLE VILLAGE TRUST,29/06/2021,12764.88
Adult Social Care,Community Social Work & Adult Safeguarding,Supplies & Services,Legal Expenses,39 Essex Chambers,11/06/2021,1250
Adult Social Care,Community Social Work & Adult Safeguarding,Supplies & Services,Medical Consultants Fees,REDACTED PERSONAL INFORMATION,07/06/2021,196.84
Adult Social Care,Community Social Work & Adult Safeguarding,Supplies & Services,Medical Consultants Fees,REDACTED PERSONAL INFORMATION,01/06/2021,196.84
Adult Social Care,Community Social Work & Adult Safeguarding,Supplies & Services,Medical Consultants Fees,REDACTED PERSONAL INFORMATION,01/06/2021,1997.5
Adult Social Care,Community Social Work & Adult Safeguarding,Supplies & Services,Medical Consultants Fees,REDACTED PERSONAL INFORMATION,04/06/2021,288.33
Adult Social Care,Community Social Work & Adult Safeguarding,Supplies & Services,Other Grants (Expenses),VoiceAbility,11/06/2021,6625
Adult Social Care,Community Social Work & Adult Safeguarding,Transport-Related Expenditure,Taxi Costs,Cartello Ambulance,11/06/2021,147
Adult Social Care,Community Social Work & Adult Safeguarding,Transport-Related Expenditure,Taxi Costs,Cartello Ambulance,11/06/2021,147
Adult Social Care,Community Social Work & Adult Safeguarding,Transport-Related Expenditure,Taxi Costs,Cartello Ambulance,11/06/2021,147
Adult Social Care,Community Social Work & Adult Safeguarding,Transport-Related Expenditure,Taxi Costs,Cartello Ambulance,11/06/2021,147
Adult Social Care,Community Social Work & Adult Safeguarding,Transport-Related Expenditure,Taxi Costs,Cartello Ambulance,11/06/2021,147
Adult Social Care,Community Social Work & Adult Safeguarding,Transport-Related Expenditure,Taxi Costs,Cartello Ambulance,11/06/2021,147
Adult Social Care,Community Social Work & Adult Safeguarding,Transport-Related Expenditure,Taxi Costs,Cartello Ambulance,11/06/2021,196
Adult Social Care,Community Social Work & Adult Safeguarding,Transport-Related Expenditure,Taxi Costs,Cartello Ambulance,11/06/2021,220.5
Adult Social Care,Community Social Work & Adult Safeguarding,Transport-Related Expenditure,Taxi Costs,Cartello Ambulance,11/06/2021,147
Adult Social Care,Community Social Work & Adult Safeguarding,Transport-Related Expenditure,Taxi Costs,Cartello Ambulance,11/06/2021,147
Adult Social Care,Community Social Work & Adult Safeguarding,Transport-Related Expenditure,Taxi Costs,Cartello Ambulance,11/06/2021,147
Adult Social Care,Community Social Work & Adult Safeguarding,Transport-Related Expenditure,Taxi Costs,Cartello Ambulance,11/06/2021,147
Adult Social Care,Community Social Work & Adult Safeguarding,Transport-Related Expenditure,Taxi Costs,Cartello Ambulance,11/06/2021,196
Adult Social Care,Community Social Work & Adult Safeguarding,Transport-Related Expenditure,Taxi Costs,Cartello Ambulance,11/06/2021,147
Adult Social Care,Community Social Work & Adult Safeguarding,Transport-Related Expenditure,Taxi Costs,Cartello Ambulance,11/06/2021,196
Adult Social Care,Community Social Work & Adult Safeguarding,Transport-Related Expenditure,Taxi Costs,Cartello Ambulance,11/06/2021,147
Adult Social Care,Community Social Work & Adult Safeguarding,Transport-Related Expenditure,Taxi Costs,Cartello Ambulance,11/06/2021,147
Adult Social Care,Community Social Work & Adult Safeguarding,Transport-Related Expenditure,Taxi Costs,Cartello Ambulance,11/06/2021,147
Adult Social Care,Community Social Work & Adult Safeguarding,Transport-Related Expenditure,Taxi Costs,Go Carz,11/06/2021,199.32
Adult Social Care,Community Social Work & Adult Safeguarding,Transport-Related Expenditure,Taxi Costs,Go Carz,11/06/2021,310.08
Adult Social Care,My Options,Employees,Agency Supply Costs,Safehands Recruitment,04/06/2021,1237.22
Adult Social Care,My Options,Employees,Agency Supply Costs,Safehands Recruitment,04/06/2021,895.17
Adult Social Care,My Options,Employees,Agency Supply Costs,Safehands Recruitment,04/06/2021,1110.97
Adult Social Care,My Options,Employees,Agency Supply Costs,Safehands Recruitment,18/06/2021,680.54
Adult Social Care,My Options,Employees,Agency Supply Costs,Safehands Recruitment,18/06/2021,1545.28
Adult Social Care,My Options,Employees,Agency Supply Costs,Safehands Recruitment,18/06/2021,555.13
Adult Social Care,My Options,Employees,Agency Supply Costs,Safehands Recruitment,11/06/2021,1347.53
Adult Social Care,My Options,Employees,Agency Supply Costs,Safehands Recruitment,11/06/2021,1403.38
Adult Social Care,My Options,Employees,Agency Supply Costs,Safehands Recruitment,24/06/2021,856.24
Adult Social Care,My Options,Employees,Agency Supply Costs,Safehands Recruitment,24/06/2021,199.5
Adult Social Care,My Options,Employees,Agency Supply Costs,Safehands Recruitment,24/06/2021,500.28
Adult Social Care,My Options,Employees,Agency Supply Costs,Safehands Recruitment,11/06/2021,1097.68
Adult Social Care,My Options,Employees,Agency Supply Costs,Safehands Recruitment,11/06/2021,817.94
Adult Social Care,My Options,Employees,Agency Supply Costs,Safehands Recruitment,11/06/2021,1200.55
Adult Social Care,My Options,Employees,Agency Supply Costs,Safehands Recruitment,01/06/2021,526.96
Adult Social Care,My Options,Employees,Agency Supply Costs,Safehands Recruitment,01/06/2021,559.5
Adult Social Care,My Options,Employees,Agency Supply Costs,Safehands Recruitment,01/06/2021,896.91
Adult Social Care,My Options,Employees,Agency Supply Costs,Safehands Recruitment,01/06/2021,431.39
Adult Social Care,My Options,Employees,Agency Supply Costs,Safehands Recruitment,24/06/2021,141.15
Adult Social Care,My Options,Employees,Agency Supply Costs,Safehands Recruitment,24/06/2021,1137.42
Adult Social Care,My Options,Employees,Training Expenses,Crisis Prevention Institute Europe,18/06/2021,2970
Adult Social Care,My Options,Premises-Related Expenditure,Clean Mats & Toilet Requisites,PHS GROUP,11/06/2021,112.27
Adult Social Care,My Options,Premises-Related Expenditure,Clean Mats & Toilet Requisites,BERWICK CARE EQUIPMENT LTD,18/06/2021,208.2
Adult Social Care,My Options,Premises-Related Expenditure,Clean Mats & Toilet Requisites,BERWICK CARE EQUIPMENT LTD,04/06/2021,148.26
Adult Social Care,My Options,Premises-Related Expenditure,Clean Mats & Toilet Requisites,CARESHOP,01/06/2021,163.02
Adult Social Care,My Options,Premises-Related Expenditure,Hire Of Rooms,HOLLINSWOOD & RANDLAY PARISH COUNCIL,11/06/2021,160
Adult Social Care,My Options,Premises-Related Expenditure,Hire Of Rooms,BELMONT COMMUNITY HALL,01/06/2021,351
Adult Social Care,My Options,Premises-Related Expenditure,Hire Of Rooms,BELMONT COMMUNITY HALL,24/06/2021,221
Adult Social Care,My Options,Premises-Related Expenditure,Hire Of Rooms,DONNINGTON PARTNERSHIP,11/06/2021,450
Adult Social Care,My Options,Premises-Related Expenditure,Hire Of Rooms,Brookside Central,18/06/2021,240
Adult Social Care,My Options,Supplies & Services,Adult Flexi / Day Care,REDACTED PERSONAL INFORMATION,24/06/2021,725.76
Adult Social Care,My Options,Supplies & Services,Adult Flexi / Day Care,REDACTED PERSONAL INFORMATION,24/06/2021,518.4
Adult Social Care,My Options,Supplies & Services,Adult Flexi / Day Care,REDACTED PERSONAL INFORMATION,24/06/2021,207.36
Adult Social Care,My Options,Supplies & Services,Adult Flexi / Day Care,REDACTED PERSONAL INFORMATION,24/06/2021,622.08
Adult Social Care,My Options,Supplies & Services,Computer Software (Maint),CARE MONITORING 2000 LTD,11/06/2021,644.4
Adult Social Care,My Options,Supplies & Services,Equipment - Purchase,JCE & SONS LTD,24/06/2021,232.94
Adult Social Care,My Options,Supplies & Services,Equipment - Purchase,C J Fabrication Services,15/06/2021,800
Adult Social Care,My Options,Supplies & Services,Equipment - Purchase,C J Fabrication Services,15/06/2021,495
Adult Social Care,My Options,Supplies & Services,Equipment - Purchase,MEDACO,18/06/2021,210.52
Adult Social Care,My Options,Supplies & Services,Equipment - Purchase,MEDACO,11/06/2021,271
Adult Social Care,My Options,Supplies & Services,Laundry & Towel Hire,PHS GROUP,11/06/2021,144.95
Adult Social Care,My Options,Supplies & Services,Other Travel,REDACTED PERSONAL INFORMATION,24/06/2021,249.3
Adult Social Care,My Options,Supplies & Services,Other Travel,REDACTED PERSONAL INFORMATION,24/06/2021,198
Adult Social Care,My Options,Supplies & Services,Other Travel,REDACTED PERSONAL INFORMATION,24/06/2021,180
Adult Social Care,My Options,Supplies & Services,Respite Care,REDACTED PERSONAL INFORMATION,02/06/2021,1531.48
Adult Social Care,My Options,Supplies & Services,Respite Care,REDACTED PERSONAL INFORMATION,02/06/2021,462
Adult Social Care,My Options,Supplies & Services,Respite Care,REDACTED PERSONAL INFORMATION,25/06/2021,1531.48
Adult Social Care,My Options,Supplies & Services,Respite Care,REDACTED PERSONAL INFORMATION,25/06/2021,462
Adult Social Care,My Options,Supplies & Services,Respite Care,REDACTED PERSONAL INFORMATION,24/06/2021,103.68
Adult Social Care,My Options,Supplies & Services,Respite Care,REDACTED PERSONAL INFORMATION,02/06/2021,925.32
Adult Social Care,My Options,Supplies & Services,Respite Care,REDACTED PERSONAL INFORMATION,25/06/2021,925.32
Adult Social Care,My Options,Supplies & Services,Respite Care,REDACTED PERSONAL INFORMATION,02/06/2021,1531.48
Adult Social Care,My Options,Supplies & Services,Respite Care,REDACTED PERSONAL INFORMATION,02/06/2021,1341.48
Adult Social Care,My Options,Supplies & Services,Respite Care,REDACTED PERSONAL INFORMATION,25/06/2021,1531.48
Adult Social Care,My Options,Supplies & Services,Respite Care,REDACTED PERSONAL INFORMATION,25/06/2021,1151.48
Adult Social Care,My Options,Supplies & Services,Respite Care,REDACTED PERSONAL INFORMATION,24/06/2021,518.4
Adult Social Care,Service Improvement & Efficiency,Capital Expenditure,Payments to Contractor,LIQUIDLOGIC LIMITED,18/06/2021,11907.72
Children's Safeguarding,Child Protection & Family Support,contribution to provision,legal,HM Courts and Tribunal service,16/06/2021," 8,283.00 "
Children's Safeguarding & Family Support,Child Protection & Family Support,Supplies & Services,Aids & Appliances,BES Healthcare Ltd,01/06/2021,126.08
Children's Safeguarding & Family Support,Child Protection & Family Support,Supplies & Services,Aids & Appliances,MIDSHIRES MOBILITY GROUP,14/06/2021,2489.75
Children's Safeguarding & Family Support,Child Protection & Family Support,Supplies & Services,Aids & Appliances,Tough Furniture Ltd,14/06/2021,419
Children's Safeguarding & Family Support,Child Protection & Family Support,Supplies & Services,Aids & Appliances,Jiraffe,14/06/2021,1758
Children's Safeguarding & Family Support,Child Protection & Family Support,Supplies & Services,Aids & Appliances,Jiraffe,17/06/2021,1266
Children's Safeguarding & Family Support,Child Protection & Family Support,Supplies & Services,Aids & Appliances,M A  Associates,17/06/2021,465
Children's Safeguarding & Family Support,Child Protection & Family Support,Supplies & Services,Comp Software (Purch / Hire),PHOENIX SOFTWARE LTD,07/06/2021,343.84
Children's Safeguarding & Family Support,Child Protection & Family Support,Supplies & Services,Equipment - Repair,ARJO UK LTD,18/06/2021,108
Children's Safeguarding & Family Support,Child Protection & Family Support,Third Party Payments,Interpreters Fees,VISS LTD,10/06/2021,115
Children's Safeguarding & Family Support,Child Protection & Family Support,Third Party Payments,Interpreters Fees,VISS LTD,10/06/2021,115
Children's Safeguarding & Family Support,Child Protection & Family Support,Third Party Payments,Interpreters Fees,VISS LTD,10/06/2021,115
Children's Safeguarding & Family Support,Child Protection & Family Support,Transport-Related Expenditure,Taxi Costs,Go Carz,10/06/2021,209
Children's Safeguarding & Family Support,Family Connect & Childrens Centres,Premises-Related Expenditure,R&M -Building Other,GRANVILLE CONSTRUCTION & MAINTENANCE LTD,28/06/2021,387.72
Children's Safeguarding & Family Support,Family Connect & Childrens Centres,Premises-Related Expenditure,R&M -Building Other,JCE & SONS LTD,28/06/2021,192.37
Children's Safeguarding & Family Support,Family Connect & Childrens Centres,Premises-Related Expenditure,R&M -Building Other,SHROPSHIRE BLINDS & AWNINGS LIMITED,21/06/2021,341
Children's Safeguarding & Family Support,Family Connect & Childrens Centres,Premises-Related Expenditure,R&M -Buildings DLO Charge,HYDRO-TECH ENVIRONMENTAL LLP,15/06/2021,150
Children's Safeguarding & Family Support,Family Connect & Childrens Centres,Supplies & Services,Bulk Refuse Contracts Hire,GREEN SKIPS LTD,15/06/2021,170
Children's Safeguarding & Family Support,Family Connect & Childrens Centres,Supplies & Services,Equipment - Purchase,Hands Free Computing Ltd,16/06/2021,710
Children's Safeguarding & Family Support,Family Connect & Childrens Centres,Supplies & Services,Other Expenses,RICOH UK LIMITED,21/06/2021,722.69
Children's Safeguarding & Family Support,Family Connect & Childrens Centres,Supplies & Services,Other Services,GRANVILLE CONSTRUCTION & MAINTENANCE LTD,15/06/2021,390
Children's Safeguarding & Family Support,Family Connect & Childrens Centres,Third Party Payments,Interpreters Fees,VISS LTD,11/06/2021,115
Children's Safeguarding & Family Support,"Family Placements, Children in Care, Leaving Care & Emergency Duty Team",Employees,Course Fees,K M Associates Ltd,18/06/2021,1000
Children's Safeguarding & Family Support,"Family Placements, Children in Care, Leaving Care & Emergency Duty Team",Employees,Staff Training,SHROPSHIRE COUNCIL ,23/06/2021,1200
Children's Safeguarding & Family Support,"Family Placements, Children in Care, Leaving Care & Emergency Duty Team",Employees,Staff Training,Smash Life UK Ltd,01/06/2021,350
Children's Safeguarding & Family Support,"Family Placements, Children in Care, Leaving Care & Emergency Duty Team",Employees,Staff Training,EDGE TRAINING & CONSULTANCY LTD,30/06/2021,875
Children's Safeguarding & Family Support,"Family Placements, Children in Care, Leaving Care & Emergency Duty Team",Employees,Staff Training, Leaving Care Training & Consultancy Service,30/06/2021,1918.12
Children's Safeguarding & Family Support,"Family Placements, Children in Care, Leaving Care & Emergency Duty Team",Employees,Staff Training,INSIGHT Wellbeing Services Ltd,11/06/2021,750
Children's Safeguarding & Family Support,"Family Placements, Children in Care, Leaving Care & Emergency Duty Team",Supplies & Services,Advertising,Global Radio Services Limited,17/06/2021,4200
Children's Safeguarding & Family Support,"Family Placements, Children in Care, Leaving Care & Emergency Duty Team",Supplies & Services,Advertising,Bauer Radio Ltd,11/06/2021,706.8
Children's Safeguarding & Family Support,"Family Placements, Children in Care, Leaving Care & Emergency Duty Team",Supplies & Services,Advertising,Bauer Radio Ltd,11/06/2021,429
Children's Safeguarding & Family Support,"Family Placements, Children in Care, Leaving Care & Emergency Duty Team",Supplies & Services,Books,BADGER PRINT,30/06/2021,259
Children's Safeguarding & Family Support,"Family Placements, Children in Care, Leaving Care & Emergency Duty Team",Supplies & Services,Form F Assessments,EW Assessments ltd,01/06/2021,500
Children's Safeguarding & Family Support,"Family Placements, Children in Care, Leaving Care & Emergency Duty Team",Supplies & Services,Form F Assessments,EW Assessments ltd,01/06/2021,500
Children's Safeguarding & Family Support,"Family Placements, Children in Care, Leaving Care & Emergency Duty Team",Supplies & Services,Form F Assessments,EW Assessments ltd,01/06/2021,2000
Children's Safeguarding & Family Support,"Family Placements, Children in Care, Leaving Care & Emergency Duty Team",Supplies & Services,Furniture - Purchase,BACK CARE SOLUTIONS LTD,18/06/2021,490.95
Children's Safeguarding & Family Support,"Family Placements, Children in Care, Leaving Care & Emergency Duty Team",Supplies & Services,Other Services,REDACTED PERSONAL INFORMATION,23/06/2021,156.43
Children's Safeguarding & Family Support,"Family Placements, Children in Care, Leaving Care & Emergency Duty Team",Supplies & Services,Other Services,REDACTED PERSONAL INFORMATION,28/06/2021,186.43
Children's Safeguarding & Family Support,"Family Placements, Children in Care, Leaving Care & Emergency Duty Team",Supplies & Services,Other Services,REDACTED PERSONAL INFORMATION,28/06/2021,109.71
Children's Safeguarding & Family Support,"Family Placements, Children in Care, Leaving Care & Emergency Duty Team",Supplies & Services,Other Services,FOSTERING SOLUTIONS LTD,18/06/2021,-5760.99
Children's Safeguarding & Family Support,"Family Placements, Children in Care, Leaving Care & Emergency Duty Team",Supplies & Services,Other Services,Share Foundation,01/06/2021,3335.55
Children's Safeguarding & Family Support,"Family Placements, Children in Care, Leaving Care & Emergency Duty Team",Third Party Payments,Contractor Recharge,FOSTERING NETWORK,23/06/2021,7452
Children's Safeguarding & Family Support,Safeguarding Advisory,Employees,Professional Subs,THE STAFF COLLEGE,01/06/2021,1250
Children's Safeguarding & Family Support,Safeguarding Advisory,Supplies & Services,Computer Software (Maint),LIQUIDLOGIC LIMITED,09/06/2021,7078.62
Children's Safeguarding & Family Support,Safeguarding Advisory,Supplies & Services,Computer Software (Maint),LIQUIDLOGIC LIMITED,09/06/2021,2931.68
Children's Safeguarding & Family Support,Safeguarding Advisory,Supplies & Services,Computer Software (Maint),LIQUIDLOGIC LIMITED,09/06/2021,808.58
Children's Safeguarding & Family Support,Safeguarding Advisory,Supplies & Services,Computer Software (Maint),LIQUIDLOGIC LIMITED,09/06/2021,802
Children's Safeguarding & Family Support,Safeguarding Advisory,Supplies & Services,Computer Software (Maint),LIQUIDLOGIC LIMITED,09/06/2021,802
Children's Safeguarding & Family Support,Safeguarding Advisory,Supplies & Services,Computer Software (Maint),LIQUIDLOGIC LIMITED,09/06/2021,8740.02
Children's Safeguarding & Family Support,Safeguarding Advisory,Supplies & Services,Computer Software (Maint),LIQUIDLOGIC LIMITED,09/06/2021,9161.42
Children's Safeguarding & Family Support,Safeguarding Advisory,Supplies & Services,Computer Software (Maint),LIQUIDLOGIC LIMITED,09/06/2021,4071.4
Children's Safeguarding & Family Support,Safeguarding Advisory,Supplies & Services,Computer Software (Maint),LIQUIDLOGIC LIMITED,09/06/2021,9019.7
Children's Safeguarding & Family Support,Safeguarding Advisory,Supplies & Services,Computer Software (Maint),LIQUIDLOGIC LIMITED,09/06/2021,520.24
Children's Safeguarding & Family Support,Safeguarding Advisory,Supplies & Services,Computer Software (Maint),LIQUIDLOGIC LIMITED,09/06/2021,745.21
Children's Safeguarding & Family Support,Safeguarding Advisory,Supplies & Services,Computer Software (Maint),LIQUIDLOGIC LIMITED,09/06/2021,745.21
Children's Safeguarding & Family Support,Safeguarding Advisory,Supplies & Services,Computer Software (Maint),LIQUIDLOGIC LIMITED,09/06/2021,33387.89
Children's Safeguarding & Family Support,Safeguarding Advisory,Supplies & Services,Computer Software (Maint),LIQUIDLOGIC LIMITED,09/06/2021,5059.07
Children's Safeguarding & Family Support,Safeguarding Advisory,Supplies & Services,Computer Software (Maint),LIQUIDLOGIC LIMITED,09/06/2021,3612.83
Children's Safeguarding & Family Support,Safeguarding Advisory,Supplies & Services,Conference Expenses,ADCS,01/06/2021,300
Children's Safeguarding & Family Support,Safeguarding Advisory,Supplies & Services,Other Services,NEC Software Solutions UK Ltd,22/06/2021,750
Children's Safeguarding & Family Support,Safeguarding Advisory,Supplies & Services,Other Services,NEC Software Solutions UK Ltd,25/06/2021,2000
Children's Safeguarding & Family Support,Safeguarding Advisory,Supplies & Services,Printing - Other,NEC Software Solutions UK Ltd,22/06/2021,300
Children's Safeguarding & Family Support,Safeguarding Advisory,Supplies & Services,Subscriptions,TAMESIDE MBC,01/06/2021,400
"Communities, Customer & Commercial Services",Commercial Projects,Premises-Related Expenditure,Electricity,West Mercia Energy (WME),25/06/2021,139.25
"Communities, Customer & Commercial Services",Community Safety & Cohesion,Supplies & Services,Consultancy,Woodward Energy Consulting Limited,23/06/2021,9300
"Communities, Customer & Commercial Services",Community Safety & Cohesion,Supplies & Services,Grants To Voluntary Organis,DONNINGTON PARTNERSHIP,25/06/2021,3100
"Communities, Customer & Commercial Services",Community Safety & Cohesion,Supplies & Services,Grants To Voluntary Organis,MEETING POINT TRUST LTD,25/06/2021,2980
"Communities, Customer & Commercial Services",Community Safety & Cohesion,Supplies & Services,Other Grants (Expenses),TADLOP,21/06/2021,389.98
"Communities, Customer & Commercial Services",Culture & Wellbeing,Supplies & Services,Artistes Fees,Fools Paradise Ltd,30/06/2021,2000
"Communities, Customer & Commercial Services",Culture & Wellbeing,Supplies & Services,Artistes Fees,Spirit Operations Ltd,15/06/2021,1500
"Communities, Customer & Commercial Services",Culture & Wellbeing,Supplies & Services,Artistes Fees,Spirit Operations Ltd,15/06/2021,3000
"Communities, Customer & Commercial Services",Culture & Wellbeing,Supplies & Services,Artistes Fees,JBS Products & Events Ltd,01/06/2021,2075
"Communities, Customer & Commercial Services",Culture & Wellbeing,Supplies & Services,Artistes Fees,JBS Products & Events Ltd,01/06/2021,2075
"Communities, Customer & Commercial Services",Culture & Wellbeing,Supplies & Services,Equipment - Purchase,STAGE ELECTRICS PARTNERSHIP LTD,22/06/2021,116.23
"Communities, Customer & Commercial Services",Culture & Wellbeing,Supplies & Services,Equipment - Purchase,STAGE ELECTRICS PARTNERSHIP LTD,22/06/2021,121.14
"Communities, Customer & Commercial Services",Culture & Wellbeing,Supplies & Services,Equipment - Purchase,STAGE ELECTRICS PARTNERSHIP LTD,22/06/2021,1199.13
"Communities, Customer & Commercial Services",Culture & Wellbeing,Supplies & Services,Equipment - Purchase,STAGE ELECTRICS PARTNERSHIP LTD,22/06/2021,216.75
"Communities, Customer & Commercial Services",Culture & Wellbeing,Supplies & Services,Equipment - Purchase,Gala Tent Ltd,03/06/2021,1899.9
"Communities, Customer & Commercial Services",Culture & Wellbeing,Supplies & Services,Equipment - Purchase,Gala Tent Ltd,03/06/2021,1974.89
"Communities, Customer & Commercial Services",Culture & Wellbeing,Supplies & Services,Equipment - Purchase,Plantscape Ltd,17/06/2021,1425
"Communities, Customer & Commercial Services",Culture & Wellbeing,Supplies & Services,Equipment - Purchase,Plantscape Ltd,17/06/2021,1695
"Communities, Customer & Commercial Services",Culture & Wellbeing,Supplies & Services,Promotion Expenses,Spektrix Limited,09/06/2021,775.92
"Communities, Customer & Commercial Services",Culture & Wellbeing,Supplies & Services,Promotion Expenses,Ticketplan Limited,09/06/2021,314.03
"Communities, Customer & Commercial Services",Customer Relationships & Welfare Services,Employees,Staff Training,Zipporah Ltd.,14/06/2021,425
"Communities, Customer & Commercial Services",Customer Relationships & Welfare Services,Employees,Staff Training,Zipporah Ltd.,14/06/2021,425
"Communities, Customer & Commercial Services",Customer Relationships & Welfare Services,Premises-Related Expenditure,Grounds Maintenance - Cemeteries,Teleshore UK Ltd.,02/06/2021,423
"Communities, Customer & Commercial Services",Customer Relationships & Welfare Services,Supplies & Services,Bus Pass Production,Unicard Ltd,04/06/2021,485
"Communities, Customer & Commercial Services",Customer Relationships & Welfare Services,Supplies & Services,Bus Pass Production,Unicard Ltd,07/06/2021,516.62
"Communities, Customer & Commercial Services",Customer Relationships & Welfare Services,Supplies & Services,Bus Pass Production,Euclid Limited,08/06/2021,1793.16
"Communities, Customer & Commercial Services",Customer Relationships & Welfare Services,Supplies & Services,Comp Software (Purch / Hire),NEC Software Solutions UK Ltd,01/06/2021,3600
"Communities, Customer & Commercial Services",Customer Relationships & Welfare Services,Supplies & Services,Conference Expenses,APSE (MANCHESTER),03/06/2021,249
"Communities, Customer & Commercial Services",Customer Relationships & Welfare Services,Supplies & Services,IT Services,NEC Software Solutions UK Ltd,02/06/2021,1875
"Communities, Customer & Commercial Services",Customer Relationships & Welfare Services,Supplies & Services,Permit Production - Blue Badge,Valtech Limited,07/06/2021,658.3
"Communities, Customer & Commercial Services",Customer Relationships & Welfare Services,Supplies & Services,Postages,Financial Data Management plc,22/06/2021,115.38
"Communities, Customer & Commercial Services",Customer Relationships & Welfare Services,Supplies & Services,Postages,Financial Data Management plc,22/06/2021,182.53
"Communities, Customer & Commercial Services",Customer Relationships & Welfare Services,Supplies & Services,Postages,Financial Data Management plc,22/06/2021,370.53
"Communities, Customer & Commercial Services",Customer Relationships & Welfare Services,Transfer Payments,Crisis Assistance Awards,PayPoint Network Limited,07/06/2021,185
"Communities, Customer & Commercial Services",Customer Relationships & Welfare Services,Transfer Payments,Crisis Assistance Awards,PayPoint Network Limited,15/06/2021,305
"Communities, Customer & Commercial Services",Customer Relationships & Welfare Services,Transfer Payments,Crisis Assistance Awards,PayPoint Network Limited,08/06/2021,215
"Communities, Customer & Commercial Services",Customer Relationships & Welfare Services,Transfer Payments,Crisis Assistance Awards,PayPoint Network Limited,29/06/2021,320
"Communities, Customer & Commercial Services",Customer Relationships & Welfare Services,Transfer Payments,Crisis Assistance Awards,PayPoint Network Limited,25/06/2021,160
"Communities, Customer & Commercial Services",Customer Relationships & Welfare Services,Transfer Payments,Crisis Assistance Awards,DAWLEY BARGAIN CENTRE,08/06/2021,130
"Communities, Customer & Commercial Services",Customer Relationships & Welfare Services,Transfer Payments,Crisis Assistance Awards,DAWLEY BARGAIN CENTRE,08/06/2021,215
"Communities, Customer & Commercial Services",Customer Relationships & Welfare Services,Transfer Payments,Crisis Assistance Awards,DAWLEY BARGAIN CENTRE,08/06/2021,285
"Communities, Customer & Commercial Services",Customer Relationships & Welfare Services,Transfer Payments,Crisis Assistance Awards,DAWLEY BARGAIN CENTRE,08/06/2021,420
"Communities, Customer & Commercial Services",Customer Relationships & Welfare Services,Transfer Payments,Crisis Assistance Awards,DAWLEY BARGAIN CENTRE,08/06/2021,440
"Communities, Customer & Commercial Services",Customer Relationships & Welfare Services,Transfer Payments,Crisis Assistance Awards,DAWLEY BARGAIN CENTRE,08/06/2021,350
"Communities, Customer & Commercial Services",Customer Relationships & Welfare Services,Transfer Payments,Crisis Assistance Awards,DAWLEY BARGAIN CENTRE,17/06/2021,145
"Communities, Customer & Commercial Services",Customer Relationships & Welfare Services,Transfer Payments,Crisis Assistance Awards,DAWLEY BARGAIN CENTRE,17/06/2021,305
"Communities, Customer & Commercial Services",Customer Relationships & Welfare Services,Transfer Payments,Crisis Assistance Awards,DAWLEY BARGAIN CENTRE,30/06/2021,180
"Communities, Customer & Commercial Services",Customer Relationships & Welfare Services,Transfer Payments,Crisis Assistance Awards,DAWLEY BARGAIN CENTRE,25/06/2021,390
"Communities, Customer & Commercial Services",Customer Relationships & Welfare Services,Transfer Payments,Crisis Assistance Awards,DAWLEY BARGAIN CENTRE,25/06/2021,195
"Communities, Customer & Commercial Services",Customer Relationships & Welfare Services,Transfer Payments,Crisis Assistance Awards,DAWLEY BARGAIN CENTRE,30/06/2021,460
"Communities, Customer & Commercial Services",Customer Relationships & Welfare Services,Transfer Payments,Crisis Assistance Awards,DAWLEY BARGAIN CENTRE,02/06/2021,290
"Communities, Customer & Commercial Services",Customer Relationships & Welfare Services,Transfer Payments,Crisis Assistance Awards,DAWLEY BARGAIN CENTRE,02/06/2021,200
"Communities, Customer & Commercial Services",Customer Relationships & Welfare Services,Transfer Payments,Crisis Assistance Awards,DAWLEY BARGAIN CENTRE,02/06/2021,210
"Communities, Customer & Commercial Services",Customer Relationships & Welfare Services,Transfer Payments,Crisis Assistance Awards,DAWLEY BARGAIN CENTRE,24/06/2021,145
"Communities, Customer & Commercial Services",Customer Relationships & Welfare Services,Transfer Payments,Crisis Assistance Awards,DAWLEY BARGAIN CENTRE,17/06/2021,145
"Communities, Customer & Commercial Services",Customer Relationships & Welfare Services,Transfer Payments,Crisis Assistance Awards,DAWLEY BARGAIN CENTRE,08/06/2021,300
"Communities, Customer & Commercial Services",Customer Relationships & Welfare Services,Transfer Payments,Crisis Assistance Awards,DAWLEY BARGAIN CENTRE,08/06/2021,340
"Communities, Customer & Commercial Services",Customer Relationships & Welfare Services,Transfer Payments,Crisis Assistance Awards,DAWLEY BARGAIN CENTRE,08/06/2021,405
"Communities, Customer & Commercial Services",Customer Relationships & Welfare Services,Transfer Payments,Crisis Assistance Awards,DAWLEY BARGAIN CENTRE,03/06/2021,195
"Communities, Customer & Commercial Services",Customer Relationships & Welfare Services,Transfer Payments,Crisis Assistance Awards,DAWLEY BARGAIN CENTRE,15/06/2021,435
"Communities, Customer & Commercial Services",Customer Relationships & Welfare Services,Transfer Payments,Crisis Assistance Awards,DAWLEY BARGAIN CENTRE,15/06/2021,145
"Communities, Customer & Commercial Services",Customer Relationships & Welfare Services,Transfer Payments,Crisis Assistance Awards,A W HOLDINGS,03/06/2021,1698
"Communities, Customer & Commercial Services",Customer Relationships & Welfare Services,Transfer Payments,Crisis Assistance Awards,A W HOLDINGS,14/06/2021,-1000
"Communities, Customer & Commercial Services",Customer Relationships & Welfare Services,Transfer Payments,Crisis Assistance Awards,A W HOLDINGS,30/06/2021,1085
"Communities, Customer & Commercial Services",Customer Relationships & Welfare Services,Transfer Payments,Crisis Assistance Awards,Kings of the Road,16/06/2021,295
"Communities, Customer & Commercial Services",Customer Relationships & Welfare Services,Transfer Payments,Crisis Assistance Awards,Kings of the Road,08/06/2021,395
"Communities, Customer & Commercial Services",Customer Relationships & Welfare Services,Transfer Payments,Crisis Assistance Awards,Kings of the Road,07/06/2021,425
"Communities, Customer & Commercial Services",Customer Relationships & Welfare Services,Transfer Payments,Crisis Assistance Awards,Kings of the Road,03/06/2021,275
"Communities, Customer & Commercial Services",Customer Relationships & Welfare Services,Transfer Payments,Crisis Assistance Awards,Kings of the Road,25/06/2021,525
"Communities, Customer & Commercial Services",Customer Relationships & Welfare Services,Transfer Payments,Crisis Assistance Awards,Kings of the Road,25/06/2021,475
"Communities, Customer & Commercial Services",Customer Relationships & Welfare Services,Transfer Payments,Crisis Assistance Awards,Self Isolation Grant,23/06/2021,500
"Communities, Customer & Commercial Services",Customer Relationships & Welfare Services,Transfer Payments,Crisis Assistance Awards,Self Isolation Grant,23/06/2021,500
"Communities, Customer & Commercial Services",Customer Relationships & Welfare Services,Transfer Payments,Crisis Assistance Awards,Self Isolation Grant,23/06/2021,500
"Communities, Customer & Commercial Services",Customer Relationships & Welfare Services,Transfer Payments,Crisis Assistance Awards,Self Isolation Grant,02/06/2021,500
"Communities, Customer & Commercial Services",Customer Relationships & Welfare Services,Transfer Payments,Crisis Assistance Awards,Self Isolation Grant,16/06/2021,500
"Communities, Customer & Commercial Services",Customer Relationships & Welfare Services,Transfer Payments,Crisis Assistance Awards,Self Isolation Grant,16/06/2021,500
"Communities, Customer & Commercial Services",Customer Relationships & Welfare Services,Transfer Payments,Crisis Assistance Awards,Self Isolation Grant,21/06/2021,500
"Communities, Customer & Commercial Services",Customer Relationships & Welfare Services,Transfer Payments,Crisis Assistance Awards,Self Isolation Grant,28/06/2021,500
"Communities, Customer & Commercial Services",Customer Relationships & Welfare Services,Transfer Payments,Crisis Assistance Awards,Self Isolation Grant,25/06/2021,500
"Communities, Customer & Commercial Services",Customer Relationships & Welfare Services,Transfer Payments,Crisis Assistance Awards,Self Isolation Grant,25/06/2021,500
"Communities, Customer & Commercial Services",Customer Relationships & Welfare Services,Transfer Payments,Crisis Assistance Awards,Self Isolation Grant,28/06/2021,500
"Communities, Customer & Commercial Services",Customer Relationships & Welfare Services,Transfer Payments,Crisis Assistance Awards,Self Isolation Grant,28/06/2021,500
"Communities, Customer & Commercial Services",Customer Relationships & Welfare Services,Transfer Payments,Crisis Assistance Awards,Self Isolation Grant,11/06/2021,500
"Communities, Customer & Commercial Services",Customer Relationships & Welfare Services,Transfer Payments,Crisis Assistance Awards,Self Isolation Grant,11/06/2021,500
"Communities, Customer & Commercial Services",Customer Relationships & Welfare Services,Transfer Payments,Crisis Assistance Awards,Self Isolation Grant,22/06/2021,500
"Communities, Customer & Commercial Services",Customer Relationships & Welfare Services,Transfer Payments,Crisis Assistance Awards,Self Isolation Grant,21/06/2021,500
"Communities, Customer & Commercial Services",Customer Relationships & Welfare Services,Transfer Payments,Crisis Assistance Awards,Self Isolation Grant,03/06/2021,500
"Communities, Customer & Commercial Services",Customer Relationships & Welfare Services,Transfer Payments,Crisis Assistance Awards,Self Isolation Grant,24/06/2021,500
"Communities, Customer & Commercial Services",Customer Relationships & Welfare Services,Transfer Payments,Crisis Assistance Awards,Self Isolation Grant,17/06/2021,500
"Communities, Customer & Commercial Services",Customer Relationships & Welfare Services,Transfer Payments,Crisis Assistance Awards,Self Isolation Grant,17/06/2021,500
"Communities, Customer & Commercial Services",Customer Relationships & Welfare Services,Transfer Payments,Crisis Assistance Awards,Self Isolation Grant,10/06/2021,500
"Communities, Customer & Commercial Services",Customer Relationships & Welfare Services,Transfer Payments,Crisis Assistance Awards,Self Isolation Grant,29/06/2021,500
"Communities, Customer & Commercial Services",Customer Relationships & Welfare Services,Transfer Payments,Crisis Assistance Awards,Self Isolation Grant,03/06/2021,500
"Communities, Customer & Commercial Services",Customer Relationships & Welfare Services,Transfer Payments,Crisis Assistance Awards,Self Isolation Grant,24/06/2021,500
"Communities, Customer & Commercial Services",Customer Relationships & Welfare Services,Transfer Payments,Crisis Assistance Awards,Self Isolation Grant,18/06/2021,500
"Communities, Customer & Commercial Services",Customer Relationships & Welfare Services,Transfer Payments,Crisis Assistance Awards,Self Isolation Grant,15/06/2021,500
"Communities, Customer & Commercial Services",Customer Relationships & Welfare Services,Transfer Payments,Crisis Assistance Awards,Self Isolation Grant,15/06/2021,500
"Communities, Customer & Commercial Services",Customer Relationships & Welfare Services,Transfer Payments,Crisis Assistance Awards,Self Isolation Grant,10/06/2021,500
"Communities, Customer & Commercial Services",ICT,Capital Expenditure,Computer Hardware,CCS MEDIA LIMITED,28/06/2021,150
"Communities, Customer & Commercial Services",ICT,Capital Expenditure,Computer Hardware,CCS MEDIA LIMITED,28/06/2021,31907
"Communities, Customer & Commercial Services",ICT,Capital Expenditure,Computer Software,CADLINE LTD,04/06/2021,1790
"Communities, Customer & Commercial Services",ICT,Capital Expenditure,Other Capital Expenditure,JCE & SONS LTD,24/06/2021,2984
"Communities, Customer & Commercial Services",ICT,Capital Expenditure,Other Capital Expenditure,CCS MEDIA LIMITED,07/06/2021,2520
"Communities, Customer & Commercial Services",ICT,Capital Expenditure,Payments to Contractor,CAPITA IT SERVICES LIMITED,07/06/2021,2054
"Communities, Customer & Commercial Services",ICT,Capital Expenditure,Payments to Contractor,CAPITA IT SERVICES LIMITED,07/06/2021,8278
"Communities, Customer & Commercial Services",ICT,Employees,Staff Training,QA LTD,21/06/2021,10000
"Communities, Customer & Commercial Services",ICT,Supplies & Services,Comp Hardware (Purch / Hire),CCS MEDIA LIMITED,08/06/2021,270
"Communities, Customer & Commercial Services",ICT,Supplies & Services,Comp Hardware (Purch / Hire),CCS MEDIA LIMITED,08/06/2021,571.8
"Communities, Customer & Commercial Services",ICT,Supplies & Services,Comp Hardware (Purch / Hire),CCS MEDIA LIMITED,10/06/2021,495
"Communities, Customer & Commercial Services",ICT,Supplies & Services,Comp Hardware (Purch / Hire),CCS MEDIA LIMITED,28/06/2021,5105.12
"Communities, Customer & Commercial Services",ICT,Supplies & Services,Comp Hardware (Purch / Hire),CCS MEDIA LIMITED,28/06/2021,192
"Communities, Customer & Commercial Services",ICT,Supplies & Services,Comp Hardware (Purch / Hire),CCS MEDIA LIMITED,29/06/2021,635.15
"Communities, Customer & Commercial Services",ICT,Supplies & Services,Comp Hardware (Purch / Hire),CCS MEDIA LIMITED,29/06/2021,3528.3
"Communities, Customer & Commercial Services",ICT,Supplies & Services,Comp Hardware (Purch / Hire),CCS MEDIA LIMITED,29/06/2021,816.36
"Communities, Customer & Commercial Services",ICT,Supplies & Services,Comp Hardware (Purch / Hire),CCS MEDIA LIMITED,29/06/2021,304
"Communities, Customer & Commercial Services",ICT,Supplies & Services,Comp Hardware (Purch / Hire),INFORMATION DATA NETWORK SUPPLIES LTD,07/06/2021,542.9
"Communities, Customer & Commercial Services",ICT,Supplies & Services,Comp Hardware (Purch / Hire),INFORMATION DATA NETWORK SUPPLIES LTD,07/06/2021,440
"Communities, Customer & Commercial Services",ICT,Supplies & Services,Comp Hardware (Purch / Hire),INFORMATION DATA NETWORK SUPPLIES LTD,07/06/2021,5429
"Communities, Customer & Commercial Services",ICT,Supplies & Services,Comp Hardware (Purch / Hire),INFORMATION DATA NETWORK SUPPLIES LTD,24/06/2021,8400
"Communities, Customer & Commercial Services",ICT,Supplies & Services,Comp Software (Purch / Hire),Zellis UK Ltd,10/06/2021,1907
"Communities, Customer & Commercial Services",ICT,Supplies & Services,Comp Software (Purch / Hire),Zellis UK Ltd,10/06/2021,2754.56
"Communities, Customer & Commercial Services",ICT,Supplies & Services,Comp Software (Purch / Hire),Zellis UK Ltd,10/06/2021,9050
"Communities, Customer & Commercial Services",ICT,Supplies & Services,Comp Software (Purch / Hire),Zellis UK Ltd,24/06/2021,577.5
"Communities, Customer & Commercial Services",ICT,Supplies & Services,Comp Software (Purch / Hire),Zellis UK Ltd,24/06/2021,82582.97
"Communities, Customer & Commercial Services",ICT,Supplies & Services,Comp Software (Purch / Hire),PHOENIX SOFTWARE LTD,18/06/2021,3568.35
"Communities, Customer & Commercial Services",ICT,Supplies & Services,Comp Software (Purch / Hire),PHOENIX SOFTWARE LTD,09/06/2021,1607.64
"Communities, Customer & Commercial Services",ICT,Supplies & Services,Comp Software (Purch / Hire),PHOENIX SOFTWARE LTD,09/06/2021,4504.32
"Communities, Customer & Commercial Services",ICT,Supplies & Services,Comp Software (Purch / Hire),PHOENIX SOFTWARE LTD,09/06/2021,1290.48
"Communities, Customer & Commercial Services",ICT,Supplies & Services,Comp Software (Purch / Hire),PHOENIX SOFTWARE LTD,09/06/2021,3657.6
"Communities, Customer & Commercial Services",ICT,Supplies & Services,Comp Software (Purch / Hire),PHOENIX SOFTWARE LTD,09/06/2021,186
"Communities, Customer & Commercial Services",ICT,Supplies & Services,Comp Software (Purch / Hire),PHOENIX SOFTWARE LTD,09/06/2021,50424
"Communities, Customer & Commercial Services",ICT,Supplies & Services,Comp Software (Purch / Hire),PHOENIX SOFTWARE LTD,09/06/2021,6369.6
"Communities, Customer & Commercial Services",ICT,Supplies & Services,Comp Software (Purch / Hire),PHOENIX SOFTWARE LTD,09/06/2021,3857.76
"Communities, Customer & Commercial Services",ICT,Supplies & Services,Comp Software (Purch / Hire),PHOENIX SOFTWARE LTD,09/06/2021,3959.28
"Communities, Customer & Commercial Services",ICT,Supplies & Services,Comp Software (Purch / Hire),PHOENIX SOFTWARE LTD,09/06/2021,4076.4
"Communities, Customer & Commercial Services",ICT,Supplies & Services,Comp Software (Purch / Hire),PHOENIX SOFTWARE LTD,09/06/2021,8210.28
"Communities, Customer & Commercial Services",ICT,Supplies & Services,Comp Software (Purch / Hire),PHOENIX SOFTWARE LTD,09/06/2021,490.32
"Communities, Customer & Commercial Services",ICT,Supplies & Services,Comp Software (Purch / Hire),PHOENIX SOFTWARE LTD,09/06/2021,1101.6
"Communities, Customer & Commercial Services",ICT,Supplies & Services,Comp Software (Purch / Hire),PHOENIX SOFTWARE LTD,09/06/2021,3508.26
"Communities, Customer & Commercial Services",ICT,Supplies & Services,Comp Software (Purch / Hire),PHOENIX SOFTWARE LTD,09/06/2021,2992.8
"Communities, Customer & Commercial Services",ICT,Supplies & Services,Comp Software (Purch / Hire),PHOENIX SOFTWARE LTD,09/06/2021,894.36
"Communities, Customer & Commercial Services",ICT,Supplies & Services,Comp Software (Purch / Hire),PHOENIX SOFTWARE LTD,09/06/2021,24147.72
"Communities, Customer & Commercial Services",ICT,Supplies & Services,Comp Software (Purch / Hire),PHOENIX SOFTWARE LTD,09/06/2021,218102.64
"Communities, Customer & Commercial Services",ICT,Supplies & Services,Comp Software (Purch / Hire),PHOENIX SOFTWARE LTD,09/06/2021,211545.6
"Communities, Customer & Commercial Services",ICT,Supplies & Services,Comp Software (Purch / Hire),PHOENIX SOFTWARE LTD,09/06/2021,55576.32
"Communities, Customer & Commercial Services",ICT,Supplies & Services,Comp Software (Purch / Hire),PHOENIX SOFTWARE LTD,09/06/2021,1004.64
"Communities, Customer & Commercial Services",ICT,Supplies & Services,Comp Software (Purch / Hire),PHOENIX SOFTWARE LTD,09/06/2021,100089.36
"Communities, Customer & Commercial Services",ICT,Supplies & Services,Comp Software (Purch / Hire),PHOENIX SOFTWARE LTD,09/06/2021,3471.12
"Communities, Customer & Commercial Services",ICT,Supplies & Services,Comp Software (Purch / Hire),Bromcom Computers Plc,21/06/2021,475
"Communities, Customer & Commercial Services",ICT,Supplies & Services,Comp Software (Purch / Hire),Bromcom Computers Plc,21/06/2021,300
"Communities, Customer & Commercial Services",ICT,Supplies & Services,Comp Software (Purch / Hire),Bromcom Computers Plc,21/06/2021,883
"Communities, Customer & Commercial Services",ICT,Supplies & Services,Comp Software (Purch / Hire),Bromcom Computers Plc,18/06/2021,75430.29
"Communities, Customer & Commercial Services",ICT,Supplies & Services,Comp Software (Purch / Hire),V1 Limited,02/06/2021,301.34
"Communities, Customer & Commercial Services",ICT,Supplies & Services,Comp Software (Purch / Hire),ScholarPack,28/06/2021,3060
"Communities, Customer & Commercial Services",ICT,Supplies & Services,Comp Software (Purch / Hire),ScholarPack,25/06/2021,737
"Communities, Customer & Commercial Services",ICT,Supplies & Services,Comp Software (Purch / Hire),ScholarPack,25/06/2021,600
"Communities, Customer & Commercial Services",ICT,Supplies & Services,Comp Software (Purch / Hire),ScholarPack,25/06/2021,553.5
"Communities, Customer & Commercial Services",ICT,Supplies & Services,Comp Software (Purch / Hire),ScholarPack,25/06/2021,495
"Communities, Customer & Commercial Services",ICT,Supplies & Services,Comp Software (Purch / Hire),ScholarPack,25/06/2021,3362
"Communities, Customer & Commercial Services",ICT,Supplies & Services,Computer Software (Maint),Monsido Limited,04/06/2021,6542
"Communities, Customer & Commercial Services",ICT,Supplies & Services,Equipment - Purchase,COOL SERVICES LTD,14/06/2021,531.42
"Communities, Customer & Commercial Services",ICT,Supplies & Services,External Computer Use,PHOENIX SOFTWARE LTD,04/06/2021,12784
"Communities, Customer & Commercial Services",ICT,Supplies & Services,External Computer Use,PHOENIX SOFTWARE LTD,04/06/2021,24816
"Communities, Customer & Commercial Services",ICT,Supplies & Services,Mobile Phones,EE LTD AIRTIME ,15/06/2021,16318.7
"Communities, Customer & Commercial Services",ICT,Supplies & Services,Mobile Phones,EE LTD AIRTIME ,09/06/2021,2236.2
"Communities, Customer & Commercial Services",ICT,Supplies & Services,Mobile Phones,EE LTD AIRTIME ,09/06/2021,534.13
"Communities, Customer & Commercial Services",ICT,Supplies & Services,Mobile Phones,EE LTD EQUIPMENT ,01/06/2021,150
"Communities, Customer & Commercial Services",ICT,Supplies & Services,Mobile Phones,EE LTD EQUIPMENT ,02/06/2021,-400
"Communities, Customer & Commercial Services",ICT,Supplies & Services,Security Services,PHOENIX SOFTWARE LTD,29/06/2021,2058.51
"Communities, Customer & Commercial Services",ICT,Supplies & Services,Telecomms,Airband Community Internet,07/06/2021,299.99
"Communities, Customer & Commercial Services",ICT,Supplies & Services,Telecomms,Airband Community Internet,07/06/2021,299.99
"Communities, Customer & Commercial Services",ICT,Supplies & Services,Telecomms,Airband Community Internet,07/06/2021,299.99
"Communities, Customer & Commercial Services",ICT,Supplies & Services,Telecomms,Airband Community Internet,07/06/2021,294.99
"Communities, Customer & Commercial Services",ICT,Supplies & Services,Telecomms,Airband Community Internet,07/06/2021,294.99
"Communities, Customer & Commercial Services",ICT,Supplies & Services,Telecomms,Airband Community Internet,07/06/2021,294.99
"Communities, Customer & Commercial Services",ICT,Supplies & Services,Telecomms,Airband Community Internet,07/06/2021,299.99
"Communities, Customer & Commercial Services",ICT,Supplies & Services,Telecomms,Airband Community Internet,07/06/2021,294.99
"Communities, Customer & Commercial Services",ICT,Supplies & Services,Telephones,BRITISH TELECOMMUNICATIONS PLC,09/06/2021,2064.22
"Communities, Customer & Commercial Services",ICT,Supplies & Services,Telephones,CAPITA IT SERVICES LIMITED,07/06/2021,3204.64
"Communities, Customer & Commercial Services",ICT,Supplies & Services,Telephones,CAPITA IT SERVICES LIMITED,07/06/2021,3474.12
"Communities, Customer & Commercial Services",ICT,Supplies & Services,Telephones,CAPITA IT SERVICES LIMITED,28/06/2021,3959.08
"Communities, Customer & Commercial Services",ICT,Supplies & Services,Telephones,VIRGIN MEDIA BUSINESS LTD,03/06/2021,1078.01
"Communities, Customer & Commercial Services",ICT,Supplies & Services,Text Messages,PROCESS FLOWS UK LTD,08/06/2021,333.75
"Communities, Customer & Commercial Services",ICT,Supplies & Services,Text Messages,PROCESS FLOWS UK LTD,08/06/2021,228.6
"Communities, Customer & Commercial Services",Sport & Leisure,Employees,Agency Supply Costs,TOTAL CATERING SOLUTONS RECRUITMENT LTD,08/06/2021,303.6
"Communities, Customer & Commercial Services",Sport & Leisure,Employees,Agency Supply Costs,TOTAL CATERING SOLUTONS RECRUITMENT LTD,08/06/2021,303.6
"Communities, Customer & Commercial Services",Sport & Leisure,Employees,Agency Supply Costs,TOTAL CATERING SOLUTONS RECRUITMENT LTD,08/06/2021,303.6
"Communities, Customer & Commercial Services",Sport & Leisure,Employees,Agency Supply Costs,TOTAL CATERING SOLUTONS RECRUITMENT LTD,08/06/2021,303.6
"Communities, Customer & Commercial Services",Sport & Leisure,Employees,Agency Supply Costs,TOTAL CATERING SOLUTONS RECRUITMENT LTD,22/06/2021,303.6
"Communities, Customer & Commercial Services",Sport & Leisure,Employees,Agency Supply Costs,TOTAL CATERING SOLUTONS RECRUITMENT LTD,22/06/2021,303.6
"Communities, Customer & Commercial Services",Sport & Leisure,Employees,Agency Supply Costs,TOTAL CATERING SOLUTONS RECRUITMENT LTD,22/06/2021,303.6
"Communities, Customer & Commercial Services",Sport & Leisure,Employees,Agency Supply Costs,TOTAL CATERING SOLUTONS RECRUITMENT LTD,07/06/2021,129.28
"Communities, Customer & Commercial Services",Sport & Leisure,Employees,Agency Supply Costs,TOTAL CATERING SOLUTONS RECRUITMENT LTD,22/06/2021,182.16
"Communities, Customer & Commercial Services",Sport & Leisure,Employees,Agency Supply Costs,TOTAL CATERING SOLUTONS RECRUITMENT LTD,22/06/2021,303.6
"Communities, Customer & Commercial Services",Sport & Leisure,Employees,Agency Supply Costs,TOTAL CATERING SOLUTONS RECRUITMENT LTD,22/06/2021,303.6
"Communities, Customer & Commercial Services",Sport & Leisure,Employees,Agency Supply Costs,TOTAL CATERING SOLUTONS RECRUITMENT LTD,22/06/2021,242.88
"Communities, Customer & Commercial Services",Sport & Leisure,Employees,Agency Supply Costs,TOTAL CATERING SOLUTONS RECRUITMENT LTD,22/06/2021,303.6
"Communities, Customer & Commercial Services",Sport & Leisure,Employees,Agency Supply Costs,TOTAL CATERING SOLUTONS RECRUITMENT LTD,22/06/2021,303.6
"Communities, Customer & Commercial Services",Sport & Leisure,Employees,Agency Supply Costs,TOTAL CATERING SOLUTONS RECRUITMENT LTD,08/06/2021,242.88
"Communities, Customer & Commercial Services",Sport & Leisure,Employees,Agency Supply Costs,TOTAL CATERING SOLUTONS RECRUITMENT LTD,08/06/2021,303.6
"Communities, Customer & Commercial Services",Sport & Leisure,Employees,Agency Supply Costs,TOTAL CATERING SOLUTONS RECRUITMENT LTD,08/06/2021,303.6
"Communities, Customer & Commercial Services",Sport & Leisure,Employees,Agency Supply Costs,TOTAL CATERING SOLUTONS RECRUITMENT LTD,07/06/2021,242.88
"Communities, Customer & Commercial Services",Sport & Leisure,Employees,Agency Supply Costs,TOTAL CATERING SOLUTONS RECRUITMENT LTD,07/06/2021,242.88
"Communities, Customer & Commercial Services",Sport & Leisure,Employees,Agency Supply Costs,TOTAL CATERING SOLUTONS RECRUITMENT LTD,07/06/2021,242.88
"Communities, Customer & Commercial Services",Sport & Leisure,Premises-Related Expenditure,Clean Mats & Toilet Requisites,Border Janitorial Supplies Limited,28/06/2021,130
"Communities, Customer & Commercial Services",Sport & Leisure,Premises-Related Expenditure,Clean Mats & Toilet Requisites,Border Janitorial Supplies Limited,28/06/2021,104.16
"Communities, Customer & Commercial Services",Sport & Leisure,Premises-Related Expenditure,Clean Mats & Toilet Requisites,Border Janitorial Supplies Limited,28/06/2021,104.45
"Communities, Customer & Commercial Services",Sport & Leisure,Premises-Related Expenditure,Clean Mats & Toilet Requisites,Border Janitorial Supplies Limited,28/06/2021,137.12
"Communities, Customer & Commercial Services",Sport & Leisure,Premises-Related Expenditure,Clean Mats & Toilet Requisites,Border Janitorial Supplies Limited,28/06/2021,121.22
"Communities, Customer & Commercial Services",Sport & Leisure,Premises-Related Expenditure,Clean Mats & Toilet Requisites,Border Janitorial Supplies Limited,28/06/2021,132.22
"Communities, Customer & Commercial Services",Sport & Leisure,Premises-Related Expenditure,Clean Mats & Toilet Requisites,Border Janitorial Supplies Limited,22/06/2021,103.76
"Communities, Customer & Commercial Services",Sport & Leisure,Premises-Related Expenditure,Clean Mats & Toilet Requisites,Border Janitorial Supplies Limited,16/06/2021,203.03
"Communities, Customer & Commercial Services",Sport & Leisure,Premises-Related Expenditure,Clean Mats & Toilet Requisites,Border Janitorial Supplies Limited,30/06/2021,198.46
"Communities, Customer & Commercial Services",Sport & Leisure,Premises-Related Expenditure,Clean Mats & Toilet Requisites,Border Janitorial Supplies Limited,16/06/2021,182.72
"Communities, Customer & Commercial Services",Sport & Leisure,Premises-Related Expenditure,Clean Mats & Toilet Requisites,Border Janitorial Supplies Limited,16/06/2021,103.56
"Communities, Customer & Commercial Services",Sport & Leisure,Premises-Related Expenditure,Clean Mats & Toilet Requisites,Border Janitorial Supplies Limited,16/06/2021,513.95
"Communities, Customer & Commercial Services",Sport & Leisure,Premises-Related Expenditure,Clean Mats & Toilet Requisites,Border Janitorial Supplies Limited,21/06/2021,178.59
"Communities, Customer & Commercial Services",Sport & Leisure,Premises-Related Expenditure,Clean Mats & Toilet Requisites,Border Janitorial Supplies Limited,22/06/2021,148.35
"Communities, Customer & Commercial Services",Sport & Leisure,Premises-Related Expenditure,Clean Mats & Toilet Requisites,Border Janitorial Supplies Limited,24/06/2021,137.12
"Communities, Customer & Commercial Services",Sport & Leisure,Premises-Related Expenditure,Clean Mats & Toilet Requisites,Border Janitorial Supplies Limited,21/06/2021,195.91
"Communities, Customer & Commercial Services",Sport & Leisure,Premises-Related Expenditure,Clean Mats & Toilet Requisites,Border Janitorial Supplies Limited,21/06/2021,287.46
"Communities, Customer & Commercial Services",Sport & Leisure,Premises-Related Expenditure,Clean Mats & Toilet Requisites,Border Janitorial Supplies Limited,07/06/2021,128.92
"Communities, Customer & Commercial Services",Sport & Leisure,Premises-Related Expenditure,Clean Mats & Toilet Requisites,Border Janitorial Supplies Limited,07/06/2021,189.77
"Communities, Customer & Commercial Services",Sport & Leisure,Premises-Related Expenditure,Clean Mats & Toilet Requisites,Border Janitorial Supplies Limited,30/06/2021,143.36
"Communities, Customer & Commercial Services",Sport & Leisure,Premises-Related Expenditure,Clean Mats & Toilet Requisites,Border Janitorial Supplies Limited,24/06/2021,121.22
"Communities, Customer & Commercial Services",Sport & Leisure,Premises-Related Expenditure,Clean Mats & Toilet Requisites,Border Janitorial Supplies Limited,24/06/2021,108.38
"Communities, Customer & Commercial Services",Sport & Leisure,Premises-Related Expenditure,Clean Mats & Toilet Requisites,Border Janitorial Supplies Limited,24/06/2021,121.22
"Communities, Customer & Commercial Services",Sport & Leisure,Premises-Related Expenditure,Clean Mats & Toilet Requisites,Border Janitorial Supplies Limited,24/06/2021,130
"Communities, Customer & Commercial Services",Sport & Leisure,Premises-Related Expenditure,Clean Mats & Toilet Requisites,Border Janitorial Supplies Limited,30/06/2021,166.62
"Communities, Customer & Commercial Services",Sport & Leisure,Premises-Related Expenditure,Clean Mats & Toilet Requisites,Border Janitorial Supplies Limited,24/06/2021,121.22
"Communities, Customer & Commercial Services",Sport & Leisure,Premises-Related Expenditure,Clean Mats & Toilet Requisites,Border Janitorial Supplies Limited,24/06/2021,121.22
"Communities, Customer & Commercial Services",Sport & Leisure,Premises-Related Expenditure,Clean Mats & Toilet Requisites,Border Janitorial Supplies Limited,24/06/2021,134.44
"Communities, Customer & Commercial Services",Sport & Leisure,Premises-Related Expenditure,Clean Mats & Toilet Requisites,Border Janitorial Supplies Limited,24/06/2021,119.81
"Communities, Customer & Commercial Services",Sport & Leisure,Premises-Related Expenditure,Clean Mats & Toilet Requisites,Border Janitorial Supplies Limited,24/06/2021,105.32
"Communities, Customer & Commercial Services",Sport & Leisure,Premises-Related Expenditure,Clean Mats & Toilet Requisites,Border Janitorial Supplies Limited,24/06/2021,131.06
"Communities, Customer & Commercial Services",Sport & Leisure,Premises-Related Expenditure,Clean Mats & Toilet Requisites,Border Janitorial Supplies Limited,24/06/2021,130.22
"Communities, Customer & Commercial Services",Sport & Leisure,Premises-Related Expenditure,Clean Mats & Toilet Requisites,Border Janitorial Supplies Limited,01/06/2021,105.32
"Communities, Customer & Commercial Services",Sport & Leisure,Premises-Related Expenditure,Clean Mats & Toilet Requisites,Border Janitorial Supplies Limited,24/06/2021,158.72
"Communities, Customer & Commercial Services",Sport & Leisure,Premises-Related Expenditure,Clean Mats & Toilet Requisites,Border Janitorial Supplies Limited,24/06/2021,121.22
"Communities, Customer & Commercial Services",Sport & Leisure,Premises-Related Expenditure,Clean Mats & Toilet Requisites,Border Janitorial Supplies Limited,24/06/2021,103.22
"Communities, Customer & Commercial Services",Sport & Leisure,Premises-Related Expenditure,Clean Mats & Toilet Requisites,Border Janitorial Supplies Limited,24/06/2021,105.32
"Communities, Customer & Commercial Services",Sport & Leisure,Premises-Related Expenditure,Clean Mats & Toilet Requisites,Border Janitorial Supplies Limited,24/06/2021,289.42
"Communities, Customer & Commercial Services",Sport & Leisure,Premises-Related Expenditure,Clean Mats & Toilet Requisites,Border Janitorial Supplies Limited,24/06/2021,321.13
"Communities, Customer & Commercial Services",Sport & Leisure,Premises-Related Expenditure,Clean Mats & Toilet Requisites,Border Janitorial Supplies Limited,24/06/2021,228.84
"Communities, Customer & Commercial Services",Sport & Leisure,Premises-Related Expenditure,Clean Mats & Toilet Requisites,Border Janitorial Supplies Limited,28/06/2021,128.38
"Communities, Customer & Commercial Services",Sport & Leisure,Premises-Related Expenditure,Clean Mats & Toilet Requisites,Border Janitorial Supplies Limited,30/06/2021,115.3
"Communities, Customer & Commercial Services",Sport & Leisure,Premises-Related Expenditure,Clean Mats & Toilet Requisites,Border Janitorial Supplies Limited,01/06/2021,105.32
"Communities, Customer & Commercial Services",Sport & Leisure,Premises-Related Expenditure,Clean Mats & Toilet Requisites,Border Janitorial Supplies Limited,01/06/2021,121.22
"Communities, Customer & Commercial Services",Sport & Leisure,Premises-Related Expenditure,Clean Mats & Toilet Requisites,Border Janitorial Supplies Limited,28/06/2021,186.22
"Communities, Customer & Commercial Services",Sport & Leisure,Premises-Related Expenditure,Clean Mats & Toilet Requisites,Border Janitorial Supplies Limited,24/06/2021,323
"Communities, Customer & Commercial Services",Sport & Leisure,Premises-Related Expenditure,Clean Mats & Toilet Requisites,Border Janitorial Supplies Limited,24/06/2021,187.78
"Communities, Customer & Commercial Services",Sport & Leisure,Premises-Related Expenditure,Clean Mats & Toilet Requisites,Border Janitorial Supplies Limited,24/06/2021,169.92
"Communities, Customer & Commercial Services",Sport & Leisure,Premises-Related Expenditure,Clean Mats & Toilet Requisites,Border Janitorial Supplies Limited,24/06/2021,239.78
"Communities, Customer & Commercial Services",Sport & Leisure,Premises-Related Expenditure,Clean Mats & Toilet Requisites,Border Janitorial Supplies Limited,24/06/2021,125.84
"Communities, Customer & Commercial Services",Sport & Leisure,Premises-Related Expenditure,Clean Mats & Toilet Requisites,THE CLEAN MACHINE DIRECT LTD,24/06/2021,218.85
"Communities, Customer & Commercial Services",Sport & Leisure,Premises-Related Expenditure,Clean Mats & Toilet Requisites,TOTAL CATERING SOLUTONS RECRUITMENT LTD,28/06/2021,1325.12
"Communities, Customer & Commercial Services",Sport & Leisure,Premises-Related Expenditure,Clean Mats & Toilet Requisites,TOTAL CATERING SOLUTONS RECRUITMENT LTD,28/06/2021,622.16
"Communities, Customer & Commercial Services",Sport & Leisure,Premises-Related Expenditure,R&M -Building Other,TAYLORS MECHANICAL H & P SERVICES LTD,21/06/2021,131.25
"Communities, Customer & Commercial Services",Sport & Leisure,Premises-Related Expenditure,R&M -Building Other,TAYLORS MECHANICAL H & P SERVICES LTD,21/06/2021,131.25
"Communities, Customer & Commercial Services",Sport & Leisure,Premises-Related Expenditure,R&M -Building Other,JCE & SONS LTD,30/06/2021,123
"Communities, Customer & Commercial Services",Sport & Leisure,Premises-Related Expenditure,R&M Fixed Plant Other,HOOD AIRPORT & ICE LTD,28/06/2021,1175.3
"Communities, Customer & Commercial Services",Sport & Leisure,Premises-Related Expenditure,R&M Fixed Plant Other,HOOD AIRPORT & ICE LTD,28/06/2021,2300
"Communities, Customer & Commercial Services",Sport & Leisure,Premises-Related Expenditure,R&M Fixed Plant Other,SAWMATIC,28/06/2021,118.2
"Communities, Customer & Commercial Services",Sport & Leisure,Premises-Related Expenditure,Swimming Pool Chemicals,BRENNTAG UK LIMITED,28/06/2021,744.6
"Communities, Customer & Commercial Services",Sport & Leisure,Supplies & Services,Carriage/Delivery Charge,Splash About International Limited,29/06/2021,208.2
"Communities, Customer & Commercial Services",Sport & Leisure,Supplies & Services,Chemicals/Cleaning Products,BRENNTAG UK LIMITED,02/06/2021,446.76
"Communities, Customer & Commercial Services",Sport & Leisure,Supplies & Services,Chemicals/Cleaning Products,BRENNTAG UK LIMITED,07/06/2021,109.76
"Communities, Customer & Commercial Services",Sport & Leisure,Supplies & Services,Chemicals/Cleaning Products,BRENNTAG UK LIMITED,07/06/2021,640
"Communities, Customer & Commercial Services",Sport & Leisure,Supplies & Services,Chemicals/Cleaning Products,BRENNTAG UK LIMITED,02/06/2021,297.84
"Communities, Customer & Commercial Services",Sport & Leisure,Supplies & Services,Chemicals/Cleaning Products,BRENNTAG UK LIMITED,02/06/2021,309
"Communities, Customer & Commercial Services",Sport & Leisure,Supplies & Services,Chemicals/Cleaning Products,BRENNTAG UK LIMITED,07/06/2021,163.16
"Communities, Customer & Commercial Services",Sport & Leisure,Supplies & Services,Chemicals/Cleaning Products,BRENNTAG UK LIMITED,28/06/2021,524.76
"Communities, Customer & Commercial Services",Sport & Leisure,Supplies & Services,Chemicals/Cleaning Products,J P L LTD,07/06/2021,216
"Communities, Customer & Commercial Services",Sport & Leisure,Supplies & Services,Computer Hardware (Maint),CIVICA UK LIMITED ,30/06/2021,175
"Communities, Customer & Commercial Services",Sport & Leisure,Supplies & Services,Computer Hardware (Maint),CIVICA UK LIMITED ,30/06/2021,175
"Communities, Customer & Commercial Services",Sport & Leisure,Supplies & Services,Computer Hardware (Maint),CIVICA UK LIMITED ,30/06/2021,175
"Communities, Customer & Commercial Services",Sport & Leisure,Supplies & Services,Computer Hardware (Maint),CIVICA UK LIMITED ,30/06/2021,175
"Communities, Customer & Commercial Services",Sport & Leisure,Supplies & Services,Crockery/Hardware/Light Equip,Vegware,21/06/2021,270.39
"Communities, Customer & Commercial Services",Sport & Leisure,Supplies & Services,Crockery/Hardware/Light Equip,Vegware,16/06/2021,204.04
"Communities, Customer & Commercial Services",Sport & Leisure,Supplies & Services,Crockery/Hardware/Light Equip,Vegware,16/06/2021,101.29
"Communities, Customer & Commercial Services",Sport & Leisure,Supplies & Services,Crockery/Hardware/Light Equip,Vegware,22/06/2021,242.58
"Communities, Customer & Commercial Services",Sport & Leisure,Supplies & Services,Crockery/Hardware/Light Equip,Vegware,07/06/2021,245.73
"Communities, Customer & Commercial Services",Sport & Leisure,Supplies & Services,EEC Whole Milk,J DAIRIES,23/06/2021,1514.97
"Communities, Customer & Commercial Services",Sport & Leisure,Supplies & Services,EEC Whole Milk,J DAIRIES,23/06/2021,790.86
"Communities, Customer & Commercial Services",Sport & Leisure,Supplies & Services,EEC Whole Milk,J DAIRIES,07/06/2021,1522.32
"Communities, Customer & Commercial Services",Sport & Leisure,Supplies & Services,EEC Whole Milk,J DAIRIES,07/06/2021,797.88
"Communities, Customer & Commercial Services",Sport & Leisure,Supplies & Services,EEC Whole Milk,J DAIRIES,07/06/2021,790.86
"Communities, Customer & Commercial Services",Sport & Leisure,Supplies & Services,EEC Whole Milk,J DAIRIES,07/06/2021,1506.17
"Communities, Customer & Commercial Services",Sport & Leisure,Supplies & Services,EEC Whole Milk,J DAIRIES,21/06/2021,786.98
"Communities, Customer & Commercial Services",Sport & Leisure,Supplies & Services,EEC Whole Milk,J DAIRIES,21/06/2021,1559.06
"Communities, Customer & Commercial Services",Sport & Leisure,Supplies & Services,EEC Whole Milk,J DAIRIES,30/06/2021,797.3
"Communities, Customer & Commercial Services",Sport & Leisure,Supplies & Services,EEC Whole Milk,J DAIRIES,30/06/2021,1507.86
"Communities, Customer & Commercial Services",Sport & Leisure,Supplies & Services,Equipment - Hire,OAKLEYS LTD,02/06/2021,329.13
"Communities, Customer & Commercial Services",Sport & Leisure,Supplies & Services,Equipment - Hire,OAKLEYS LTD,02/06/2021,329.13
"Communities, Customer & Commercial Services",Sport & Leisure,Supplies & Services,Equipment - Hire,Ezy Lockers,28/06/2021,1961.04
"Communities, Customer & Commercial Services",Sport & Leisure,Supplies & Services,Equipment - Purchase,GRANVILLE CONSTRUCTION & MAINTENANCE LTD,25/06/2021,169.63
"Communities, Customer & Commercial Services",Sport & Leisure,Supplies & Services,Equipment - Purchase,A3 MACHINES LIMITED,21/06/2021,525
"Communities, Customer & Commercial Services",Sport & Leisure,Supplies & Services,Equipment - Purchase,CMW Equipment Holdings Limited,16/06/2021,159.95
"Communities, Customer & Commercial Services",Sport & Leisure,Supplies & Services,Equipment - Purchase,Wrekin Pneumatics(Telford) Ltd,10/06/2021,450
"Communities, Customer & Commercial Services",Sport & Leisure,Supplies & Services,First Aid,SP SERVICES (UK) LTD,16/06/2021,255
"Communities, Customer & Commercial Services",Sport & Leisure,Supplies & Services,Flex Charges,Verifone UK Limited,07/06/2021,4200
"Communities, Customer & Commercial Services",Sport & Leisure,Supplies & Services,Flex Charges,Cascade3D,04/06/2021,8773
"Communities, Customer & Commercial Services",Sport & Leisure,Supplies & Services,Holidays & Outings,PLANGLOW LTD,28/06/2021,301.16
"Communities, Customer & Commercial Services",Sport & Leisure,Supplies & Services,Items For Resale,Splash About International Limited,16/06/2021,118.01
"Communities, Customer & Commercial Services",Sport & Leisure,Supplies & Services,Items For Resale,Splash About International Limited,29/06/2021,1169.35
"Communities, Customer & Commercial Services",Sport & Leisure,Supplies & Services,Items For Resale,Splash About International Limited,25/06/2021,109.5
"Communities, Customer & Commercial Services",Sport & Leisure,Supplies & Services,Licences,L M Fitness UK Ltd,10/06/2021,801.76
"Communities, Customer & Commercial Services",Sport & Leisure,Supplies & Services,Other Materials,BRENNTAG UK LIMITED,22/06/2021,600
"Communities, Customer & Commercial Services",Sport & Leisure,Supplies & Services,Other Materials,BRENNTAG UK LIMITED,22/06/2021,106.52
"Communities, Customer & Commercial Services",Sport & Leisure,Supplies & Services,Other Materials,CORPORATE TOGS LTD,23/06/2021,109.5
"Communities, Customer & Commercial Services",Sport & Leisure,Supplies & Services,Other Materials,CORPORATE TOGS LTD,23/06/2021,109.5
"Communities, Customer & Commercial Services",Sport & Leisure,Supplies & Services,Other Materials,PROVAC CLEANING SUPPLIES LTD,08/06/2021,119.6
"Communities, Customer & Commercial Services",Sport & Leisure,Supplies & Services,Other Materials,Ecoprod Technique Ltd,30/06/2021,159.6
"Communities, Customer & Commercial Services",Sport & Leisure,Supplies & Services,Protective Clothing,CORPORATE TOGS LTD,07/06/2021,370.75
"Communities, Customer & Commercial Services",Sport & Leisure,Supplies & Services,Protective Clothing,IMAGE@WORK LTD,16/06/2021,274.95
"Communities, Customer & Commercial Services",Sport & Leisure,Supplies & Services,Protective Clothing,IMAGE@WORK LTD,08/06/2021,299.02
"Communities, Customer & Commercial Services",Sport & Leisure,Supplies & Services,Provisions,BIKOLD,10/06/2021,279.28
"Communities, Customer & Commercial Services",Sport & Leisure,Supplies & Services,Provisions,BIKOLD,10/06/2021,371.52
"Communities, Customer & Commercial Services",Sport & Leisure,Supplies & Services,Provisions,BIKOLD,10/06/2021,159.39
"Communities, Customer & Commercial Services",Sport & Leisure,Supplies & Services,Provisions,BIKOLD,10/06/2021,160.15
"Communities, Customer & Commercial Services",Sport & Leisure,Supplies & Services,Provisions,BIKOLD,10/06/2021,119.05
"Communities, Customer & Commercial Services",Sport & Leisure,Supplies & Services,Provisions,BIKOLD,10/06/2021,231.44
"Communities, Customer & Commercial Services",Sport & Leisure,Supplies & Services,Provisions,BIKOLD,10/06/2021,136.54
"Communities, Customer & Commercial Services",Sport & Leisure,Supplies & Services,Provisions,BIKOLD,10/06/2021,129.7
"Communities, Customer & Commercial Services",Sport & Leisure,Supplies & Services,Provisions,BIKOLD,24/06/2021,421.42
"Communities, Customer & Commercial Services",Sport & Leisure,Supplies & Services,Provisions,BIKOLD,24/06/2021,827.71
"Communities, Customer & Commercial Services",Sport & Leisure,Supplies & Services,Provisions,BIKOLD,24/06/2021,414.63
"Communities, Customer & Commercial Services",Sport & Leisure,Supplies & Services,Provisions,BIKOLD,24/06/2021,157.05
"Communities, Customer & Commercial Services",Sport & Leisure,Supplies & Services,Provisions,BIKOLD,24/06/2021,125.94
"Communities, Customer & Commercial Services",Sport & Leisure,Supplies & Services,Provisions,BIKOLD,24/06/2021,165.47
"Communities, Customer & Commercial Services",Sport & Leisure,Supplies & Services,Provisions,BIKOLD,24/06/2021,235.99
"Communities, Customer & Commercial Services",Sport & Leisure,Supplies & Services,Provisions,BIKOLD,24/06/2021,108.61
"Communities, Customer & Commercial Services",Sport & Leisure,Supplies & Services,Provisions,BIKOLD,24/06/2021,122.71
"Communities, Customer & Commercial Services",Sport & Leisure,Supplies & Services,Provisions,BIKOLD,24/06/2021,135.32
"Communities, Customer & Commercial Services",Sport & Leisure,Supplies & Services,Provisions,BIKOLD,24/06/2021,133.27
"Communities, Customer & Commercial Services",Sport & Leisure,Supplies & Services,Provisions,BIKOLD,24/06/2021,280.23
"Communities, Customer & Commercial Services",Sport & Leisure,Supplies & Services,Provisions,BIKOLD,24/06/2021,112.92
"Communities, Customer & Commercial Services",Sport & Leisure,Supplies & Services,Provisions,BIKOLD,24/06/2021,191.52
"Communities, Customer & Commercial Services",Sport & Leisure,Supplies & Services,Provisions,BIKOLD,24/06/2021,100.9
"Communities, Customer & Commercial Services",Sport & Leisure,Supplies & Services,Provisions,BIKOLD,24/06/2021,102.42
"Communities, Customer & Commercial Services",Sport & Leisure,Supplies & Services,Provisions,BIKOLD,24/06/2021,115.48
"Communities, Customer & Commercial Services",Sport & Leisure,Supplies & Services,Provisions,BIKOLD,24/06/2021,305.13
"Communities, Customer & Commercial Services",Sport & Leisure,Supplies & Services,Provisions,BIKOLD,10/06/2021,210.26
"Communities, Customer & Commercial Services",Sport & Leisure,Supplies & Services,Provisions,BIKOLD,10/06/2021,141.27
"Communities, Customer & Commercial Services",Sport & Leisure,Supplies & Services,Provisions,BIKOLD,10/06/2021,408.18
"Communities, Customer & Commercial Services",Sport & Leisure,Supplies & Services,Provisions,BIKOLD,24/06/2021,289.72
"Communities, Customer & Commercial Services",Sport & Leisure,Supplies & Services,Provisions,BIKOLD,24/06/2021,172.19
"Communities, Customer & Commercial Services",Sport & Leisure,Supplies & Services,Provisions,BIKOLD,24/06/2021,277.72
"Communities, Customer & Commercial Services",Sport & Leisure,Supplies & Services,Provisions,BIKOLD,17/06/2021,219.02
"Communities, Customer & Commercial Services",Sport & Leisure,Supplies & Services,Provisions,BIKOLD,17/06/2021,125.13
"Communities, Customer & Commercial Services",Sport & Leisure,Supplies & Services,Provisions,BIKOLD,17/06/2021,197.64
"Communities, Customer & Commercial Services",Sport & Leisure,Supplies & Services,Provisions,BIKOLD,10/06/2021,135.71
"Communities, Customer & Commercial Services",Sport & Leisure,Supplies & Services,Provisions,BIKOLD,10/06/2021,159.7
"Communities, Customer & Commercial Services",Sport & Leisure,Supplies & Services,Provisions,BIKOLD,10/06/2021,480.03
"Communities, Customer & Commercial Services",Sport & Leisure,Supplies & Services,Provisions,BIKOLD,17/06/2021,316.07
"Communities, Customer & Commercial Services",Sport & Leisure,Supplies & Services,Provisions,BIKOLD,17/06/2021,144.59
"Communities, Customer & Commercial Services",Sport & Leisure,Supplies & Services,Provisions,BIKOLD,17/06/2021,119.77
"Communities, Customer & Commercial Services",Sport & Leisure,Supplies & Services,Provisions,BIKOLD,17/06/2021,308.76
"Communities, Customer & Commercial Services",Sport & Leisure,Supplies & Services,Provisions,BIKOLD,17/06/2021,748.9
"Communities, Customer & Commercial Services",Sport & Leisure,Supplies & Services,Provisions,BIKOLD,17/06/2021,422.98
"Communities, Customer & Commercial Services",Sport & Leisure,Supplies & Services,Provisions,BIKOLD,17/06/2021,258.17
"Communities, Customer & Commercial Services",Sport & Leisure,Supplies & Services,Provisions,BIKOLD,17/06/2021,124.16
"Communities, Customer & Commercial Services",Sport & Leisure,Supplies & Services,Provisions,BIKOLD,17/06/2021,172.81
"Communities, Customer & Commercial Services",Sport & Leisure,Supplies & Services,Provisions,BIKOLD,17/06/2021,254.7
"Communities, Customer & Commercial Services",Sport & Leisure,Supplies & Services,Provisions,BIKOLD,17/06/2021,274.82
"Communities, Customer & Commercial Services",Sport & Leisure,Supplies & Services,Provisions,BIKOLD,17/06/2021,207.08
"Communities, Customer & Commercial Services",Sport & Leisure,Supplies & Services,Provisions,BIKOLD,17/06/2021,131.45
"Communities, Customer & Commercial Services",Sport & Leisure,Supplies & Services,Provisions,BIKOLD,17/06/2021,414.75
"Communities, Customer & Commercial Services",Sport & Leisure,Supplies & Services,Provisions,BIKOLD,17/06/2021,172.24
"Communities, Customer & Commercial Services",Sport & Leisure,Supplies & Services,Provisions,BIKOLD,17/06/2021,230.86
"Communities, Customer & Commercial Services",Sport & Leisure,Supplies & Services,Provisions,BIKOLD,17/06/2021,159.6
"Communities, Customer & Commercial Services",Sport & Leisure,Supplies & Services,Provisions,BIKOLD,17/06/2021,149.29
"Communities, Customer & Commercial Services",Sport & Leisure,Supplies & Services,Provisions,BIKOLD,10/06/2021,145.39
"Communities, Customer & Commercial Services",Sport & Leisure,Supplies & Services,Provisions,BIKOLD,10/06/2021,358.42
"Communities, Customer & Commercial Services",Sport & Leisure,Supplies & Services,Provisions,BIKOLD,10/06/2021,215.61
"Communities, Customer & Commercial Services",Sport & Leisure,Supplies & Services,Provisions,BIKOLD,10/06/2021,219.11
"Communities, Customer & Commercial Services",Sport & Leisure,Supplies & Services,Provisions,BIKOLD,17/06/2021,125.87
"Communities, Customer & Commercial Services",Sport & Leisure,Supplies & Services,Provisions,BIKOLD,17/06/2021,655.39
"Communities, Customer & Commercial Services",Sport & Leisure,Supplies & Services,Provisions,BIKOLD,10/06/2021,214.24
"Communities, Customer & Commercial Services",Sport & Leisure,Supplies & Services,Provisions,BIKOLD,10/06/2021,132.92
"Communities, Customer & Commercial Services",Sport & Leisure,Supplies & Services,Provisions,BIKOLD,10/06/2021,208.44
"Communities, Customer & Commercial Services",Sport & Leisure,Supplies & Services,Provisions,BIKOLD,10/06/2021,314.1
"Communities, Customer & Commercial Services",Sport & Leisure,Supplies & Services,Provisions,BIKOLD,10/06/2021,280.05
"Communities, Customer & Commercial Services",Sport & Leisure,Supplies & Services,Provisions,BIKOLD,10/06/2021,176.7
"Communities, Customer & Commercial Services",Sport & Leisure,Supplies & Services,Provisions,BIKOLD,10/06/2021,643.63
"Communities, Customer & Commercial Services",Sport & Leisure,Supplies & Services,Provisions,BIKOLD,10/06/2021,282.39
"Communities, Customer & Commercial Services",Sport & Leisure,Supplies & Services,Provisions,BIKOLD,10/06/2021,108.23
"Communities, Customer & Commercial Services",Sport & Leisure,Supplies & Services,Provisions,BIKOLD,10/06/2021,152.65
"Communities, Customer & Commercial Services",Sport & Leisure,Supplies & Services,Provisions,BIKOLD,10/06/2021,319.65
"Communities, Customer & Commercial Services",Sport & Leisure,Supplies & Services,Provisions,BIKOLD,10/06/2021,525.9
"Communities, Customer & Commercial Services",Sport & Leisure,Supplies & Services,Provisions,BIKOLD,24/06/2021,123.14
"Communities, Customer & Commercial Services",Sport & Leisure,Supplies & Services,Provisions,BIKOLD,24/06/2021,235.97
"Communities, Customer & Commercial Services",Sport & Leisure,Supplies & Services,Provisions,BIKOLD,24/06/2021,156.11
"Communities, Customer & Commercial Services",Sport & Leisure,Supplies & Services,Provisions,BIKOLD,10/06/2021,151.5
"Communities, Customer & Commercial Services",Sport & Leisure,Supplies & Services,Provisions,BIKOLD,10/06/2021,237.06
"Communities, Customer & Commercial Services",Sport & Leisure,Supplies & Services,Provisions,BIKOLD,10/06/2021,190.72
"Communities, Customer & Commercial Services",Sport & Leisure,Supplies & Services,Provisions,BIKOLD,24/06/2021,322.52
"Communities, Customer & Commercial Services",Sport & Leisure,Supplies & Services,Provisions,BIKOLD,24/06/2021,256.33
"Communities, Customer & Commercial Services",Sport & Leisure,Supplies & Services,Provisions,BIKOLD,24/06/2021,217.8
"Communities, Customer & Commercial Services",Sport & Leisure,Supplies & Services,Provisions,BIKOLD,24/06/2021,133.64
"Communities, Customer & Commercial Services",Sport & Leisure,Supplies & Services,Provisions,BIKOLD,24/06/2021,128.79
"Communities, Customer & Commercial Services",Sport & Leisure,Supplies & Services,Provisions,BIKOLD,24/06/2021,174.81
"Communities, Customer & Commercial Services",Sport & Leisure,Supplies & Services,Provisions,BIKOLD,24/06/2021,204.65
"Communities, Customer & Commercial Services",Sport & Leisure,Supplies & Services,Provisions,BIKOLD,24/06/2021,158.51
"Communities, Customer & Commercial Services",Sport & Leisure,Supplies & Services,Provisions,BIKOLD,24/06/2021,276.65
"Communities, Customer & Commercial Services",Sport & Leisure,Supplies & Services,Provisions,BIKOLD,24/06/2021,147.4
"Communities, Customer & Commercial Services",Sport & Leisure,Supplies & Services,Provisions,BIKOLD,24/06/2021,150.42
"Communities, Customer & Commercial Services",Sport & Leisure,Supplies & Services,Provisions,BIKOLD,24/06/2021,296.7
"Communities, Customer & Commercial Services",Sport & Leisure,Supplies & Services,Provisions,BIKOLD,24/06/2021,274.71
"Communities, Customer & Commercial Services",Sport & Leisure,Supplies & Services,Provisions,BIKOLD,24/06/2021,372.22
"Communities, Customer & Commercial Services",Sport & Leisure,Supplies & Services,Provisions,BIKOLD,24/06/2021,475.88
"Communities, Customer & Commercial Services",Sport & Leisure,Supplies & Services,Provisions,BIKOLD,24/06/2021,279.14
"Communities, Customer & Commercial Services",Sport & Leisure,Supplies & Services,Provisions,BIKOLD,24/06/2021,104.68
"Communities, Customer & Commercial Services",Sport & Leisure,Supplies & Services,Provisions,BIKOLD,24/06/2021,109.21
"Communities, Customer & Commercial Services",Sport & Leisure,Supplies & Services,Provisions,BIKOLD,24/06/2021,128.32
"Communities, Customer & Commercial Services",Sport & Leisure,Supplies & Services,Provisions,BIKOLD,24/06/2021,301.67
"Communities, Customer & Commercial Services",Sport & Leisure,Supplies & Services,Provisions,BIKOLD,24/06/2021,384.1
"Communities, Customer & Commercial Services",Sport & Leisure,Supplies & Services,Provisions,BIKOLD,24/06/2021,226.52
"Communities, Customer & Commercial Services",Sport & Leisure,Supplies & Services,Provisions,BIKOLD,24/06/2021,192.99
"Communities, Customer & Commercial Services",Sport & Leisure,Supplies & Services,Provisions,BIKOLD,24/06/2021,201.98
"Communities, Customer & Commercial Services",Sport & Leisure,Supplies & Services,Provisions,BIKOLD,24/06/2021,124.62
"Communities, Customer & Commercial Services",Sport & Leisure,Supplies & Services,Provisions,BIKOLD,24/06/2021,428.4
"Communities, Customer & Commercial Services",Sport & Leisure,Supplies & Services,Provisions,BIKOLD,24/06/2021,304.42
"Communities, Customer & Commercial Services",Sport & Leisure,Supplies & Services,Provisions,BIKOLD,24/06/2021,155.6
"Communities, Customer & Commercial Services",Sport & Leisure,Supplies & Services,Provisions,BIKOLD,24/06/2021,266.7
"Communities, Customer & Commercial Services",Sport & Leisure,Supplies & Services,Provisions,BIKOLD,24/06/2021,113.26
"Communities, Customer & Commercial Services",Sport & Leisure,Supplies & Services,Provisions,BIKOLD,24/06/2021,123.62
"Communities, Customer & Commercial Services",Sport & Leisure,Supplies & Services,Provisions,BIKOLD,24/06/2021,146.97
"Communities, Customer & Commercial Services",Sport & Leisure,Supplies & Services,Provisions,BIKOLD,24/06/2021,230.2
"Communities, Customer & Commercial Services",Sport & Leisure,Supplies & Services,Provisions,BIKOLD,24/06/2021,129.14
"Communities, Customer & Commercial Services",Sport & Leisure,Supplies & Services,Provisions,BIKOLD,24/06/2021,215.53
"Communities, Customer & Commercial Services",Sport & Leisure,Supplies & Services,Provisions,BIKOLD,24/06/2021,101.3
"Communities, Customer & Commercial Services",Sport & Leisure,Supplies & Services,Provisions,BIKOLD,24/06/2021,115.34
"Communities, Customer & Commercial Services",Sport & Leisure,Supplies & Services,Provisions,BIKOLD,24/06/2021,124.64
"Communities, Customer & Commercial Services",Sport & Leisure,Supplies & Services,Provisions,BIKOLD,24/06/2021,143.79
"Communities, Customer & Commercial Services",Sport & Leisure,Supplies & Services,Provisions,BIKOLD,24/06/2021,386.76
"Communities, Customer & Commercial Services",Sport & Leisure,Supplies & Services,Provisions,BIKOLD,24/06/2021,146.76
"Communities, Customer & Commercial Services",Sport & Leisure,Supplies & Services,Provisions,BIKOLD,24/06/2021,213.63
"Communities, Customer & Commercial Services",Sport & Leisure,Supplies & Services,Provisions,BIKOLD,24/06/2021,149.59
"Communities, Customer & Commercial Services",Sport & Leisure,Supplies & Services,Provisions,BIKOLD,24/06/2021,115.91
"Communities, Customer & Commercial Services",Sport & Leisure,Supplies & Services,Provisions,BIKOLD,24/06/2021,145.02
"Communities, Customer & Commercial Services",Sport & Leisure,Supplies & Services,Provisions,BIKOLD,24/06/2021,151.38
"Communities, Customer & Commercial Services",Sport & Leisure,Supplies & Services,Provisions,BIKOLD,24/06/2021,172.39
"Communities, Customer & Commercial Services",Sport & Leisure,Supplies & Services,Provisions,BIKOLD,24/06/2021,190.24
"Communities, Customer & Commercial Services",Sport & Leisure,Supplies & Services,Provisions,BIKOLD,24/06/2021,129.85
"Communities, Customer & Commercial Services",Sport & Leisure,Supplies & Services,Provisions,BIKOLD,24/06/2021,208.25
"Communities, Customer & Commercial Services",Sport & Leisure,Supplies & Services,Provisions,BIKOLD,24/06/2021,185.6
"Communities, Customer & Commercial Services",Sport & Leisure,Supplies & Services,Provisions,BIKOLD,24/06/2021,145.71
"Communities, Customer & Commercial Services",Sport & Leisure,Supplies & Services,Provisions,BIKOLD,24/06/2021,205.7
"Communities, Customer & Commercial Services",Sport & Leisure,Supplies & Services,Provisions,BIKOLD,24/06/2021,173
"Communities, Customer & Commercial Services",Sport & Leisure,Supplies & Services,Provisions,BIKOLD,24/06/2021,145.82
"Communities, Customer & Commercial Services",Sport & Leisure,Supplies & Services,Provisions,BIKOLD,24/06/2021,161.36
"Communities, Customer & Commercial Services",Sport & Leisure,Supplies & Services,Provisions,BIKOLD,24/06/2021,180.46
"Communities, Customer & Commercial Services",Sport & Leisure,Supplies & Services,Provisions,BIKOLD,24/06/2021,119.78
"Communities, Customer & Commercial Services",Sport & Leisure,Supplies & Services,Provisions,BIKOLD,24/06/2021,409.88
"Communities, Customer & Commercial Services",Sport & Leisure,Supplies & Services,Provisions,BIKOLD,24/06/2021,249.58
"Communities, Customer & Commercial Services",Sport & Leisure,Supplies & Services,Provisions,BIKOLD,24/06/2021,226.53
"Communities, Customer & Commercial Services",Sport & Leisure,Supplies & Services,Provisions,BIKOLD,24/06/2021,114.4
"Communities, Customer & Commercial Services",Sport & Leisure,Supplies & Services,Provisions,BIKOLD,24/06/2021,137.73
"Communities, Customer & Commercial Services",Sport & Leisure,Supplies & Services,Provisions,BIKOLD,24/06/2021,296.4
"Communities, Customer & Commercial Services",Sport & Leisure,Supplies & Services,Provisions,BIKOLD,24/06/2021,184.82
"Communities, Customer & Commercial Services",Sport & Leisure,Supplies & Services,Provisions,BIKOLD,24/06/2021,106.33
"Communities, Customer & Commercial Services",Sport & Leisure,Supplies & Services,Provisions,BIKOLD,24/06/2021,132.76
"Communities, Customer & Commercial Services",Sport & Leisure,Supplies & Services,Provisions,BIKOLD,24/06/2021,133.83
"Communities, Customer & Commercial Services",Sport & Leisure,Supplies & Services,Provisions,BIKOLD,24/06/2021,306.12
"Communities, Customer & Commercial Services",Sport & Leisure,Supplies & Services,Provisions,BIKOLD,24/06/2021,243.91
"Communities, Customer & Commercial Services",Sport & Leisure,Supplies & Services,Provisions,BIKOLD,24/06/2021,225.3
"Communities, Customer & Commercial Services",Sport & Leisure,Supplies & Services,Provisions,BIKOLD,24/06/2021,243.42
"Communities, Customer & Commercial Services",Sport & Leisure,Supplies & Services,Provisions,BIKOLD,24/06/2021,116.28
"Communities, Customer & Commercial Services",Sport & Leisure,Supplies & Services,Provisions,BIKOLD,24/06/2021,150.72
"Communities, Customer & Commercial Services",Sport & Leisure,Supplies & Services,Provisions,BIKOLD,24/06/2021,290.72
"Communities, Customer & Commercial Services",Sport & Leisure,Supplies & Services,Provisions,BIKOLD,24/06/2021,516.04
"Communities, Customer & Commercial Services",Sport & Leisure,Supplies & Services,Provisions,BIKOLD,24/06/2021,393.84
"Communities, Customer & Commercial Services",Sport & Leisure,Supplies & Services,Provisions,BIKOLD,24/06/2021,187.6
"Communities, Customer & Commercial Services",Sport & Leisure,Supplies & Services,Provisions,BIKOLD,24/06/2021,115.55
"Communities, Customer & Commercial Services",Sport & Leisure,Supplies & Services,Provisions,BIKOLD,24/06/2021,219.29
"Communities, Customer & Commercial Services",Sport & Leisure,Supplies & Services,Provisions,BIKOLD,24/06/2021,177.11
"Communities, Customer & Commercial Services",Sport & Leisure,Supplies & Services,Provisions,BIKOLD,24/06/2021,169.56
"Communities, Customer & Commercial Services",Sport & Leisure,Supplies & Services,Provisions,BIKOLD,24/06/2021,110.65
"Communities, Customer & Commercial Services",Sport & Leisure,Supplies & Services,Provisions,BIKOLD,24/06/2021,309.12
"Communities, Customer & Commercial Services",Sport & Leisure,Supplies & Services,Provisions,BIKOLD,24/06/2021,109.25
"Communities, Customer & Commercial Services",Sport & Leisure,Supplies & Services,Provisions,BIKOLD,24/06/2021,351.9
"Communities, Customer & Commercial Services",Sport & Leisure,Supplies & Services,Provisions,BIKOLD,24/06/2021,229.29
"Communities, Customer & Commercial Services",Sport & Leisure,Supplies & Services,Provisions,BIKOLD,24/06/2021,239.75
"Communities, Customer & Commercial Services",Sport & Leisure,Supplies & Services,Provisions,BIKOLD,24/06/2021,104.24
"Communities, Customer & Commercial Services",Sport & Leisure,Supplies & Services,Provisions,BIKOLD,24/06/2021,109.39
"Communities, Customer & Commercial Services",Sport & Leisure,Supplies & Services,Provisions,BIKOLD,10/06/2021,177.99
"Communities, Customer & Commercial Services",Sport & Leisure,Supplies & Services,Provisions,BIKOLD,10/06/2021,385.17
"Communities, Customer & Commercial Services",Sport & Leisure,Supplies & Services,Provisions,BIKOLD,10/06/2021,185.62
"Communities, Customer & Commercial Services",Sport & Leisure,Supplies & Services,Provisions,BIKOLD,10/06/2021,142.86
"Communities, Customer & Commercial Services",Sport & Leisure,Supplies & Services,Provisions,BIKOLD,10/06/2021,563.49
"Communities, Customer & Commercial Services",Sport & Leisure,Supplies & Services,Provisions,BIKOLD,10/06/2021,312.11
"Communities, Customer & Commercial Services",Sport & Leisure,Supplies & Services,Provisions,BIKOLD,10/06/2021,207
"Communities, Customer & Commercial Services",Sport & Leisure,Supplies & Services,Provisions,BIKOLD,10/06/2021,171.36
"Communities, Customer & Commercial Services",Sport & Leisure,Supplies & Services,Provisions,BIKOLD,10/06/2021,216.24
"Communities, Customer & Commercial Services",Sport & Leisure,Supplies & Services,Provisions,BIKOLD,10/06/2021,154.75
"Communities, Customer & Commercial Services",Sport & Leisure,Supplies & Services,Provisions,BIKOLD,10/06/2021,219.98
"Communities, Customer & Commercial Services",Sport & Leisure,Supplies & Services,Provisions,BIKOLD,10/06/2021,168.38
"Communities, Customer & Commercial Services",Sport & Leisure,Supplies & Services,Provisions,BIKOLD,10/06/2021,315.03
"Communities, Customer & Commercial Services",Sport & Leisure,Supplies & Services,Provisions,BIKOLD,10/06/2021,195.48
"Communities, Customer & Commercial Services",Sport & Leisure,Supplies & Services,Provisions,BIKOLD,10/06/2021,232.52
"Communities, Customer & Commercial Services",Sport & Leisure,Supplies & Services,Provisions,BIKOLD,10/06/2021,131.86
"Communities, Customer & Commercial Services",Sport & Leisure,Supplies & Services,Provisions,BIKOLD,10/06/2021,113.84
"Communities, Customer & Commercial Services",Sport & Leisure,Supplies & Services,Provisions,BIKOLD,10/06/2021,171.96
"Communities, Customer & Commercial Services",Sport & Leisure,Supplies & Services,Provisions,BIKOLD,10/06/2021,437.98
"Communities, Customer & Commercial Services",Sport & Leisure,Supplies & Services,Provisions,BIKOLD,10/06/2021,129.5
"Communities, Customer & Commercial Services",Sport & Leisure,Supplies & Services,Provisions,BIKOLD,10/06/2021,145.64
"Communities, Customer & Commercial Services",Sport & Leisure,Supplies & Services,Provisions,BIKOLD,10/06/2021,218.34
"Communities, Customer & Commercial Services",Sport & Leisure,Supplies & Services,Provisions,BIKOLD,10/06/2021,128.27
"Communities, Customer & Commercial Services",Sport & Leisure,Supplies & Services,Provisions,BIKOLD,10/06/2021,132.88
"Communities, Customer & Commercial Services",Sport & Leisure,Supplies & Services,Provisions,BIKOLD,17/06/2021,147.33
"Communities, Customer & Commercial Services",Sport & Leisure,Supplies & Services,Provisions,BIKOLD,10/06/2021,168.46
"Communities, Customer & Commercial Services",Sport & Leisure,Supplies & Services,Provisions,BIKOLD,10/06/2021,163.92
"Communities, Customer & Commercial Services",Sport & Leisure,Supplies & Services,Provisions,BIKOLD,10/06/2021,171.79
"Communities, Customer & Commercial Services",Sport & Leisure,Supplies & Services,Provisions,BIKOLD,10/06/2021,262.45
"Communities, Customer & Commercial Services",Sport & Leisure,Supplies & Services,Provisions,BIKOLD,10/06/2021,163.76
"Communities, Customer & Commercial Services",Sport & Leisure,Supplies & Services,Provisions,BIKOLD,17/06/2021,173.23
"Communities, Customer & Commercial Services",Sport & Leisure,Supplies & Services,Provisions,BIKOLD,17/06/2021,161.03
"Communities, Customer & Commercial Services",Sport & Leisure,Supplies & Services,Provisions,BIKOLD,17/06/2021,201.35
"Communities, Customer & Commercial Services",Sport & Leisure,Supplies & Services,Provisions,BIKOLD,17/06/2021,279.21
"Communities, Customer & Commercial Services",Sport & Leisure,Supplies & Services,Provisions,BIKOLD,17/06/2021,142.35
"Communities, Customer & Commercial Services",Sport & Leisure,Supplies & Services,Provisions,BIKOLD,17/06/2021,186.9
"Communities, Customer & Commercial Services",Sport & Leisure,Supplies & Services,Provisions,BIKOLD,17/06/2021,116.28
"Communities, Customer & Commercial Services",Sport & Leisure,Supplies & Services,Provisions,BIKOLD,17/06/2021,547.51
"Communities, Customer & Commercial Services",Sport & Leisure,Supplies & Services,Provisions,BIKOLD,17/06/2021,279.72
"Communities, Customer & Commercial Services",Sport & Leisure,Supplies & Services,Provisions,BIKOLD,17/06/2021,289.02
"Communities, Customer & Commercial Services",Sport & Leisure,Supplies & Services,Provisions,BIKOLD,17/06/2021,360.49
"Communities, Customer & Commercial Services",Sport & Leisure,Supplies & Services,Provisions,BIKOLD,17/06/2021,101.25
"Communities, Customer & Commercial Services",Sport & Leisure,Supplies & Services,Provisions,BIKOLD,17/06/2021,286.58
"Communities, Customer & Commercial Services",Sport & Leisure,Supplies & Services,Provisions,BIKOLD,17/06/2021,155.15
"Communities, Customer & Commercial Services",Sport & Leisure,Supplies & Services,Provisions,BIKOLD,17/06/2021,409.69
"Communities, Customer & Commercial Services",Sport & Leisure,Supplies & Services,Provisions,BIKOLD,17/06/2021,273.21
"Communities, Customer & Commercial Services",Sport & Leisure,Supplies & Services,Provisions,BIKOLD,17/06/2021,130.69
"Communities, Customer & Commercial Services",Sport & Leisure,Supplies & Services,Provisions,BIKOLD,17/06/2021,239.36
"Communities, Customer & Commercial Services",Sport & Leisure,Supplies & Services,Provisions,BIKOLD,17/06/2021,119.14
"Communities, Customer & Commercial Services",Sport & Leisure,Supplies & Services,Provisions,BIKOLD,17/06/2021,130.27
"Communities, Customer & Commercial Services",Sport & Leisure,Supplies & Services,Provisions,BIKOLD,17/06/2021,259.42
"Communities, Customer & Commercial Services",Sport & Leisure,Supplies & Services,Provisions,BIKOLD,17/06/2021,130.87
"Communities, Customer & Commercial Services",Sport & Leisure,Supplies & Services,Provisions,BIKOLD,17/06/2021,288.27
"Communities, Customer & Commercial Services",Sport & Leisure,Supplies & Services,Provisions,BIKOLD,17/06/2021,161.32
"Communities, Customer & Commercial Services",Sport & Leisure,Supplies & Services,Provisions,BIKOLD,17/06/2021,185.5
"Communities, Customer & Commercial Services",Sport & Leisure,Supplies & Services,Provisions,BIKOLD,17/06/2021,201.57
"Communities, Customer & Commercial Services",Sport & Leisure,Supplies & Services,Provisions,BIKOLD,17/06/2021,225.6
"Communities, Customer & Commercial Services",Sport & Leisure,Supplies & Services,Provisions,BIKOLD,17/06/2021,337.14
"Communities, Customer & Commercial Services",Sport & Leisure,Supplies & Services,Provisions,BIKOLD,17/06/2021,174.45
"Communities, Customer & Commercial Services",Sport & Leisure,Supplies & Services,Provisions,BIKOLD,17/06/2021,152.33
"Communities, Customer & Commercial Services",Sport & Leisure,Supplies & Services,Provisions,BIKOLD,17/06/2021,284.18
"Communities, Customer & Commercial Services",Sport & Leisure,Supplies & Services,Provisions,BIKOLD,17/06/2021,230.81
"Communities, Customer & Commercial Services",Sport & Leisure,Supplies & Services,Provisions,BIKOLD,17/06/2021,113.36
"Communities, Customer & Commercial Services",Sport & Leisure,Supplies & Services,Provisions,BIKOLD,17/06/2021,121.71
"Communities, Customer & Commercial Services",Sport & Leisure,Supplies & Services,Provisions,BIKOLD,17/06/2021,125.19
"Communities, Customer & Commercial Services",Sport & Leisure,Supplies & Services,Provisions,BIKOLD,17/06/2021,209.6
"Communities, Customer & Commercial Services",Sport & Leisure,Supplies & Services,Provisions,BIKOLD,17/06/2021,422.69
"Communities, Customer & Commercial Services",Sport & Leisure,Supplies & Services,Provisions,BIKOLD,17/06/2021,170.16
"Communities, Customer & Commercial Services",Sport & Leisure,Supplies & Services,Provisions,BIKOLD,17/06/2021,145.46
"Communities, Customer & Commercial Services",Sport & Leisure,Supplies & Services,Provisions,BIKOLD,17/06/2021,107.42
"Communities, Customer & Commercial Services",Sport & Leisure,Supplies & Services,Provisions,BIKOLD,17/06/2021,238.9
"Communities, Customer & Commercial Services",Sport & Leisure,Supplies & Services,Provisions,BIKOLD,17/06/2021,247.9
"Communities, Customer & Commercial Services",Sport & Leisure,Supplies & Services,Provisions,BIKOLD,17/06/2021,104.77
"Communities, Customer & Commercial Services",Sport & Leisure,Supplies & Services,Provisions,BIKOLD,17/06/2021,476.95
"Communities, Customer & Commercial Services",Sport & Leisure,Supplies & Services,Provisions,BIKOLD,17/06/2021,366.76
"Communities, Customer & Commercial Services",Sport & Leisure,Supplies & Services,Provisions,BIKOLD,17/06/2021,278.59
"Communities, Customer & Commercial Services",Sport & Leisure,Supplies & Services,Provisions,BIKOLD,17/06/2021,257.46
"Communities, Customer & Commercial Services",Sport & Leisure,Supplies & Services,Provisions,BIKOLD,17/06/2021,115.62
"Communities, Customer & Commercial Services",Sport & Leisure,Supplies & Services,Provisions,BIKOLD,17/06/2021,116.95
"Communities, Customer & Commercial Services",Sport & Leisure,Supplies & Services,Provisions,BIKOLD,17/06/2021,154.42
"Communities, Customer & Commercial Services",Sport & Leisure,Supplies & Services,Provisions,BIKOLD,17/06/2021,517.56
"Communities, Customer & Commercial Services",Sport & Leisure,Supplies & Services,Provisions,BIKOLD,17/06/2021,102.3
"Communities, Customer & Commercial Services",Sport & Leisure,Supplies & Services,Provisions,BIKOLD,17/06/2021,209.73
"Communities, Customer & Commercial Services",Sport & Leisure,Supplies & Services,Provisions,BIKOLD,17/06/2021,171.66
"Communities, Customer & Commercial Services",Sport & Leisure,Supplies & Services,Provisions,BIKOLD,17/06/2021,118.05
"Communities, Customer & Commercial Services",Sport & Leisure,Supplies & Services,Provisions,BIKOLD,17/06/2021,129.04
"Communities, Customer & Commercial Services",Sport & Leisure,Supplies & Services,Provisions,BIKOLD,17/06/2021,191.72
"Communities, Customer & Commercial Services",Sport & Leisure,Supplies & Services,Provisions,BIKOLD,17/06/2021,335.47
"Communities, Customer & Commercial Services",Sport & Leisure,Supplies & Services,Provisions,BIKOLD,17/06/2021,138.44
"Communities, Customer & Commercial Services",Sport & Leisure,Supplies & Services,Provisions,BIKOLD,17/06/2021,113.77
"Communities, Customer & Commercial Services",Sport & Leisure,Supplies & Services,Provisions,BIKOLD,17/06/2021,100.67
"Communities, Customer & Commercial Services",Sport & Leisure,Supplies & Services,Provisions,BIKOLD,17/06/2021,200.9
"Communities, Customer & Commercial Services",Sport & Leisure,Supplies & Services,Provisions,BIKOLD,17/06/2021,168.02
"Communities, Customer & Commercial Services",Sport & Leisure,Supplies & Services,Provisions,BIKOLD,17/06/2021,409.01
"Communities, Customer & Commercial Services",Sport & Leisure,Supplies & Services,Provisions,BIKOLD,17/06/2021,141.25
"Communities, Customer & Commercial Services",Sport & Leisure,Supplies & Services,Provisions,BIKOLD,17/06/2021,110.84
"Communities, Customer & Commercial Services",Sport & Leisure,Supplies & Services,Provisions,BIKOLD,17/06/2021,328.53
"Communities, Customer & Commercial Services",Sport & Leisure,Supplies & Services,Provisions,BIKOLD,17/06/2021,252.93
"Communities, Customer & Commercial Services",Sport & Leisure,Supplies & Services,Provisions,BIKOLD,17/06/2021,100.03
"Communities, Customer & Commercial Services",Sport & Leisure,Supplies & Services,Provisions,BIKOLD,17/06/2021,241.05
"Communities, Customer & Commercial Services",Sport & Leisure,Supplies & Services,Provisions,BIKOLD,17/06/2021,109.5
"Communities, Customer & Commercial Services",Sport & Leisure,Supplies & Services,Provisions,BIKOLD,17/06/2021,147.77
"Communities, Customer & Commercial Services",Sport & Leisure,Supplies & Services,Provisions,BIKOLD,17/06/2021,146.8
"Communities, Customer & Commercial Services",Sport & Leisure,Supplies & Services,Provisions,BIKOLD,17/06/2021,170.8
"Communities, Customer & Commercial Services",Sport & Leisure,Supplies & Services,Provisions,BIKOLD,17/06/2021,209.11
"Communities, Customer & Commercial Services",Sport & Leisure,Supplies & Services,Provisions,BIKOLD,17/06/2021,304.26
"Communities, Customer & Commercial Services",Sport & Leisure,Supplies & Services,Provisions,BIKOLD,17/06/2021,279.37
"Communities, Customer & Commercial Services",Sport & Leisure,Supplies & Services,Provisions,BIKOLD,17/06/2021,204.43
"Communities, Customer & Commercial Services",Sport & Leisure,Supplies & Services,Provisions,BIKOLD,17/06/2021,123.83
"Communities, Customer & Commercial Services",Sport & Leisure,Supplies & Services,Provisions,BIKOLD,17/06/2021,138.74
"Communities, Customer & Commercial Services",Sport & Leisure,Supplies & Services,Provisions,BIKOLD,17/06/2021,197.54
"Communities, Customer & Commercial Services",Sport & Leisure,Supplies & Services,Provisions,BIKOLD,17/06/2021,140.21
"Communities, Customer & Commercial Services",Sport & Leisure,Supplies & Services,Provisions,BIKOLD,17/06/2021,212.11
"Communities, Customer & Commercial Services",Sport & Leisure,Supplies & Services,Provisions,BIKOLD,17/06/2021,251.34
"Communities, Customer & Commercial Services",Sport & Leisure,Supplies & Services,Provisions,BIKOLD,17/06/2021,141.75
"Communities, Customer & Commercial Services",Sport & Leisure,Supplies & Services,Provisions,BIKOLD,17/06/2021,246.81
"Communities, Customer & Commercial Services",Sport & Leisure,Supplies & Services,Provisions,BIKOLD,17/06/2021,144.24
"Communities, Customer & Commercial Services",Sport & Leisure,Supplies & Services,Provisions,BIKOLD,17/06/2021,292.88
"Communities, Customer & Commercial Services",Sport & Leisure,Supplies & Services,Provisions,BIKOLD,17/06/2021,109.55
"Communities, Customer & Commercial Services",Sport & Leisure,Supplies & Services,Provisions,BIKOLD,17/06/2021,157.99
"Communities, Customer & Commercial Services",Sport & Leisure,Supplies & Services,Provisions,BIKOLD,10/06/2021,143.76
"Communities, Customer & Commercial Services",Sport & Leisure,Supplies & Services,Provisions,BIKOLD,10/06/2021,223.07
"Communities, Customer & Commercial Services",Sport & Leisure,Supplies & Services,Provisions,BIKOLD,10/06/2021,287.39
"Communities, Customer & Commercial Services",Sport & Leisure,Supplies & Services,Provisions,BIKOLD,10/06/2021,214.45
"Communities, Customer & Commercial Services",Sport & Leisure,Supplies & Services,Provisions,BIKOLD,17/06/2021,242.83
"Communities, Customer & Commercial Services",Sport & Leisure,Supplies & Services,Provisions,BIKOLD,17/06/2021,195.22
"Communities, Customer & Commercial Services",Sport & Leisure,Supplies & Services,Provisions,BIKOLD,10/06/2021,187.94
"Communities, Customer & Commercial Services",Sport & Leisure,Supplies & Services,Provisions,BIKOLD,10/06/2021,138.94
"Communities, Customer & Commercial Services",Sport & Leisure,Supplies & Services,Provisions,BIKOLD,10/06/2021,205.2
"Communities, Customer & Commercial Services",Sport & Leisure,Supplies & Services,Provisions,BIKOLD,10/06/2021,245.26
"Communities, Customer & Commercial Services",Sport & Leisure,Supplies & Services,Provisions,BIKOLD,10/06/2021,126.49
"Communities, Customer & Commercial Services",Sport & Leisure,Supplies & Services,Provisions,BIKOLD,10/06/2021,109.53
"Communities, Customer & Commercial Services",Sport & Leisure,Supplies & Services,Provisions,BIKOLD,10/06/2021,307.52
"Communities, Customer & Commercial Services",Sport & Leisure,Supplies & Services,Provisions,BIKOLD,10/06/2021,127.8
"Communities, Customer & Commercial Services",Sport & Leisure,Supplies & Services,Provisions,BIKOLD,10/06/2021,104.95
"Communities, Customer & Commercial Services",Sport & Leisure,Supplies & Services,Provisions,BIKOLD,10/06/2021,302.53
"Communities, Customer & Commercial Services",Sport & Leisure,Supplies & Services,Provisions,BIKOLD,10/06/2021,423.86
"Communities, Customer & Commercial Services",Sport & Leisure,Supplies & Services,Provisions,BIKOLD,10/06/2021,212.15
"Communities, Customer & Commercial Services",Sport & Leisure,Supplies & Services,Provisions,BIKOLD,10/06/2021,134.85
"Communities, Customer & Commercial Services",Sport & Leisure,Supplies & Services,Provisions,BIKOLD,10/06/2021,205.92
"Communities, Customer & Commercial Services",Sport & Leisure,Supplies & Services,Provisions,BIKOLD,10/06/2021,238.71
"Communities, Customer & Commercial Services",Sport & Leisure,Supplies & Services,Provisions,BIKOLD,10/06/2021,149.32
"Communities, Customer & Commercial Services",Sport & Leisure,Supplies & Services,Provisions,BIKOLD,10/06/2021,107.64
"Communities, Customer & Commercial Services",Sport & Leisure,Supplies & Services,Provisions,BIKOLD,10/06/2021,135.61
"Communities, Customer & Commercial Services",Sport & Leisure,Supplies & Services,Provisions,BIKOLD,10/06/2021,434.5
"Communities, Customer & Commercial Services",Sport & Leisure,Supplies & Services,Provisions,BIKOLD,10/06/2021,205.16
"Communities, Customer & Commercial Services",Sport & Leisure,Supplies & Services,Provisions,BIKOLD,10/06/2021,200.51
"Communities, Customer & Commercial Services",Sport & Leisure,Supplies & Services,Provisions,BIKOLD,10/06/2021,143.56
"Communities, Customer & Commercial Services",Sport & Leisure,Supplies & Services,Provisions,BIKOLD,10/06/2021,354.22
"Communities, Customer & Commercial Services",Sport & Leisure,Supplies & Services,Provisions,BIKOLD,10/06/2021,161.08
"Communities, Customer & Commercial Services",Sport & Leisure,Supplies & Services,Provisions,BIKOLD,10/06/2021,202.06
"Communities, Customer & Commercial Services",Sport & Leisure,Supplies & Services,Provisions,BIKOLD,10/06/2021,295.06
"Communities, Customer & Commercial Services",Sport & Leisure,Supplies & Services,Provisions,BIKOLD,10/06/2021,172.12
"Communities, Customer & Commercial Services",Sport & Leisure,Supplies & Services,Provisions,BIKOLD,10/06/2021,265.8
"Communities, Customer & Commercial Services",Sport & Leisure,Supplies & Services,Provisions,BIKOLD,10/06/2021,241.21
"Communities, Customer & Commercial Services",Sport & Leisure,Supplies & Services,Provisions,BIKOLD,10/06/2021,164.55
"Communities, Customer & Commercial Services",Sport & Leisure,Supplies & Services,Provisions,BIKOLD,10/06/2021,153.37
"Communities, Customer & Commercial Services",Sport & Leisure,Supplies & Services,Provisions,BIKOLD,10/06/2021,273.7
"Communities, Customer & Commercial Services",Sport & Leisure,Supplies & Services,Provisions,BIKOLD,10/06/2021,317.18
"Communities, Customer & Commercial Services",Sport & Leisure,Supplies & Services,Provisions,BIKOLD,10/06/2021,430.96
"Communities, Customer & Commercial Services",Sport & Leisure,Supplies & Services,Provisions,BIKOLD,10/06/2021,101.37
"Communities, Customer & Commercial Services",Sport & Leisure,Supplies & Services,Provisions,BIKOLD,10/06/2021,101.7
"Communities, Customer & Commercial Services",Sport & Leisure,Supplies & Services,Provisions,BIKOLD,10/06/2021,113.47
"Communities, Customer & Commercial Services",Sport & Leisure,Supplies & Services,Provisions,BIKOLD,10/06/2021,138.56
"Communities, Customer & Commercial Services",Sport & Leisure,Supplies & Services,Provisions,BIKOLD,10/06/2021,236.42
"Communities, Customer & Commercial Services",Sport & Leisure,Supplies & Services,Provisions,BIKOLD,10/06/2021,333.42
"Communities, Customer & Commercial Services",Sport & Leisure,Supplies & Services,Provisions,BIKOLD,10/06/2021,307.36
"Communities, Customer & Commercial Services",Sport & Leisure,Supplies & Services,Provisions,BIKOLD,10/06/2021,253.62
"Communities, Customer & Commercial Services",Sport & Leisure,Supplies & Services,Provisions,BIKOLD,10/06/2021,352.34
"Communities, Customer & Commercial Services",Sport & Leisure,Supplies & Services,Provisions,BIKOLD,10/06/2021,389.45
"Communities, Customer & Commercial Services",Sport & Leisure,Supplies & Services,Provisions,BIKOLD,10/06/2021,333.5
"Communities, Customer & Commercial Services",Sport & Leisure,Supplies & Services,Provisions,BIKOLD,10/06/2021,151.99
"Communities, Customer & Commercial Services",Sport & Leisure,Supplies & Services,Provisions,BIKOLD,10/06/2021,134.54
"Communities, Customer & Commercial Services",Sport & Leisure,Supplies & Services,Provisions,BIKOLD,10/06/2021,266.76
"Communities, Customer & Commercial Services",Sport & Leisure,Supplies & Services,Provisions,Delice de France,15/06/2021,132.44
"Communities, Customer & Commercial Services",Sport & Leisure,Supplies & Services,Provisions,Delice de France,15/06/2021,203.7
"Communities, Customer & Commercial Services",Sport & Leisure,Supplies & Services,Provisions,Delice de France,15/06/2021,270
"Communities, Customer & Commercial Services",Sport & Leisure,Supplies & Services,Provisions,PASTA KING (UK) LIMITED,08/06/2021,240
"Communities, Customer & Commercial Services",Sport & Leisure,Supplies & Services,Provisions,PASTA KING (UK) LIMITED,08/06/2021,180
"Communities, Customer & Commercial Services",Sport & Leisure,Supplies & Services,Provisions,PASTA KING (UK) LIMITED,08/06/2021,240
"Communities, Customer & Commercial Services",Sport & Leisure,Supplies & Services,Provisions,PASTA KING (UK) LIMITED,08/06/2021,660
"Communities, Customer & Commercial Services",Sport & Leisure,Supplies & Services,Provisions,PASTA KING (UK) LIMITED,16/06/2021,210
"Communities, Customer & Commercial Services",Sport & Leisure,Supplies & Services,Provisions,PASTA KING (UK) LIMITED,28/06/2021,180
"Communities, Customer & Commercial Services",Sport & Leisure,Supplies & Services,Provisions,PASTA KING (UK) LIMITED,28/06/2021,696
"Communities, Customer & Commercial Services",Sport & Leisure,Supplies & Services,Provisions,ROWLANDS & COMPANY,03/06/2021,106.21
"Communities, Customer & Commercial Services",Sport & Leisure,Supplies & Services,Provisions,ROWLANDS & COMPANY,03/06/2021,122.31
"Communities, Customer & Commercial Services",Sport & Leisure,Supplies & Services,Provisions,ROWLANDS & COMPANY,03/06/2021,113.23
"Communities, Customer & Commercial Services",Sport & Leisure,Supplies & Services,Provisions,ROWLANDS & COMPANY,03/06/2021,102.96
"Communities, Customer & Commercial Services",Sport & Leisure,Supplies & Services,Provisions,ROWLANDS & COMPANY,03/06/2021,217.73
"Communities, Customer & Commercial Services",Sport & Leisure,Supplies & Services,Provisions,ROWLANDS & COMPANY,03/06/2021,187.85
"Communities, Customer & Commercial Services",Sport & Leisure,Supplies & Services,Provisions,ROWLANDS & COMPANY,22/06/2021,110.03
"Communities, Customer & Commercial Services",Sport & Leisure,Supplies & Services,Provisions,ROWLANDS & COMPANY,25/06/2021,107.79
"Communities, Customer & Commercial Services",Sport & Leisure,Supplies & Services,Provisions,ROWLANDS & COMPANY,03/06/2021,102.31
"Communities, Customer & Commercial Services",Sport & Leisure,Supplies & Services,Provisions,ROWLANDS & COMPANY,03/06/2021,102.7
"Communities, Customer & Commercial Services",Sport & Leisure,Supplies & Services,Provisions,ROWLANDS & COMPANY,15/06/2021,100.02
"Communities, Customer & Commercial Services",Sport & Leisure,Supplies & Services,Provisions,ROWLANDS & COMPANY,15/06/2021,119.61
"Communities, Customer & Commercial Services",Sport & Leisure,Supplies & Services,Provisions,ROWLANDS & COMPANY,22/06/2021,115.87
"Communities, Customer & Commercial Services",Sport & Leisure,Supplies & Services,Provisions,ROWLANDS & COMPANY,25/06/2021,124.53
"Communities, Customer & Commercial Services",Sport & Leisure,Supplies & Services,Provisions,ROWLANDS & COMPANY,25/06/2021,106.66
"Communities, Customer & Commercial Services",Sport & Leisure,Supplies & Services,Provisions,ROWLANDS & COMPANY,25/06/2021,212.24
"Communities, Customer & Commercial Services",Sport & Leisure,Supplies & Services,Provisions,ROWLANDS & COMPANY,25/06/2021,155.93
"Communities, Customer & Commercial Services",Sport & Leisure,Supplies & Services,Provisions,ROWLANDS & COMPANY,25/06/2021,140.34
"Communities, Customer & Commercial Services",Sport & Leisure,Supplies & Services,Provisions,ROWLANDS & COMPANY,25/06/2021,163.06
"Communities, Customer & Commercial Services",Sport & Leisure,Supplies & Services,Provisions,ROWLANDS & COMPANY,22/06/2021,158.63
"Communities, Customer & Commercial Services",Sport & Leisure,Supplies & Services,Provisions,ROWLANDS & COMPANY,22/06/2021,103.01
"Communities, Customer & Commercial Services",Sport & Leisure,Supplies & Services,Provisions,ROWLANDS & COMPANY,22/06/2021,104.83
"Communities, Customer & Commercial Services",Sport & Leisure,Supplies & Services,Provisions,ROWLANDS & COMPANY,25/06/2021,131.27
"Communities, Customer & Commercial Services",Sport & Leisure,Supplies & Services,Provisions,ROWLANDS & COMPANY,25/06/2021,191.86
"Communities, Customer & Commercial Services",Sport & Leisure,Supplies & Services,Provisions,ROWLANDS & COMPANY,22/06/2021,180.68
"Communities, Customer & Commercial Services",Sport & Leisure,Supplies & Services,Provisions,ROWLANDS & COMPANY,22/06/2021,123.32
"Communities, Customer & Commercial Services",Sport & Leisure,Supplies & Services,Provisions,ROWLANDS & COMPANY,22/06/2021,115.05
"Communities, Customer & Commercial Services",Sport & Leisure,Supplies & Services,Provisions,ROWLANDS & COMPANY,22/06/2021,101.47
"Communities, Customer & Commercial Services",Sport & Leisure,Supplies & Services,Provisions,ROWLANDS & COMPANY,22/06/2021,232.87
"Communities, Customer & Commercial Services",Sport & Leisure,Supplies & Services,Provisions,ROWLANDS & COMPANY,22/06/2021,175.3
"Communities, Customer & Commercial Services",Sport & Leisure,Supplies & Services,Provisions,ROWLANDS & COMPANY,15/06/2021,176.22
"Communities, Customer & Commercial Services",Sport & Leisure,Supplies & Services,Provisions,ROWLANDS & COMPANY,15/06/2021,164.36
"Communities, Customer & Commercial Services",Sport & Leisure,Supplies & Services,Provisions,ROWLANDS & COMPANY,15/06/2021,173.17
"Communities, Customer & Commercial Services",Sport & Leisure,Supplies & Services,Provisions,ROWLANDS & COMPANY,15/06/2021,209.46
"Communities, Customer & Commercial Services",Sport & Leisure,Supplies & Services,Provisions,ROWLANDS & COMPANY,15/06/2021,110.88
"Communities, Customer & Commercial Services",Sport & Leisure,Supplies & Services,Provisions,ROWLANDS & COMPANY,22/06/2021,159.03
"Communities, Customer & Commercial Services",Sport & Leisure,Supplies & Services,Provisions,ROWLANDS & COMPANY,15/06/2021,263.63
"Communities, Customer & Commercial Services",Sport & Leisure,Supplies & Services,Provisions,ROWLANDS & COMPANY,15/06/2021,103.42
"Communities, Customer & Commercial Services",Sport & Leisure,Supplies & Services,Provisions,ROWLANDS & COMPANY,15/06/2021,113.35
"Communities, Customer & Commercial Services",Sport & Leisure,Supplies & Services,Provisions,ROWLANDS & COMPANY,15/06/2021,183.04
"Communities, Customer & Commercial Services",Sport & Leisure,Supplies & Services,Provisions,ROWLANDS & COMPANY,15/06/2021,144.75
"Communities, Customer & Commercial Services",Sport & Leisure,Supplies & Services,Provisions,ROWLANDS & COMPANY,03/06/2021,117.68
"Communities, Customer & Commercial Services",Sport & Leisure,Supplies & Services,Provisions,ROWLANDS & COMPANY,03/06/2021,124.88
"Communities, Customer & Commercial Services",Sport & Leisure,Supplies & Services,Provisions,ROWLANDS & COMPANY,03/06/2021,150.4
"Communities, Customer & Commercial Services",Sport & Leisure,Supplies & Services,Provisions,ROWLANDS & COMPANY,15/06/2021,170.28
"Communities, Customer & Commercial Services",Sport & Leisure,Supplies & Services,Provisions,ROWLANDS & COMPANY,15/06/2021,317.42
"Communities, Customer & Commercial Services",Sport & Leisure,Supplies & Services,Provisions,TROPICAL ICE,23/06/2021,155
"Communities, Customer & Commercial Services",Sport & Leisure,Supplies & Services,Provisions,TROPICAL ICE,23/06/2021,413
"Communities, Customer & Commercial Services",Sport & Leisure,Supplies & Services,Provisions,TROPICAL ICE,28/06/2021,1032.94
"Communities, Customer & Commercial Services",Sport & Leisure,Supplies & Services,Provisions,T FOOD SERVICE LTD,28/06/2021,308.08
"Communities, Customer & Commercial Services",Sport & Leisure,Supplies & Services,Provisions,T FOOD SERVICE LTD,28/06/2021,285.1
"Communities, Customer & Commercial Services",Sport & Leisure,Supplies & Services,Provisions,SPICE TIME,23/06/2021,221.3
"Communities, Customer & Commercial Services",Sport & Leisure,Supplies & Services,Provisions,SPICE TIME,23/06/2021,106.5
"Communities, Customer & Commercial Services",Sport & Leisure,Supplies & Services,Provisions,SPICE TIME,23/06/2021,295.65
"Communities, Customer & Commercial Services",Sport & Leisure,Supplies & Services,Provisions,SPICE TIME,23/06/2021,161.5
"Communities, Customer & Commercial Services",Sport & Leisure,Supplies & Services,Provisions,SPICE TIME,23/06/2021,106.5
"Communities, Customer & Commercial Services",Sport & Leisure,Supplies & Services,Provisions,SPICE TIME,28/06/2021,149.5
"Communities, Customer & Commercial Services",Sport & Leisure,Supplies & Services,Provisions,SPICE TIME,23/06/2021,143
"Communities, Customer & Commercial Services",Sport & Leisure,Supplies & Services,Provisions,SPICE TIME,23/06/2021,174
"Communities, Customer & Commercial Services",Sport & Leisure,Supplies & Services,Provisions,SPICE TIME,23/06/2021,134.5
"Communities, Customer & Commercial Services",Sport & Leisure,Supplies & Services,Provisions,SPICE TIME,23/06/2021,106.5
"Communities, Customer & Commercial Services",Sport & Leisure,Supplies & Services,Provisions,SPICE TIME,23/06/2021,133.75
"Communities, Customer & Commercial Services",Sport & Leisure,Supplies & Services,Provisions,SPICE TIME,23/06/2021,149.5
"Communities, Customer & Commercial Services",Sport & Leisure,Supplies & Services,Provisions,SPICE TIME,23/06/2021,166.5
"Communities, Customer & Commercial Services",Sport & Leisure,Supplies & Services,Provisions,SPICE TIME,23/06/2021,221.3
"Communities, Customer & Commercial Services",Sport & Leisure,Supplies & Services,Provisions,SPICE TIME,23/06/2021,161.3
"Communities, Customer & Commercial Services",Sport & Leisure,Supplies & Services,Provisions,SPICE TIME,23/06/2021,122
"Communities, Customer & Commercial Services",Sport & Leisure,Supplies & Services,Provisions,SPICE TIME,23/06/2021,156
"Communities, Customer & Commercial Services",Sport & Leisure,Supplies & Services,Provisions,SPICE TIME,23/06/2021,118
"Communities, Customer & Commercial Services",Sport & Leisure,Supplies & Services,Provisions,SPICE TIME,23/06/2021,149.25
"Communities, Customer & Commercial Services",Sport & Leisure,Supplies & Services,Provisions,SPICE TIME,23/06/2021,445
"Communities, Customer & Commercial Services",Sport & Leisure,Supplies & Services,Provisions,SPICE TIME,23/06/2021,148
"Communities, Customer & Commercial Services",Sport & Leisure,Supplies & Services,Provisions,SPICE TIME,23/06/2021,137.5
"Communities, Customer & Commercial Services",Sport & Leisure,Supplies & Services,Provisions,SPICE TIME,23/06/2021,278.5
"Communities, Customer & Commercial Services",Sport & Leisure,Supplies & Services,Provisions,SPICE TIME,23/06/2021,230
"Communities, Customer & Commercial Services",Sport & Leisure,Supplies & Services,Provisions,J S Catering Butchers,21/06/2021,103.28
"Communities, Customer & Commercial Services",Sport & Leisure,Supplies & Services,Provisions,J S Catering Butchers,21/06/2021,278.97
"Communities, Customer & Commercial Services",Sport & Leisure,Supplies & Services,Provisions,J S Catering Butchers,21/06/2021,113.82
"Communities, Customer & Commercial Services",Sport & Leisure,Supplies & Services,Provisions,J S Catering Butchers,21/06/2021,119
"Communities, Customer & Commercial Services",Sport & Leisure,Supplies & Services,Provisions,J S Catering Butchers,21/06/2021,121.19
"Communities, Customer & Commercial Services",Sport & Leisure,Supplies & Services,Provisions,J S Catering Butchers,21/06/2021,210.22
"Communities, Customer & Commercial Services",Sport & Leisure,Supplies & Services,Provisions,J S Catering Butchers,29/06/2021,171.85
"Communities, Customer & Commercial Services",Sport & Leisure,Supplies & Services,Provisions,J S Catering Butchers,29/06/2021,140.66
"Communities, Customer & Commercial Services",Sport & Leisure,Supplies & Services,Provisions,J S Catering Butchers,29/06/2021,149.25
"Communities, Customer & Commercial Services",Sport & Leisure,Supplies & Services,Provisions,J S Catering Butchers,29/06/2021,222.77
"Communities, Customer & Commercial Services",Sport & Leisure,Supplies & Services,Provisions,J S Catering Butchers,29/06/2021,412.87
"Communities, Customer & Commercial Services",Sport & Leisure,Supplies & Services,Provisions,J S Catering Butchers,29/06/2021,164.02
"Communities, Customer & Commercial Services",Sport & Leisure,Supplies & Services,Provisions,J S Catering Butchers,15/06/2021,146.86
"Communities, Customer & Commercial Services",Sport & Leisure,Supplies & Services,Provisions,J S Catering Butchers,15/06/2021,105.95
"Communities, Customer & Commercial Services",Sport & Leisure,Supplies & Services,Provisions,J S Catering Butchers,29/06/2021,104.95
"Communities, Customer & Commercial Services",Sport & Leisure,Supplies & Services,Provisions,J S Catering Butchers,29/06/2021,102
"Communities, Customer & Commercial Services",Sport & Leisure,Supplies & Services,Provisions,J S Catering Butchers,29/06/2021,107.44
"Communities, Customer & Commercial Services",Sport & Leisure,Supplies & Services,Provisions,J S Catering Butchers,29/06/2021,124.37
"Communities, Customer & Commercial Services",Sport & Leisure,Supplies & Services,Provisions,J S Catering Butchers,29/06/2021,199.31
"Communities, Customer & Commercial Services",Sport & Leisure,Supplies & Services,Provisions,J S Catering Butchers,15/06/2021,176.4
"Communities, Customer & Commercial Services",Sport & Leisure,Supplies & Services,Provisions,J S Catering Butchers,15/06/2021,126
"Communities, Customer & Commercial Services",Sport & Leisure,Supplies & Services,Provisions,J S Catering Butchers,15/06/2021,240.47
"Communities, Customer & Commercial Services",Sport & Leisure,Supplies & Services,Provisions,J S Catering Butchers,15/06/2021,106.3
"Communities, Customer & Commercial Services",Sport & Leisure,Supplies & Services,Provisions,J S Catering Butchers,15/06/2021,176.83
"Communities, Customer & Commercial Services",Sport & Leisure,Supplies & Services,Provisions,J S Catering Butchers,15/06/2021,209
"Communities, Customer & Commercial Services",Sport & Leisure,Supplies & Services,Provisions,J S Catering Butchers,21/06/2021,121.36
"Communities, Customer & Commercial Services",Sport & Leisure,Supplies & Services,Provisions,J S Catering Butchers,21/06/2021,120.95
"Communities, Customer & Commercial Services",Sport & Leisure,Supplies & Services,Provisions,J S Catering Butchers,21/06/2021,159.26
"Communities, Customer & Commercial Services",Sport & Leisure,Supplies & Services,Provisions,J S Catering Butchers,21/06/2021,139.73
"Communities, Customer & Commercial Services",Sport & Leisure,Supplies & Services,Provisions,J S Catering Butchers,15/06/2021,151.57
"Communities, Customer & Commercial Services",Sport & Leisure,Supplies & Services,Provisions,J S Catering Butchers,15/06/2021,210.48
"Communities, Customer & Commercial Services",Sport & Leisure,Supplies & Services,Provisions,On A Roll,08/06/2021,390.86
"Communities, Customer & Commercial Services",Sport & Leisure,Supplies & Services,Provisions,On A Roll,08/06/2021,119.94
"Communities, Customer & Commercial Services",Sport & Leisure,Supplies & Services,Provisions,On A Roll,21/06/2021,239.8
"Communities, Customer & Commercial Services",Sport & Leisure,Supplies & Services,Provisions,On A Roll,21/06/2021,170.08
"Communities, Customer & Commercial Services",Sport & Leisure,Supplies & Services,Provisions,On A Roll,21/06/2021,326.89
"Communities, Customer & Commercial Services",Sport & Leisure,Supplies & Services,Provisions,On A Roll,28/06/2021,150.48
"Communities, Customer & Commercial Services",Sport & Leisure,Supplies & Services,Provisions,On A Roll,28/06/2021,330.26
"Communities, Customer & Commercial Services",Sport & Leisure,Supplies & Services,Provisions,On A Roll,28/06/2021,170.08
"Communities, Customer & Commercial Services",Sport & Leisure,Supplies & Services,Provisions,On A Roll,28/06/2021,119.94
"Communities, Customer & Commercial Services",Sport & Leisure,Supplies & Services,Provisions,On A Roll,28/06/2021,119.94
"Communities, Customer & Commercial Services",Sport & Leisure,Supplies & Services,Provisions,On A Roll,21/06/2021,119.94
"Communities, Customer & Commercial Services",Sport & Leisure,Supplies & Services,Provisions,On A Roll,07/06/2021,249.6
"Communities, Customer & Commercial Services",Sport & Leisure,Supplies & Services,Provisions,On A Roll,07/06/2021,170.08
"Communities, Customer & Commercial Services",Sport & Leisure,Supplies & Services,Provisions,On A Roll,07/06/2021,398.84
"Communities, Customer & Commercial Services",Sport & Leisure,Supplies & Services,Provisions,On A Roll,22/06/2021,119.94
"Communities, Customer & Commercial Services",Sport & Leisure,Supplies & Services,Provisions,On A Roll,28/06/2021,239.8
"Communities, Customer & Commercial Services",Sport & Leisure,Supplies & Services,Provisions,Handmade Speciality Products Ltd,15/06/2021,115
"Communities, Customer & Commercial Services",Sport & Leisure,Supplies & Services,Provisions,Handmade Speciality Products Ltd,15/06/2021,448.6
"Communities, Customer & Commercial Services",Sport & Leisure,Supplies & Services,Provisions,Handmade Speciality Products Ltd,28/06/2021,169.76
"Communities, Customer & Commercial Services",Sport & Leisure,Supplies & Services,Sport Equip - Purchase,Life Fitness UK Ltd,28/06/2021,144.74
"Communities, Customer & Commercial Services",Sport & Leisure,Supplies & Services,Sub Contractors,ENVIRONMENT AGENCY,21/06/2021,890
"Communities, Customer & Commercial Services",Sport & Leisure,Supplies & Services,Sub Contractors,GRANVILLE CONSTRUCTION & MAINTENANCE LTD,10/06/2021,149.24
"Communities, Customer & Commercial Services",Sport & Leisure,Supplies & Services,Sub Contractors,PP ELECTRICAL SERVICES (Shropshire) Ltd,03/06/2021,360
"Communities, Customer & Commercial Services",Sport & Leisure,Supplies & Services,Sub Contractors,MSM Plant Limited,01/06/2021,1300
"Communities, Customer & Commercial Services",Sport & Leisure,Supplies & Services,Sub Contractors,MSM Plant Limited,01/06/2021,2246.58
"Communities, Customer & Commercial Services",Sport & Leisure,Supplies & Services,Sub Contractors,MSM Plant Limited,28/06/2021,1115.18
"Communities, Customer & Commercial Services",Sport & Leisure,Supplies & Services,Sub Contractors,MSM Plant Limited,28/06/2021,449.48
"Communities, Customer & Commercial Services",Sport & Leisure,Supplies & Services,Sub Contractors,MSM Plant Limited,29/06/2021,663.65
"Communities, Customer & Commercial Services",Sport & Leisure,Supplies & Services,Sub Contractors,MSM Plant Limited,01/06/2021,726.21
"Communities, Customer & Commercial Services",Sport & Leisure,Supplies & Services,Sub Contractors,MSM Plant Limited,01/06/2021,2533.99
"Communities, Customer & Commercial Services",Sport & Leisure,Supplies & Services,Sub Contractors,MSM Plant Limited,01/06/2021,1584.92
"Communities, Customer & Commercial Services",Sport & Leisure,Supplies & Services,Sub Contractors,MSM Plant Limited,02/06/2021,185.38
"Communities, Customer & Commercial Services",Sport & Leisure,Supplies & Services,Sub Contractors,MSM Plant Limited,02/06/2021,184.09
"Communities, Customer & Commercial Services",Sport & Leisure,Supplies & Services,Sub Contractors,MSM Plant Limited,02/06/2021,270
"Communities, Customer & Commercial Services",Sport & Leisure,Supplies & Services,Sub Contractors,BUSINESS WATCH GUARDING LIMITED,22/06/2021,264
"Communities, Customer & Commercial Services",Sport & Leisure,Supplies & Services,Sub Contractors,A HAND SERVICES (Dyno Rod) LTD,10/06/2021,280
"Communities, Customer & Commercial Services",Sport & Leisure,Supplies & Services,Sub Contractors,PORTAKABIN LTD,03/06/2021,1720.74
"Communities, Customer & Commercial Services",Sport & Leisure,Supplies & Services,Sub Contractors,Waterplay Solutions Limited,02/06/2021,275
"Communities, Customer & Commercial Services",Sport & Leisure,Supplies & Services,Sub Contractors,Waterplay Solutions Limited,02/06/2021,275
"Communities, Customer & Commercial Services",Sport & Leisure,Transport-Related Expenditure,Fuel,Butler Fuels,24/06/2021,1230.45
"Communities, Customer & Commercial Services",Sport & Leisure,Transport-Related Expenditure,Servicing & Repairs V&P,CHARLIES STORES LTD,16/06/2021,175.6
Corporate Communications,Communications & Marketing,Employees,Recruitment Advertising,360 Resourcing Solutions Ltd,02/06/2021,4485
Corporate Communications,Communications & Marketing,Supplies & Services,Community Newspaper,ROYAL MAIL GROUP PLC ,10/06/2021,8396.77
Corporate Communications,Communications & Marketing,Supplies & Services,Community Newspaper,ROYAL MAIL GROUP PLC ,10/06/2021,2223.58
Corporate Communications,Communications & Marketing,Supplies & Services,Marketing & Publicity,R F PHOTOGRAPHY,24/06/2021,140
Corporate Items,Corporate Codes,Capital Financing Costs,Penalty Deductions,PYRAMID SCHOOLS (HADLEY) LTD,25/06/2021,-457.96
Corporate Items,Corporate Codes,Capital Financing Costs,Unitary Charge,PYRAMID SCHOOLS (HADLEY) LTD,25/06/2021,894927.15
Corporate Items,Corporate Codes,Employees,Agency Supply Costs,Matrix SCM,14/06/2021,17775.31
Corporate Items,Corporate Codes,Employees,Agency Supply Costs,Matrix SCM,09/06/2021,24199.36
Corporate Items,Corporate Codes,Employees,Agency Supply Costs,Matrix SCM,24/06/2021,27201.75
Corporate Items,Corporate Codes,Employees,Agency Supply Costs,Matrix SCM,24/06/2021,27301.16
Education & Skills,Consultancy & Advisory Services,Employees,Agency Supply Costs,Permanent Futures Ltd,01/06/2021,4110
Education & Skills,Consultancy & Advisory Services,Employees,Agency Supply Costs,Permanent Futures Ltd,03/06/2021,2055
Education & Skills,Consultancy & Advisory Services,Employees,Agency Supply Costs,Permanent Futures Ltd,28/06/2021,2055
Education & Skills,Consultancy & Advisory Services,Employees,Agency Supply Costs,Permanent Futures Ltd,28/06/2021,2055
Education & Skills,Consultancy & Advisory Services,Employees,Agency Supply Costs,Permanent Futures Ltd,28/06/2021,2055
Education & Skills,Consultancy & Advisory Services,Employees,Agency Supply Costs,Permanent Futures Ltd,28/06/2021,2055
Education & Skills,Consultancy & Advisory Services,Premises-Related Expenditure,Hire Of Rooms,Mercure Telford Centre Hotel,01/06/2021,104.17
Education & Skills,Consultancy & Advisory Services,Premises-Related Expenditure,Hire Of Rooms,Mercure Telford Centre Hotel,24/06/2021,104.17
Education & Skills,Consultancy & Advisory Services,Premises-Related Expenditure,Hire Of Rooms,Mercure Telford Centre Hotel,24/06/2021,104.17
Education & Skills,Consultancy & Advisory Services,Supplies & Services,Other Grants (Expenses),EARLYWORLD LIMITED,11/06/2021,260
Education & Skills,Consultancy & Advisory Services,Supplies & Services,Other Grants (Expenses),EARLYWORLD LIMITED,11/06/2021,260
Education & Skills,Consultancy & Advisory Services,Supplies & Services,Other Grants (Expenses),HALESFIELD DAY NURSERY CENTRE ,11/06/2021,260
Education & Skills,Consultancy & Advisory Services,Supplies & Services,Other Grants (Expenses),ABC DAY NURSERY HOLLINSWOOD,11/06/2021,260
Education & Skills,Consultancy & Advisory Services,Supplies & Services,Other Grants (Expenses),Chec Mates Day Care,15/06/2021,1040
Education & Skills,Consultancy & Advisory Services,Supplies & Services,Other Grants (Expenses),Twiggy's Day Nursery DONNINGTON,01/06/2021,550
Education & Skills,Consultancy & Advisory Services,Supplies & Services,Other Grants (Expenses),Twiggys Day Nursery Ltd ,01/06/2021,550
Education & Skills,Consultancy & Advisory Services,Supplies & Services,Training Costs - Participants Recharged,Mercure Telford Centre Hotel,01/06/2021,163.22
Education & Skills,Culture & Recreation,Supplies & Services,Comp Software (Purch / Hire),Paritor Ltd,02/06/2021,2105.78
Education & Skills,Culture & Recreation,Supplies & Services,Other Expenses,Inspired Film and  Video Ltd,07/06/2021,8600
Education & Skills,Education & Skills,Capital Expenditure,Legal Fees,W H SOLICITORS,17/06/2021,167.2
Education & Skills,Education & Skills,Capital Expenditure,Legal Fees,W H SOLICITORS,17/06/2021,207
Education & Skills,Education & Skills,Capital Expenditure,Legal Fees,W H SOLICITORS,17/06/2021,410.6
Education & Skills,Education & Skills,Capital Expenditure,Legal Fees,W H SOLICITORS,17/06/2021,516
Education & Skills,Education & Skills,Capital Expenditure,Legal Fees,W H SOLICITORS,21/06/2021,592
Education & Skills,Education & Skills,Capital Expenditure,Legal Fees,W H SOLICITORS,23/06/2021,416.9
Education & Skills,Education & Skills,Capital Expenditure,Legal Fees,W H SOLICITORS,23/06/2021,1348.4
Education & Skills,Education & Skills,Capital Expenditure,Payments to Contractor, The Tree Man,09/06/2021,790
Education & Skills,Education & Skills,Capital Expenditure,Payments to Contractor,SGS DMW ENVIRONMENTAL SYSTEMS LTD,03/06/2021,225
Education & Skills,Education & Skills,Capital Expenditure,Payments to Contractor,SGS DMW ENVIRONMENTAL SYSTEMS LTD,03/06/2021,225
Education & Skills,Education & Skills,Capital Expenditure,Payments to Contractor,SGS DMW ENVIRONMENTAL SYSTEMS LTD,03/06/2021,225
Education & Skills,Education & Skills,Capital Expenditure,Payments to Contractor,E NCATERING SUPPLIES LTD,17/06/2021,341
Education & Skills,Education & Skills,Capital Expenditure,Payments to Contractor,P (BUILDERS) LTD,22/06/2021,27379
Education & Skills,Education & Skills,Capital Expenditure,Payments to Contractor,R G STONES (BUILDINGS) LTD,03/06/2021,111309.06
Education & Skills,Education & Skills,Capital Expenditure,Payments to Contractor,SGS DMW ENVIRONMENTAL SYSTEMS LTD,07/06/2021,656
Education & Skills,Education & Skills,Capital Expenditure,Payments to Contractor,Cubic FM Ltd,16/06/2021,6500
Education & Skills,Education & Skills,Capital Expenditure,Payments to Contractor,Read Construction Holdings Ltd,03/06/2021,293984.75
Education & Skills,Education & Skills,Capital Expenditure,Payments to Contractor,M Property Ltd,03/06/2021,314201.74
Education & Skills,Education & Skills,Capital Expenditure,Payments to Contractor,Salopian Consutancy Ltd,09/06/2021,123
Education & Skills,Education & Skills,Capital Expenditure,Payments to Contractor,WREKIN SERVICES LTD,30/06/2021,487.06
Education & Skills,Education & Skills,Capital Expenditure,Payments to Contractor,SGS DMW ENVIRONMENTAL SYSTEMS LTD,07/06/2021,225
Education & Skills,Education & Skills,Capital Expenditure,Payments to Contractor,B J Engineers Limited,23/06/2021,975
Education & Skills,Pupil Support Services,Third Party Payments,DSG - High Needs Block,THE EDUCATION DEVELOPMENT SERVICE LTD,16/06/2021,5700
Education & Skills,Pupil Support Services,Third Party Payments,Misc. Education Payments to Non Schools,HRP Education,14/06/2021,490
Education & Skills,SEND (0-25),Employees,Agency Supply Costs,Guide Dogs for the Blind,21/06/2021,1189
Education & Skills,SEND (0-25),Employees,Professional Subs,KENT COUNTY COUNCIL,22/06/2021,350
Education & Skills,SEND (0-25),Employees,Recruitment Advertising,Association of Educational Psychologist,21/06/2021,700
Education & Skills,SEND (0-25),Supplies & Services,Aids & Appliances,RNIB ENTERPRISES LTD,04/06/2021,130
Education & Skills,SEND (0-25),Supplies & Services,Equipment - Purchase,OTICON LIMITED,04/06/2021,652.8
Education & Skills,SEND (0-25),Supplies & Services,Equipment - Purchase,OTICON LIMITED,04/06/2021,3312
Education & Skills,SEND (0-25),Supplies & Services,Equipment - Purchase,OTICON LIMITED,04/06/2021,-100.75
Education & Skills,SEND (0-25),Supplies & Services,Equipment - Purchase,OTICON LIMITED,04/06/2021,828
Education & Skills,SEND (0-25),Supplies & Services,Equipment - Purchase,OTICON LIMITED,04/06/2021,414
Education & Skills,SEND (0-25),Supplies & Services,Equipment - Purchase,PHONAK UK LTD,21/06/2021,547
Education & Skills,SEND (0-25),Supplies & Services,Health & Safety Expenses,G & S SMIRTHWAITE LTD,03/06/2021,561
Education & Skills,SEND (0-25),Supplies & Services,Other Services,GL Assessments,04/06/2021,230
Education & Skills,SEND (0-25),Third Party Payments,DSG - High Needs Block,PRIORSLEE ACADEMY,24/06/2021,1915.56
Education & Skills,SEND (0-25),Third Party Payments,DSG - High Needs Block,PRIORSLEE ACADEMY,04/06/2021,1915.56
Education & Skills,SEND (0-25),Third Party Payments,DSG - High Needs Block,PRIORSLEE ACADEMY,24/06/2021,261.21
Education & Skills,SEND (0-25),Third Party Payments,DSG - High Needs Block,PRIORSLEE ACADEMY,04/06/2021,261.21
Education & Skills,SEND (0-25),Third Party Payments,DSG - High Needs Block,THOMAS TELFORD SCHOOL ,04/06/2021,696.57
Education & Skills,SEND (0-25),Third Party Payments,DSG - High Needs Block,THOMAS TELFORD SCHOOL ,24/06/2021,696.57
Education & Skills,SEND (0-25),Third Party Payments,DSG - High Needs Block,Wrekin View Primary School,24/06/2021,4788.9
Education & Skills,SEND (0-25),Third Party Payments,DSG - High Needs Block,Wrekin View Primary School,04/06/2021,4788.9
Education & Skills,SEND (0-25),Third Party Payments,DSG - High Needs Block,Wrekin View Primary School,24/06/2021,423.76
Education & Skills,SEND (0-25),Third Party Payments,DSG - High Needs Block,Wrekin View Primary School,04/06/2021,423.76
Education & Skills,SEND (0-25),Third Party Payments,DSG - High Needs Block,CAT - Telford Priory School,24/06/2021,4963.04
Education & Skills,SEND (0-25),Third Party Payments,DSG - High Needs Block,CAT - Telford Priory School,04/06/2021,4963.04
Education & Skills,SEND (0-25),Third Party Payments,DSG - High Needs Block,CAT - Telford Priory School,24/06/2021,389.5
Education & Skills,SEND (0-25),Third Party Payments,DSG - High Needs Block,CAT - Telford Priory School,04/06/2021,389.5
Education & Skills,SEND (0-25),Third Party Payments,DSG - High Needs Block,Telford Park School,24/06/2021,5833.75
Education & Skills,SEND (0-25),Third Party Payments,DSG - High Needs Block,Telford Park School,04/06/2021,5833.75
Education & Skills,SEND (0-25),Third Party Payments,DSG - High Needs Block,The Telford Langley School ,24/06/2021,7226.89
Education & Skills,SEND (0-25),Third Party Payments,DSG - High Needs Block,The Telford Langley School ,04/06/2021,7226.89
Education & Skills,SEND (0-25),Third Party Payments,DSG - High Needs Block,Hadley Learning Community Academy,21/06/2021,3918.19
Education & Skills,SEND (0-25),Third Party Payments,DSG - High Needs Block,Hadley Learning Community Academy,24/06/2021,3918.19
Education & Skills,SEND (0-25),Third Party Payments,DSG - High Needs Block,Hadley Learning Community Academy,04/06/2021,14802.06
Education & Skills,SEND (0-25),Third Party Payments,DSG - High Needs Block,Hadley Learning Community Academy,04/06/2021,39181.92
Education & Skills,SEND (0-25),Third Party Payments,DSG - High Needs Block,Hadley Learning Community Academy,21/06/2021,174.14
Education & Skills,SEND (0-25),Third Party Payments,DSG - High Needs Block,Hadley Learning Community Academy,24/06/2021,174.14
Education & Skills,SEND (0-25),Third Party Payments,DSG - High Needs Block,Hadley Learning Community Academy,04/06/2021,261.21
Education & Skills,SEND (0-25),Third Party Payments,DSG - High Needs Block,Hadley Learning Community Academy,04/06/2021,1741.4
Education & Skills,SEND (0-25),Third Party Payments,DSG - High Needs Block,Charlton Academy,24/06/2021,3395.76
Education & Skills,SEND (0-25),Third Party Payments,DSG - High Needs Block,Charlton Academy,04/06/2021,3395.76
Education & Skills,SEND (0-25),Third Party Payments,DSG - High Needs Block,Charlton Academy,24/06/2021,289.84
Education & Skills,SEND (0-25),Third Party Payments,DSG - High Needs Block,Charlton Academy,04/06/2021,289.84
Education & Skills,SEND (0-25),Third Party Payments,DSG - High Needs Block,Queensway HLC,11/06/2021,62132
Education & Skills,SEND (0-25),Third Party Payments,DSG - High Needs Block,Queensway HLC,11/06/2021,65127.75
Education & Skills,SEND (0-25),Third Party Payments,DSG - High Needs Block,Ercall Wood Academy,24/06/2021,13757.2
Education & Skills,SEND (0-25),Third Party Payments,DSG - High Needs Block,Ercall Wood Academy,04/06/2021,13757.2
Education & Skills,SEND (0-25),Third Party Payments,DSG - High Needs Block,Ercall Wood Academy,24/06/2021,522.42
Education & Skills,SEND (0-25),Third Party Payments,DSG - High Needs Block,Ercall Wood Academy,04/06/2021,522.42
Education & Skills,SEND (0-25),Third Party Payments,DSG - High Needs Block,Redhill Primary Academy,24/06/2021,671.33
Education & Skills,SEND (0-25),Third Party Payments,DSG - High Needs Block,Redhill Primary Academy,04/06/2021,671.33
Education & Skills,SEND (0-25),Third Party Payments,DSG - High Needs Block,Redhill Primary Academy,24/06/2021,4179.41
Education & Skills,SEND (0-25),Third Party Payments,DSG - High Needs Block,Redhill Primary Academy,04/06/2021,4179.41
Education & Skills,SEND (0-25),Third Party Payments,DSG - High Needs Block,ABRAHAM DARBY ACADEMY,24/06/2021,1131.92
Education & Skills,SEND (0-25),Third Party Payments,DSG - High Needs Block,ABRAHAM DARBY ACADEMY,04/06/2021,1131.92
Education & Skills,SEND (0-25),Third Party Payments,DSG - High Needs Block,ABRAHAM DARBY ACADEMY,24/06/2021,6617.39
Education & Skills,SEND (0-25),Third Party Payments,DSG - High Needs Block,ABRAHAM DARBY ACADEMY,04/06/2021,6617.39
Education & Skills,SEND (0-25),Third Party Payments,DSG - High Needs Block,LANDAU LTD,11/06/2021,95986.43
Education & Skills,SEND (0-25),Third Party Payments,DSG - High Needs Block,LANDAU LTD,11/06/2021,320
Education & Skills,SEND (0-25),Third Party Payments,DSG - High Needs Block,MADELEY ACADEMY TRUST LTD,04/06/2021,5833.75
Education & Skills,SEND (0-25),Third Party Payments,DSG - High Needs Block,MADELEY ACADEMY TRUST LTD,24/06/2021,5833.75
Education & Skills,SEND (0-25),Third Party Payments,DSG - High Needs Block,MADELEY ACADEMY TRUST LTD,04/06/2021,348.28
Education & Skills,SEND (0-25),Third Party Payments,DSG - High Needs Block,MADELEY ACADEMY TRUST LTD,24/06/2021,348.28
Education & Skills,SEND (0-25),Third Party Payments,DSG - High Needs Block,TELFORD COLLEGE,25/06/2021,220461.25
Education & Skills,SEND (0-25),Third Party Payments,DSG - High Needs Block,The National Teaching & Advisory Service,11/06/2021,195
Education & Skills,SEND (0-25),Third Party Payments,DSG - High Needs Block,Lawley Village Academy,24/06/2021,435.35
Education & Skills,SEND (0-25),Third Party Payments,DSG - High Needs Block,Lawley Village Academy,04/06/2021,435.35
Education & Skills,SEND (0-25),Third Party Payments,DSG - High Needs Block,Lawley Village Academy,24/06/2021,174.14
Education & Skills,SEND (0-25),Third Party Payments,DSG - High Needs Block,Lawley Village Academy,04/06/2021,174.14
Education & Skills,SEND (0-25),Third Party Payments,DSG - High Needs Block,Priory Group (Cheadle Royal School),24/06/2021,3150
Education & Skills,SEND (0-25),Third Party Payments,DSG - High Needs Block,Priory Group (Cheadle Royal School),24/06/2021,262.5
Education & Skills,SEND (0-25),Third Party Payments,DSG - High Needs Block,Options Higford (Options Autism (5) Limited,04/06/2021,38095.81
Education & Skills,SEND (0-25),Third Party Payments,DSG - High Needs Block,Options Higford (Options Autism (5) Limited,21/06/2021,35756.84
Education & Skills,SEND (0-25),Third Party Payments,DSG - High Needs Block,Options Higford (Options Autism (5) Limited,21/06/2021,33464.72
Education & Skills,SEND (0-25),Third Party Payments,DSG - High Needs Block,Grange Park Primary School - Community Academies Trust,24/06/2021,4614.76
Education & Skills,SEND (0-25),Third Party Payments,DSG - High Needs Block,Grange Park Primary School - Community Academies Trust,04/06/2021,4614.76
Education & Skills,SEND (0-25),Third Party Payments,DSG - High Needs Block,Dawley C of E Primary Academy,24/06/2021,870.71
Education & Skills,SEND (0-25),Third Party Payments,DSG - High Needs Block,Dawley C of E Primary Academy,04/06/2021,870.71
Education & Skills,SEND (0-25),Third Party Payments,DSG - High Needs Block,Dawley C of E Primary Academy,24/06/2021,696.57
Education & Skills,SEND (0-25),Third Party Payments,DSG - High Needs Block,Dawley C of E Primary Academy,04/06/2021,696.57
Education & Skills,SEND (0-25),Third Party Payments,DSG - High Needs Block,Apley Village Day Nursery,11/06/2021,3663.18
Education & Skills,SEND (0-25),Third Party Payments,DSG - High Needs Block,Windmill Primary School Academy,24/06/2021,957.78
Education & Skills,SEND (0-25),Third Party Payments,DSG - High Needs Block,Windmill Primary School Academy,04/06/2021,957.78
Education & Skills,SEND (0-25),Third Party Payments,DSG - High Needs Block,Send4Change Ltd,04/06/2021,4900
Education & Skills,SEND (0-25),Third Party Payments,DSG - High Needs Block,Spring Hill High School,21/06/2021,21983.67
Education & Skills,SEND (0-25),Third Party Payments,DSG - High Needs Block,Acorn Care & Education Ltd,21/06/2021,26697.14
Education & Skills,SEND (0-25),Third Party Payments,DSG - High Needs Block,Keys PCE Limited,24/06/2021,3230
Education & Skills,SEND (0-25),Third Party Payments,DSG - High Needs Block,Keys PCE Limited,24/06/2021,3420
Education & Skills,SEND (0-25),Third Party Payments,DSG - High Needs Block,Keys PCE Limited,11/06/2021,1700
Education & Skills,SEND (0-25),Third Party Payments,DSG - High Needs Block,HRP Education,04/06/2021,490
Education & Skills,SEND (0-25),Third Party Payments,DSG - High Needs Block,HRP Education,04/06/2021,588
Education & Skills,SEND (0-25),Third Party Payments,DSG - High Needs Block,HRP Education,04/06/2021,588
Education & Skills,SEND (0-25),Third Party Payments,DSG - High Needs Block,HRP Education,04/06/2021,147
Education & Skills,SEND (0-25),Third Party Payments,DSG - High Needs Block,HRP Education,04/06/2021,245
Education & Skills,SEND (0-25),Third Party Payments,DSG - High Needs Block,Crudgington Primary School,24/06/2021,1131.92
Education & Skills,SEND (0-25),Third Party Payments,DSG - High Needs Block,Crudgington Primary School,04/06/2021,1131.92
Education & Skills,SEND (0-25),Third Party Payments,DSG - High Needs Block,Tamworth Amateur Boxing Club,17/06/2021,350
Education & Skills,SEND (0-25),Transport-Related Expenditure,Parents Reimbursements,Helen Ashby,21/06/2021,317.58
Education & Skills,SEND (0-25),Transport-Related Expenditure,Taxi Costs,Telford and Wrekin Community Enterprise LTD,04/06/2021,588.2
Education & Skills,SEND (0-25),Transport-Related Expenditure,Taxi Costs,Telford and Wrekin Community Enterprise LTD,04/06/2021,397.8
Education & Skills,SEND (0-25),Transport-Related Expenditure,Taxi Costs,Telford Cars (Madison Park Limited),11/06/2021,912
Education & Skills,SEND (0-25),Transport-Related Expenditure,Taxi Costs,Telford Cars (Madison Park Limited),11/06/2021,616
Education & Skills,SEND (0-25),Transport-Related Expenditure,Taxi Costs,Go Carz,24/06/2021,462
Education & Skills,SEND (0-25),Transport-Related Expenditure,Taxi Costs,Go Carz,24/06/2021,666
Education & Skills,SEND (0-25),Transport-Related Expenditure,Taxi Costs,Go Carz,24/06/2021,532
Education & Skills,SEND (0-25),Transport-Related Expenditure,Taxi Costs,Go Carz,24/06/2021,1260
Education & Skills,SEND (0-25),Transport-Related Expenditure,Taxi Costs,Go Carz,24/06/2021,360
Education & Skills,SEND (0-25),Transport-Related Expenditure,Taxi Costs,Go Carz,24/06/2021,396
Education & Skills,SEND (0-25),Transport-Related Expenditure,Taxi Costs,Go Carz,24/06/2021,418
Education & Skills,SEND (0-25),Transport-Related Expenditure,Transport Contractors,A-STAR TRANSPORT MIDLANDS LTD,04/06/2021,6032.5
Education & Skills,Skills,Employees,Course Fees,QUALSAFE.COM,22/06/2021,318.65
Education & Skills,Skills,Premises-Related Expenditure,Hire Of Rooms,MADELEY PARISH COUNCIL ,01/06/2021,140.25
Education & Skills,Skills,Premises-Related Expenditure,Hire Of Rooms,OAKENGATES TOWN COUNCIL,01/06/2021,195
Education & Skills,Skills,Premises-Related Expenditure,Hire Of Rooms,OAKENGATES TOWN COUNCIL,17/06/2021,150
Education & Skills,Skills,Premises-Related Expenditure,Hire Of Rooms,DONNINGTON PARTNERSHIP,17/06/2021,140.25
Education & Skills,Skills,Premises-Related Expenditure,Hire Of Rooms,DONNINGTON PARTNERSHIP,17/06/2021,625
Education & Skills,Skills,Premises-Related Expenditure,Hire Of Rooms,PARK LANE CENTRE,01/06/2021,450
Education & Skills,Skills,Premises-Related Expenditure,Hire Of Rooms,Brookside Central,01/06/2021,2500
Education & Skills,Skills,Premises-Related Expenditure,Hire Of Rooms,Brookside Central,01/06/2021,625
Education & Skills,Skills,Premises-Related Expenditure,Hire Of Rooms,Brookside Central,01/06/2021,2500
Education & Skills,Skills,Premises-Related Expenditure,Hire Of Rooms,Sutton Hill Community Trust,07/06/2021,130.5
Education & Skills,Skills,Premises-Related Expenditure,Hire Of Rooms,The Leegate Centre CIC,01/06/2021,120
Education & Skills,Skills,Premises-Related Expenditure,Hire Of Rooms,The Leegate Centre CIC,07/06/2021,240
Education & Skills,Skills,Supplies & Services,Computer Software (Maint),CogniSoft Limited,10/06/2021,10477.95
Education & Skills,Skills,Supplies & Services,Computer Software (Maint),CogniSoft Limited,07/06/2021,3442.5
Education & Skills,Skills,Supplies & Services,Computer Software (Maint),CogniSoft Limited,07/06/2021,382.5
Education & Skills,Skills,Supplies & Services,Consumable Stores,J. V V,01/06/2021,117.07
Education & Skills,Skills,Supplies & Services,Exam Fees,CITY & GUILDS,01/06/2021,281.06
Education & Skills,Skills,Supplies & Services,Exam Fees,CITY & GUILDS,17/06/2021,814
Education & Skills,Skills,Supplies & Services,Exam Fees,CITY & GUILDS,17/06/2021,564.25
Education & Skills,Skills,Supplies & Services,Exam Fees,CITY & GUILDS,17/06/2021,131.45
Education & Skills,Skills,Supplies & Services,Exam Fees,OPEN COLLEGE NETWORK WEST MIDLANDS REGION,07/06/2021,273
Education & Skills,Skills,Supplies & Services,Exam Fees,OPEN COLLEGE NETWORK WEST MIDLANDS REGION,07/06/2021,259
Education & Skills,Skills,Supplies & Services,Exam Fees,OPEN COLLEGE NETWORK WEST MIDLANDS REGION,17/06/2021,378
Education & Skills,Skills,Supplies & Services,Exam Fees,OPEN COLLEGE NETWORK WEST MIDLANDS REGION,17/06/2021,110
Education & Skills,Skills,Supplies & Services,Exam Fees,OPEN COLLEGE NETWORK WEST MIDLANDS REGION,17/06/2021,384
Education & Skills,Skills,Supplies & Services,Software Purchases,PHOENIX SOFTWARE LTD,09/06/2021,914.4
Education & Skills,Skills,Supplies & Services,Sub Contractors,PROSPECTS SERVICES LTD,08/06/2021,122.1
Education & Skills,Skills,Supplies & Services,Subscriptions,Career Development Institute,17/06/2021,140
Finance & Human Resources,Employment Services & Purchase Ledger,Supplies & Services,Computer Hardware (Maint),LAVAT Consulting Limited,30/06/2021,180
Finance & Human Resources,Employment Services & Purchase Ledger,Supplies & Services,Fees,MERIDIAN COST BENEFIT LTD,10/06/2021,384.49
Finance & Human Resources,Employment Services & Purchase Ledger,Supplies & Services,Other Expenses,TELFORD CHRISTIAN COUNCIL SUPPORTED HOUS,23/06/2021,-6091.95
Finance & Human Resources,Finance,Supplies & Services,External Audit Fees,G THORNTON UK LLP,21/06/2021,22545
Finance & Human Resources,Finance,Supplies & Services,Other Services,ALLPAY.NET LIMITED,09/06/2021,2051.72
Finance & Human Resources,Finance Manager (Corporate & Capital),Supplies & Services,Other Expenses,THE MIDLAND NEWS ASSOCIATION LTD,16/06/2021,332.64
Finance & Human Resources,Human Resources,Employees,Criminal Records Bureau Checks,Capita Recruitment Vetting Service,08/06/2021,510.6
Finance & Human Resources,Human Resources,Employees,Criminal Records Bureau Checks,DISCLOSURE & BARRING SERVICE,15/06/2021,8858
Finance & Human Resources,Human Resources,Employees,Other Employee Costs,Health Assured Ltd,15/06/2021,5760.72
Finance & Human Resources,Human Resources,Supplies & Services,Doctors Fees,Health Assured Ltd,15/06/2021,5760.72
Finance & Human Resources,Human Resources,Supplies & Services,Subscriptions,LNRS Data Services Limited,16/06/2021,725
Finance & Human Resources,Human Resources,Supplies & Services,Subscriptions,West Midlands Employers,08/06/2021,10090
Finance & Human Resources,Revenues,Supplies & Services,Franking Machine Service,FRANCOTYP-POSTALIA LTD ,14/06/2021,1000
Finance & Human Resources,Revenues,Supplies & Services,IT Services,NEC Software Solutions UK Ltd,02/06/2021,1425
Finance & Human Resources,Revenues,Supplies & Services,IT Services,NEC Software Solutions UK Ltd,02/06/2021,450
Finance & Human Resources,Revenues,Supplies & Services,Postages,ROYAL MAIL GROUP PLC,22/06/2021,2175.71
Finance & Human Resources,Revenues,Supplies & Services,Postages,ROYAL MAIL GROUP PLC,04/06/2021,2211.94
Finance & Human Resources,Revenues,Supplies & Services,Postages,ROYAL MAIL GROUP PLC,04/06/2021,-5602.72
Finance & Human Resources,Revenues,Supplies & Services,Postages,ROYAL MAIL GROUP PLC,04/06/2021,2130.95
Finance & Human Resources,Revenues,Supplies & Services,Postages,ROYAL MAIL GROUP PLC,04/06/2021,3805.03
Finance & Human Resources,Revenues,Supplies & Services,Postages,ROYAL MAIL GROUP PLC,14/06/2021,1100.23
Finance & Human Resources,Revenues,Supplies & Services,Postages,ROYAL MAIL GROUP PLC,14/06/2021,167.44
Finance & Human Resources,Revenues,Supplies & Services,Postages,FREELANCE BUSINESS ASSOCIATES,10/06/2021,285
Finance & Human Resources,Revenues,Supplies & Services,Postages,G FORCE EXPRESS PARCELS LTD,14/06/2021,108.78
Finance & Human Resources,Revenues,Supplies & Services,Postages,Financial Data Management plc,22/06/2021,1456.06
Finance & Human Resources,Revenues,Supplies & Services,Postages,Financial Data Management plc,22/06/2021,113.17
Finance & Human Resources,Revenues,Supplies & Services,Postages,Financial Data Management plc,22/06/2021,244.16
Finance & Human Resources,Revenues,Supplies & Services,Postages,Financial Data Management plc,22/06/2021,1036.11
Finance & Human Resources,Revenues,Supplies & Services,Postages,Financial Data Management plc,22/06/2021,330.54
Finance & Human Resources,Revenues,Supplies & Services,Postages,Financial Data Management plc,22/06/2021,866.34
Finance & Human Resources,Revenues,Supplies & Services,Postages,Financial Data Management plc,22/06/2021,299.27
Finance & Human Resources,Revenues,Supplies & Services,Postages,Financial Data Management plc,22/06/2021,278.43
Finance & Human Resources,Revenues,Supplies & Services,Postages,Financial Data Management plc,22/06/2021,120.73
Finance & Human Resources,Revenues,Supplies & Services,Postages,Francotyp-Postalia Ltd,14/06/2021,421.95
Finance & Human Resources,Revenues,Supplies & Services,Printing - Laminated Stationery for Catering,LEXON GB LTD,25/06/2021,4122.04
Finance & Human Resources,Revenues,Supplies & Services,Printing - Other,Financial Data Management plc,10/06/2021,1972
Finance & Human Resources,Revenues,Supplies & Services,Printing - Other,Prontaprint - Stratford,25/06/2021,351.6
Finance & Human Resources,Revenues,Supplies & Services,Stationery,PREMIER PAPER GROUP LTD,16/06/2021,142.9
"Health, Wellbeing & Commissioning","Commissioning, Procurement & Brokerage",Supplies & Services,Other Grants (Expenses),ANCHOR HOUSING TRUST,01/06/2021,133.33
"Health, Wellbeing & Commissioning","Commissioning, Procurement & Brokerage",Supplies & Services,Other Grants (Expenses),BROMFORD HOUSING ASSOCIATION LIMITED,01/06/2021,36666.67
"Health, Wellbeing & Commissioning","Commissioning, Procurement & Brokerage",Supplies & Services,Other Grants (Expenses),TELFORD CHRISTIAN COUNCIL SUPPORTED HOUS,01/06/2021,36401.83
"Health, Wellbeing & Commissioning","Commissioning, Procurement & Brokerage",Supplies & Services,Other Grants (Expenses),SANCTUARY HOUSING ASSOCIATION,01/06/2021,610.7
"Health, Wellbeing & Commissioning","Commissioning, Procurement & Brokerage",Supplies & Services,Other Grants (Expenses),HANOVER HOUSING ASSOCIATION,01/06/2021,750
"Health, Wellbeing & Commissioning","Commissioning, Procurement & Brokerage",Supplies & Services,Other Grants (Expenses),O B HOMES,01/06/2021,433.33
"Health, Wellbeing & Commissioning","Commissioning, Procurement & Brokerage",Supplies & Services,Other Grants (Expenses),WREKIN HOUSING TRUST,01/06/2021,25568.33
"Health, Wellbeing & Commissioning","Commissioning, Procurement & Brokerage",Supplies & Services,Other Grants (Expenses),Wealden & Eastbourne Lifeline (WELBEING),23/06/2021,5217.17
"Health, Wellbeing & Commissioning","Commissioning, Procurement & Brokerage",Supplies & Services,Other Grants (Expenses),Wealden & Eastbourne Lifeline (WELBEING),23/06/2021,3815.12
"Health, Wellbeing & Commissioning","Commissioning, Procurement & Brokerage",Supplies & Services,Other Grants (Expenses),Wealden & Eastbourne Lifeline (WELBEING),23/06/2021,1882.09
"Health, Wellbeing & Commissioning",Consultant in Public Health,Supplies & Services,Comp Software (Purch / Hire),PHOENIX SOFTWARE LTD,29/06/2021,756.7
"Health, Wellbeing & Commissioning",Consultant in Public Health,Supplies & Services,Other Grants (Expenses),Osborne Richardson Ltd,03/06/2021,1665
"Health, Wellbeing & Commissioning",Consultant in Public Health,Supplies & Services,Other Grants (Expenses),The Oyster Partnership Ltd,23/06/2021,787.5
"Health, Wellbeing & Commissioning",Consultant in Public Health,Supplies & Services,Other Grants (Expenses),The Oyster Partnership Ltd,15/06/2021,758.45
"Health, Wellbeing & Commissioning",Consultant in Public Health,Supplies & Services,Other Grants (Expenses),The Oyster Partnership Ltd,15/06/2021,886.55
"Health, Wellbeing & Commissioning",Consultant in Public Health,Supplies & Services,Other Services,Central Health Solutions Ltd,15/06/2021,1534
"Health, Wellbeing & Commissioning",Consultant in Public Health,Supplies & Services,Service Contracts,Midlands Partnership NHS Trust,30/06/2021,441561.44
"Health, Wellbeing & Commissioning",Consultant in Public Health,Supplies & Services,Service Contracts,COSY HALL,11/06/2021,4500
"Health, Wellbeing & Commissioning",Consultant in Public Health,Supplies & Services,Service Contracts,COSY HALL,09/06/2021,4500
"Health, Wellbeing & Commissioning",Consultant in Public Health,Supplies & Services,Service Contracts,COSY HALL,09/06/2021,5860
"Health, Wellbeing & Commissioning",Consultant in Public Health,Supplies & Services,Service Contracts,Anstice Community Trust,18/06/2021,2860
"Health, Wellbeing & Commissioning",Consultant in Public Health,Supplies & Services,Service Contracts,Anstice Community Trust,09/06/2021,3530
"Health, Wellbeing & Commissioning",Consultant in Public Health,Supplies & Services,Sub Contractors,Walsall Healthcare NHS Trust,23/06/2021,137
"Health, Wellbeing & Commissioning",Consultant in Public Health,Supplies & Services,Sub Contractors,Walsall Healthcare NHS Trust,23/06/2021,107.71
"Health, Wellbeing & Commissioning",Consultant in Public Health,Supplies & Services,Sub Contractors,The Royal Wolverhampton NHS Trust,23/06/2021,105
"Health, Wellbeing & Commissioning",Consultant in Public Health,Supplies & Services,Sub Contractors,Cambridgeshire Community Services NHS Trust,23/06/2021,136
"Health, Wellbeing & Commissioning",Consultant in Public Health,Supplies & Services,Sub Contractors,Southport & Ormskirk Hospital NHS Trust,23/06/2021,136
"Health, Wellbeing & Commissioning",Consultant in Public Health,Supplies & Services,Sub Contractors,Alere Uk Holdings Ltd,29/06/2021,412.5
"Health, Wellbeing & Commissioning",Consultant in Public Health,Supplies & Services,Sub Contractors,Alere Uk Holdings Ltd,17/06/2021,190
"Health, Wellbeing & Commissioning",Consultant in Public Health,Supplies & Services,Sub Contractors,NHS Midlands and Lancashire CSU,10/06/2021,3061
"Health, Wellbeing & Commissioning",Consultant in Public Health,Supplies & Services,Sub Contractors,Midlands Partnership NHS Trust,30/06/2021,241103
"Health, Wellbeing & Commissioning",Health Improvement,Premises-Related Expenditure,Hire Of Rooms,Lifestyle Connect,20/06/2021,2050
"Health, Wellbeing & Commissioning",Health Improvement,Supplies & Services,Criminal Records Bureau Checks,WF Education Group Limited,04/06/2021,485
"Health, Wellbeing & Commissioning",Health Improvement,Supplies & Services,Equipment - Purchase,Purely Nutrition Ltd,04/06/2021,150
"Health, Wellbeing & Commissioning",Health Improvement,Supplies & Services,Libraries Book Fund,PETERS  LTD,30/06/2021,140.45
"Health, Wellbeing & Commissioning",Health Improvement,Supplies & Services,Libraries Book Fund,PETERS  LTD,30/06/2021,200.71
"Health, Wellbeing & Commissioning",Health Improvement,Supplies & Services,Libraries Book Fund,PETERS  LTD,30/06/2021,196.56
"Health, Wellbeing & Commissioning",Health Improvement,Supplies & Services,Other Services,WORKERS EDUCATIONAL ASSOCIATION,04/06/2021,1600
"Health, Wellbeing & Commissioning",Health Improvement,Supplies & Services,Subscriptions,Specialist Support Services,04/06/2021,360
"Housing, Employment & Infrastructure",Inward Investment & Business Support,Capital Expenditure,Payments to Contractor,R F PHOTOGRAPHY,14/06/2021,240
"Housing, Employment & Infrastructure",Inward Investment & Business Support,Capital Expenditure,Payments to Contractor,P (BUILDERS) LTD,24/06/2021,440
"Housing, Employment & Infrastructure",Inward Investment & Business Support,Capital Expenditure,Payments to Contractor,Exascale Limited,07/06/2021,67500
"Housing, Employment & Infrastructure",Inward Investment & Business Support,Employees,Staff Training,APSE (MANCHESTER),10/06/2021,175
"Housing, Employment & Infrastructure",Inward Investment & Business Support,Employees,Training Expenses,Fraggle Works Limited,21/06/2021,255
"Housing, Employment & Infrastructure",Inward Investment & Business Support,Employees,Training Expenses,Connect Consultancy (Shropshire) Limited,16/06/2021,425
"Housing, Employment & Infrastructure",Inward Investment & Business Support,Supplies & Services,Consultancy,WEST MIDLANDS COMBINED AUTHORITY,21/06/2021,25000
"Housing, Employment & Infrastructure",Inward Investment & Business Support,Supplies & Services,Consultancy,Alcium Software Ltd,21/06/2021,750
"Housing, Employment & Infrastructure",Inward Investment & Business Support,Supplies & Services,Consultancy,Elkro Limited,14/06/2021,1499.17
"Housing, Employment & Infrastructure",Inward Investment & Business Support,Supplies & Services,Consultancy,Kensa Creative Ltd,21/06/2021,240
"Housing, Employment & Infrastructure",Inward Investment & Business Support,Supplies & Services,Other Grants (Expenses),Good2Great Ltd,21/06/2021,18915.51
"Housing, Employment & Infrastructure",Inward Investment & Business Support,Supplies & Services,Other Grants (Expenses),Wrekin College,24/06/2021,20000
"Housing, Employment & Infrastructure",Inward Investment & Business Support,Supplies & Services,Other Grants (Expenses),ibd Business Advice Group Ltd,21/06/2021,1583.75
"Housing, Employment & Infrastructure",Inward Investment & Business Support,Supplies & Services,Other Grants (Expenses),ibd Business Advice Group Ltd,21/06/2021,1820
"Housing, Employment & Infrastructure",Inward Investment & Business Support,Supplies & Services,Other Grants (Expenses),ERDF GRANTS SUNDRY,11/06/2021,2385.01
"Housing, Employment & Infrastructure",Inward Investment & Business Support,Supplies & Services,Other Grants (Expenses),ERDF GRANTS SUNDRY,11/06/2021,1903.52
"Housing, Employment & Infrastructure",Inward Investment & Business Support,Supplies & Services,Other Grants (Expenses),ERDF GRANTS SUNDRY,11/06/2021,2500
"Housing, Employment & Infrastructure",Inward Investment & Business Support,Supplies & Services,Other Grants (Expenses),ERDF GRANTS SUNDRY,11/06/2021,2999
"Housing, Employment & Infrastructure",Inward Investment & Business Support,Supplies & Services,Other Grants (Expenses),ERDF GRANTS SUNDRY,11/06/2021,3575.39
"Housing, Employment & Infrastructure",Inward Investment & Business Support,Supplies & Services,Other Grants (Expenses),ERDF GRANTS SUNDRY,11/06/2021,3600
"Housing, Employment & Infrastructure",Inward Investment & Business Support,Supplies & Services,Other Grants (Expenses),ERDF GRANTS SUNDRY,17/06/2021,1498
"Housing, Employment & Infrastructure",Inward Investment & Business Support,Supplies & Services,Other Grants (Expenses),ERDF GRANTS SUNDRY,17/06/2021,2558.95
"Housing, Employment & Infrastructure",Inward Investment & Business Support,Supplies & Services,Other Grants (Expenses),ERDF GRANTS SUNDRY,17/06/2021,3600
"Housing, Employment & Infrastructure",Inward Investment & Business Support,Supplies & Services,Other Grants (Expenses),ERDF GRANTS SUNDRY,11/06/2021,3000
"Housing, Employment & Infrastructure",Inward Investment & Business Support,Supplies & Services,Other Grants (Expenses),ERDF GRANTS SUNDRY,11/06/2021,1399.5
"Housing, Employment & Infrastructure",Inward Investment & Business Support,Supplies & Services,Other Grants (Expenses),ERDF GRANTS SUNDRY,24/06/2021,421.93
"Housing, Employment & Infrastructure",Inward Investment & Business Support,Supplies & Services,Other Grants (Expenses),ERDF GRANTS SUNDRY,24/06/2021,2940.83
"Housing, Employment & Infrastructure",Inward Investment & Business Support,Supplies & Services,Other Grants (Expenses),ERDF GRANTS SUNDRY,24/06/2021,2988
"Housing, Employment & Infrastructure",Inward Investment & Business Support,Supplies & Services,Other Grants (Expenses),ERDF GRANTS SUNDRY,24/06/2021,2990
"Housing, Employment & Infrastructure",Inward Investment & Business Support,Supplies & Services,Other Grants (Expenses),ERDF GRANTS SUNDRY,11/06/2021,2995
"Housing, Employment & Infrastructure",Inward Investment & Business Support,Supplies & Services,Other Grants (Expenses),ERDF GRANTS SUNDRY,11/06/2021,1845
"Housing, Employment & Infrastructure",Inward Investment & Business Support,Supplies & Services,Other Grants (Expenses),ERDF GRANTS SUNDRY,11/06/2021,1500
"Housing, Employment & Infrastructure",Inward Investment & Business Support,Supplies & Services,Other Grants (Expenses),ERDF GRANTS SUNDRY,11/06/2021,2635.71
"Housing, Employment & Infrastructure",Inward Investment & Business Support,Supplies & Services,Other Grants (Expenses),ERDF GRANTS SUNDRY,11/06/2021,2880
"Housing, Employment & Infrastructure",Inward Investment & Business Support,Supplies & Services,Other Grants (Expenses),ERDF GRANTS SUNDRY,11/06/2021,3000
"Housing, Employment & Infrastructure",Local Plan,Supplies & Services,Research Surveys,ATKINS LIMITED,07/06/2021,30445
"Housing, Employment & Infrastructure",Private Sector Housing & Enforcement,Premises-Related Expenditure,R&M -Buildings DLO Charge,Cavetto Building Consultancy,01/06/2021,350
"Housing, Employment & Infrastructure",Private Sector Housing & Enforcement,Supplies & Services,Consultancy,The Oyster Partnership Ltd,01/06/2021,1155
"Housing, Employment & Infrastructure",Private Sector Housing & Enforcement,Supplies & Services,Consultancy,The Oyster Partnership Ltd,01/06/2021,1155
"Housing, Employment & Infrastructure",Private Sector Housing & Enforcement,Supplies & Services,Consultancy,The Oyster Partnership Ltd,01/06/2021,940.5
"Housing, Employment & Infrastructure",Private Sector Housing & Enforcement,Supplies & Services,Consultancy,The Oyster Partnership Ltd,14/06/2021,1080
"Housing, Employment & Infrastructure",Private Sector Housing & Enforcement,Supplies & Services,Consultancy,The Oyster Partnership Ltd,14/06/2021,1155
"Housing, Employment & Infrastructure",Private Sector Housing & Enforcement,Supplies & Services,Consultancy,The Oyster Partnership Ltd,28/06/2021,1080
"Housing, Employment & Infrastructure",Private Sector Housing & Enforcement,Supplies & Services,Consultancy,The Oyster Partnership Ltd,28/06/2021,952
"Housing, Employment & Infrastructure",Private Sector Housing & Enforcement,Supplies & Services,Consultancy,The Oyster Partnership Ltd,28/06/2021,924
"Housing, Employment & Infrastructure",Private Sector Housing & Enforcement,Supplies & Services,Consultancy,The Oyster Partnership Ltd,01/06/2021,1155
"Housing, Employment & Infrastructure",Private Sector Housing & Enforcement,Supplies & Services,Consultancy,The Oyster Partnership Ltd,01/06/2021,709.5
"Housing, Employment & Infrastructure",Private Sector Housing & Enforcement,Supplies & Services,Consultancy,The Oyster Partnership Ltd,01/06/2021,231
"Housing, Employment & Infrastructure",Private Sector Housing & Enforcement,Supplies & Services,Consultancy,The Oyster Partnership Ltd,14/06/2021,1155
"Housing, Employment & Infrastructure",Private Sector Housing & Enforcement,Supplies & Services,Consultancy,The Oyster Partnership Ltd,14/06/2021,1155
"Housing, Employment & Infrastructure",Private Sector Housing & Enforcement,Supplies & Services,Consultancy,The Oyster Partnership Ltd,14/06/2021,1155
Neighbourhood & Enforcement Services,Highways and Network Management,Capital Expenditure,External Professional Fees,Dynniq UK Limited,21/06/2021,568
Neighbourhood & Enforcement Services,Highways and Network Management,Capital Expenditure,External Professional Fees,Dynniq UK Limited,28/06/2021,3786.71
Neighbourhood & Enforcement Services,Highways and Network Management,Capital Expenditure,External Professional Fees,A C Solicitors LLP,14/06/2021,3156
Neighbourhood & Enforcement Services,Highways and Network Management,Capital Expenditure,External Professional Fees,Amey OW Ltd,03/06/2021,35719.56
Neighbourhood & Enforcement Services,Highways and Network Management,Capital Expenditure,Marketing / Advertising,THE MIDLAND NEWS ASSOCIATION LTD,03/06/2021,110.88
Neighbourhood & Enforcement Services,Highways and Network Management,Capital Expenditure,Payments to Contractor,MCPHILLIPS (WELLINGTON) LTD,28/06/2021,12529.55
Neighbourhood & Enforcement Services,Highways and Network Management,Capital Expenditure,Payments to Contractor,MSM Hire Ltd,30/06/2021,287.02
Neighbourhood & Enforcement Services,Highways and Network Management,Capital Expenditure,Payments to Contractor,UNICORN URBAN,11/06/2021,8856
Neighbourhood & Enforcement Services,Highways and Network Management,Capital Expenditure,"Plant, Machinery & equipment",MAIN MAN SUPPLIES LTD,30/06/2021,132.99
Neighbourhood & Enforcement Services,Highways and Network Management,Capital Expenditure,"Plant, Machinery & equipment",DMC Products and Marketing,30/06/2021,269.76
Neighbourhood & Enforcement Services,Highways and Network Management,Capital Expenditure,"Plant, Machinery & equipment",DMC Products and Marketing,30/06/2021,9179.52
Neighbourhood & Enforcement Services,Highways and Network Management,Premises-Related Expenditure,Electricity,West Mercia Energy (WME),25/06/2021,255.01
Neighbourhood & Enforcement Services,Highways and Network Management,Premises-Related Expenditure,R&M -Buildings DLO Charge,VIATEC UK LTD,15/06/2021,518
Neighbourhood & Enforcement Services,Highways and Network Management,Supplies & Services,Comp Software (Purch / Hire),RCIS LTD,14/06/2021,600
Neighbourhood & Enforcement Services,Highways and Network Management,Supplies & Services,Computer Software (Maint),MetDesk Limited,04/06/2021,550
Neighbourhood & Enforcement Services,Highways and Network Management,Supplies & Services,Consultancy,Power Data Associates Ltd,02/06/2021,6700
Neighbourhood & Enforcement Services,Highways and Network Management,Supplies & Services,Consultancy,W Aspen,14/06/2021,6233.52
Neighbourhood & Enforcement Services,Highways and Network Management,Supplies & Services,Consultancy,W Aspen,14/06/2021,2492.16
Neighbourhood & Enforcement Services,Highways and Network Management,Supplies & Services,Consultancy,W Aspen,14/06/2021,2851.55
Neighbourhood & Enforcement Services,Highways and Network Management,Supplies & Services,Consultancy,W Aspen,14/06/2021,3195.72
Neighbourhood & Enforcement Services,Highways and Network Management,Supplies & Services,Consultancy,W Aspen,14/06/2021,1260
Neighbourhood & Enforcement Services,Highways and Network Management,Supplies & Services,Consultancy,W Aspen,14/06/2021,5419.52
Neighbourhood & Enforcement Services,Highways and Network Management,Supplies & Services,Consultancy,W Aspen,14/06/2021,6668.24
Neighbourhood & Enforcement Services,Highways and Network Management,Supplies & Services,Consultancy,W Aspen,14/06/2021,2839.68
Neighbourhood & Enforcement Services,Highways and Network Management,Supplies & Services,Consultancy,W Aspen,14/06/2021,1448.32
Neighbourhood & Enforcement Services,Highways and Network Management,Supplies & Services,Consultancy,W Aspen,14/06/2021,2258.56
Neighbourhood & Enforcement Services,Highways and Network Management,Supplies & Services,Consultancy,W Aspen,14/06/2021,4671.6
Neighbourhood & Enforcement Services,Highways and Network Management,Supplies & Services,Consultancy,W Aspen,14/06/2021,965.25
Neighbourhood & Enforcement Services,Highways and Network Management,Supplies & Services,Consultancy,W Aspen,14/06/2021,5929.26
Neighbourhood & Enforcement Services,Highways and Network Management,Supplies & Services,Consultancy,W Aspen,14/06/2021,2574.33
Neighbourhood & Enforcement Services,Highways and Network Management,Supplies & Services,Consultancy,W Aspen,14/06/2021,145.33
Neighbourhood & Enforcement Services,Highways and Network Management,Supplies & Services,Consultancy,W Aspen,14/06/2021,5813
Neighbourhood & Enforcement Services,Highways and Network Management,Supplies & Services,Equipment - Hire,STANFORD MARSH FINANCE LTD,28/06/2021,277.48
Neighbourhood & Enforcement Services,Highways and Network Management,Supplies & Services,Fees,Hydro-Logic Services (International) Ltd,24/06/2021,-8820
Neighbourhood & Enforcement Services,Highways and Network Management,Supplies & Services,Other Expenses,A HAND SERVICES (Dyno Rod) LTD,29/06/2021,1120
Neighbourhood & Enforcement Services,Highways and Network Management,Supplies & Services,Other Services,ENVIRONMENT AGENCY,14/06/2021,15915.82
Neighbourhood & Enforcement Services,Highways and Network Management,Supplies & Services,Other Services,ENVIRONMENT AGENCY,14/06/2021,15915.82
Neighbourhood & Enforcement Services,Highways and Network Management,Supplies & Services,Other Services,GROUND INVESTIGATION & PILING LTD,28/06/2021,9659.41
Neighbourhood & Enforcement Services,Highways and Network Management,Supplies & Services,Other Services,GROUND INVESTIGATION & PILING LTD,28/06/2021,9963.4
Neighbourhood & Enforcement Services,Highways and Network Management,Supplies & Services,Other Services,B JLLP,28/06/2021,9242.5
Neighbourhood & Enforcement Services,Highways and Network Management,Supplies & Services,Other Services,MetDesk Limited,08/06/2021,7500
Neighbourhood & Enforcement Services,Highways and Network Management,Supplies & Services,Other Services,MSM Hire Ltd,15/06/2021,80000
Neighbourhood & Enforcement Services,Highways and Network Management,Supplies & Services,Other Services,MSM Hire Ltd,02/06/2021,100000
Neighbourhood & Enforcement Services,Highways and Network Management,Supplies & Services,Other Services,Quantum Traffic Management (Northern),03/06/2021,2155
Neighbourhood & Enforcement Services,Highways and Network Management,Third Party Payments,Contractor Recharge,PRYSMIAN CABLES & SYSTEMS LTD,28/06/2021,259643.14
Neighbourhood & Enforcement Services,Highways and Network Management,Third Party Payments,Highways Contract - BBLP,Balfour Beatty Civils Limited,15/06/2021,816106.08
Neighbourhood & Enforcement Services,Neighbourhood & Enforcement Services,Premises-Related Expenditure,Leasehold Rents,GPS Property Shropshire LLP,15/06/2021,600
Neighbourhood & Enforcement Services,Neighbourhood & Enforcement Services,Premises-Related Expenditure,Leasehold Rents,GPS Property Shropshire LLP,14/06/2021,650
Neighbourhood & Enforcement Services,Neighbourhood & Enforcement Services,Premises-Related Expenditure,Leasehold Rents,WREKIN HOUSING TRUST,01/06/2021,158.18
Neighbourhood & Enforcement Services,Neighbourhood & Enforcement Services,Premises-Related Expenditure,Leasehold Rents,Northwood (Hereford) Ltd,21/06/2021,610
Neighbourhood & Enforcement Services,Neighbourhood & Enforcement Services,Premises-Related Expenditure,R&M -Buildings DLO Charge,SECURITY WISE LTD,21/06/2021,190
Neighbourhood & Enforcement Services,Neighbourhood & Environmental Services,Premises-Related Expenditure,Grounds Maintenance,SMITH OF DERBY LTD,08/06/2021,214
Neighbourhood & Enforcement Services,Neighbourhood & Environmental Services,Supplies & Services,Asbestos Waste,WELLINGTON INSULATION CO. LTD,08/06/2021,250
Neighbourhood & Enforcement Services,Neighbourhood & Environmental Services,Supplies & Services,Asbestos Waste,WELLINGTON INSULATION CO. LTD,18/06/2021,350
Neighbourhood & Enforcement Services,Neighbourhood & Environmental Services,Supplies & Services,Conference Expenses,APSE (MANCHESTER),29/06/2021,297
Neighbourhood & Enforcement Services,Neighbourhood & Environmental Services,Supplies & Services,Mobile Phones,EE LTD EQUIPMENT,01/06/2021,273
Neighbourhood & Enforcement Services,Neighbourhood & Environmental Services,Supplies & Services,Other Materials,R T Limited,22/06/2021,-200
Neighbourhood & Enforcement Services,Neighbourhood & Environmental Services,Supplies & Services,Other Materials,R T Limited,22/06/2021,185.75
Neighbourhood & Enforcement Services,Neighbourhood & Environmental Services,Supplies & Services,Other Services,HILBRAE PETS HOTEL,09/06/2021,1295.89
Neighbourhood & Enforcement Services,Neighbourhood & Environmental Services,Supplies & Services,Other Services,HILBRAE PETS HOTEL,09/06/2021,-425
Neighbourhood & Enforcement Services,Neighbourhood & Environmental Services,Supplies & Services,Play development,G B Sport & Leisure,15/06/2021,530
Neighbourhood & Enforcement Services,Neighbourhood & Environmental Services,Supplies & Services,Sport Equip - Purchase,Full Circle Leisure Ltd,25/06/2021,975
Neighbourhood & Enforcement Services,Neighbourhood & Environmental Services,Supplies & Services,Sport Equip - Purchase,Full Circle Leisure Ltd,25/06/2021,116.1
Neighbourhood & Enforcement Services,Neighbourhood & Environmental Services,Supplies & Services,Sport Equip - Purchase,Full Circle Leisure Ltd,25/06/2021,295
Neighbourhood & Enforcement Services,Neighbourhood & Environmental Services,Supplies & Services,Stationery,SIGNS EXPRESS (TELFORD),07/06/2021,210.56
Neighbourhood & Enforcement Services,Public Protection,Employees,Cont Prof Development,INSTITUTE OF LICENSING LTD (EVENTS),29/06/2021,950
Neighbourhood & Enforcement Services,Public Protection,Employees,Cont Prof Development,INSTITUTE OF LICENSING LTD (EVENTS),29/06/2021,950
Neighbourhood & Enforcement Services,Public Protection,Premises-Related Expenditure,Preventative Maintenance,METRIC GROUP LTD,04/06/2021,2093.85
Neighbourhood & Enforcement Services,Public Protection,Supplies & Services,Chemicals/Cleaning Products,THE CLEAN MACHINE DIRECT LTD,17/06/2021,201.19
Neighbourhood & Enforcement Services,Public Protection,Supplies & Services,Consultancy,K Block Consultants,21/06/2021,933.5
Neighbourhood & Enforcement Services,Public Protection,Supplies & Services,Consultancy,Vivid Resourcing,23/06/2021,1629.75
Neighbourhood & Enforcement Services,Public Protection,Supplies & Services,Consultancy,Vivid Resourcing,23/06/2021,1390.6
Neighbourhood & Enforcement Services,Public Protection,Supplies & Services,Consultancy,Vivid Resourcing,23/06/2021,846.56
Neighbourhood & Enforcement Services,Public Protection,Supplies & Services,Consultancy,Vivid Resourcing,23/06/2021,869.44
Neighbourhood & Enforcement Services,Public Protection,Supplies & Services,Consultancy,Vivid Resourcing,23/06/2021,812.7
Neighbourhood & Enforcement Services,Public Protection,Supplies & Services,Consultancy,Vivid Resourcing,23/06/2021,1812.61
Neighbourhood & Enforcement Services,Public Protection,Supplies & Services,Consultancy,Vivid Resourcing,08/06/2021,1665
Neighbourhood & Enforcement Services,Public Protection,Supplies & Services,Consultancy,Vivid Resourcing,03/06/2021,707.5
Neighbourhood & Enforcement Services,Public Protection,Supplies & Services,Consultancy,Vivid Resourcing,23/06/2021,1287.71
Neighbourhood & Enforcement Services,Public Protection,Supplies & Services,Consultancy,Vivid Resourcing,23/06/2021,1020.9
Neighbourhood & Enforcement Services,Public Protection,Supplies & Services,Consultancy,Vivid Resourcing,08/06/2021,1351.04
Neighbourhood & Enforcement Services,Public Protection,Supplies & Services,Consultancy,Vivid Resourcing,08/06/2021,1373.5
Neighbourhood & Enforcement Services,Public Protection,Supplies & Services,Consultancy,Vivid Resourcing,08/06/2021,1615.55
Neighbourhood & Enforcement Services,Public Protection,Supplies & Services,Consultancy,Vivid Resourcing,08/06/2021,1779.45
Neighbourhood & Enforcement Services,Public Protection,Supplies & Services,Consultancy,Vivid Resourcing,23/06/2021,1530
Neighbourhood & Enforcement Services,Public Protection,Supplies & Services,Consultancy,Vivid Resourcing,23/06/2021,823.68
Neighbourhood & Enforcement Services,Public Protection,Supplies & Services,Consultancy,Vivid Resourcing,23/06/2021,1383.75
Neighbourhood & Enforcement Services,Public Protection,Supplies & Services,Consultancy,Vivid Resourcing,23/06/2021,733.69
Neighbourhood & Enforcement Services,Public Protection,Supplies & Services,Consultancy,Vivid Resourcing,23/06/2021,892.32
Neighbourhood & Enforcement Services,Public Protection,Supplies & Services,Consultancy,Vivid Resourcing,23/06/2021,1435.48
Neighbourhood & Enforcement Services,Public Protection,Supplies & Services,Equipment - Purchase,ARCO LIMITED,21/06/2021,229.38
Neighbourhood & Enforcement Services,Public Protection,Supplies & Services,Other Grants (Expenses),WARWICKSHIRE COUNTY COUNCIL,23/06/2021,5441
Neighbourhood & Enforcement Services,Public Protection,Supplies & Services,Other Services,ALS ENVIRONMENTAL LIMITED,23/06/2021,163.81
Neighbourhood & Enforcement Services,Public Protection,Supplies & Services,Other Services,ALS ENVIRONMENTAL LIMITED,02/06/2021,114.47
Neighbourhood & Enforcement Services,Public Protection,Supplies & Services,Sampling & Analysis,Test & Research Centre Ltd,30/06/2021,1662.5
Neighbourhood & Enforcement Services,Public Protection,Supplies & Services,Security Services,SECURITY WISE LTD,29/06/2021,1092
Neighbourhood & Enforcement Services,Public Protection,Supplies & Services,Security Services,SECURITY WISE LTD,29/06/2021,3948.21
Neighbourhood & Enforcement Services,Public Protection,Supplies & Services,Security Services,SECURITY WISE LTD,29/06/2021,1042
Neighbourhood & Enforcement Services,Public Protection,Supplies & Services,Security Services,SECURITY WISE LTD,29/06/2021,17821
Neighbourhood & Enforcement Services,Public Protection,Supplies & Services,Security Services,WREKIN SERVICES LTD,29/06/2021,300
Neighbourhood & Enforcement Services,Public Protection,Supplies & Services,Security Services,WREKIN SERVICES LTD,29/06/2021,600
Neighbourhood & Enforcement Services,Public Protection,Supplies & Services,Security Services,Osborne Richardson Ltd,07/06/2021,3941.7
Neighbourhood & Enforcement Services,Public Protection,Supplies & Services,Security Services,Osborne Richardson Ltd,07/06/2021,4528.5
Neighbourhood & Enforcement Services,Public Protection,Supplies & Services,Security Services,The Oyster Partnership Ltd,03/06/2021,1665
Neighbourhood & Enforcement Services,Public Protection,Supplies & Services,Subscriptions,TAMESIDE MBC,01/06/2021,400
Neighbourhood & Enforcement Services,Public Protection,Third Party Payments,External Contractor's - Machines,METRIC GROUP LTD,29/06/2021,389
Neighbourhood & Enforcement Services,Strategic Transport,Capital Expenditure,Engineers Fees,Waterman Aspen,10/06/2021,2265.92
Neighbourhood & Enforcement Services,Strategic Transport,Capital Expenditure,Marketing / Advertising,THE MIDLAND NEWS ASSOCIATION LTD,14/06/2021,166.32
Neighbourhood & Enforcement Services,Strategic Transport,Capital Expenditure,Payments to Contractor,Nationwide Data Collection,02/06/2021,380
Neighbourhood & Enforcement Services,Strategic Transport,Capital Expenditure,Payments to Contractor,Nationwide Data Collection,02/06/2021,570
Neighbourhood & Enforcement Services,Strategic Transport,Capital Expenditure,Payments to Contractor,Nationwide Data Collection,02/06/2021,570
Neighbourhood & Enforcement Services,Strategic Transport,Capital Expenditure,Payments to Contractor,Nationwide Data Collection,02/06/2021,570
Neighbourhood & Enforcement Services,Strategic Transport,Capital Expenditure,Payments to Contractor,Nationwide Data Collection,02/06/2021,1330
Neighbourhood & Enforcement Services,Strategic Transport,Capital Expenditure,Payments to Contractor,Nationwide Data Collection,09/06/2021,570
Neighbourhood & Enforcement Services,Strategic Transport,Capital Expenditure,Payments to Contractor,Dynniq UK Limited,17/06/2021,768.5
Neighbourhood & Enforcement Services,Strategic Transport,Capital Expenditure,Payments to Contractor,Amey OW Ltd,29/06/2021,6707.22
Neighbourhood & Enforcement Services,Strategic Transport,Capital Expenditure,Payments to Contractor,Amey OW Ltd,18/06/2021,973.73
Neighbourhood & Enforcement Services,Strategic Transport,Capital Expenditure,Payments to Contractor,Amey OW Ltd,18/06/2021,13064.12
Neighbourhood & Enforcement Services,Strategic Transport,Supplies & Services,Advertising,THE MIDLAND NEWS ASSOCIATION LTD,18/06/2021,277.2
Neighbourhood & Enforcement Services,Strategic Transport,Supplies & Services,Comp Hardware (Purch / Hire),CF CORPORATE FINANCE LTD,29/06/2021,140
Neighbourhood & Enforcement Services,Strategic Transport,Supplies & Services,Comp Hardware (Purch / Hire),One.network,29/06/2021,12701.42
Neighbourhood & Enforcement Services,Strategic Transport,Supplies & Services,Computer Software (Maint),Unicard Ltd,10/06/2021,906.3
Neighbourhood & Enforcement Services,Strategic Transport,Supplies & Services,Concessionary Travel,ARRIVA MIDLANDS LTD,15/06/2021,60073.1
Neighbourhood & Enforcement Services,Strategic Transport,Supplies & Services,Concessionary Travel,ARRIVA MIDLANDS LTD,15/06/2021,80710.41
Neighbourhood & Enforcement Services,Strategic Transport,Supplies & Services,Concessionary Travel,ARRIVA MIDLANDS LTD,02/06/2021,46058.42
Neighbourhood & Enforcement Services,Strategic Transport,Supplies & Services,Concessionary Travel,ARRIVA MIDLANDS LTD,02/06/2021,101356.27
Neighbourhood & Enforcement Services,Strategic Transport,Supplies & Services,Consultancy,W Aspen,15/06/2021,4799.44
Neighbourhood & Enforcement Services,Strategic Transport,Supplies & Services,Consultancy,W Aspen,10/06/2021,5081.76
Neighbourhood & Enforcement Services,Strategic Transport,Supplies & Services,Consultancy,W Aspen,14/06/2021,3424.35
Neighbourhood & Enforcement Services,Strategic Transport,Supplies & Services,Equipment - Purchase,DAYS RENTAL,30/06/2021,155.76
Neighbourhood & Enforcement Services,Strategic Transport,Supplies & Services,Instructors Fees,SOLIHULL METROPOLITAN BOROUGH COUNCIL,10/06/2021,550
Neighbourhood & Enforcement Services,Strategic Transport,Supplies & Services,Other Services,WEST MIDLANDS COMBINED AUTHORITY,18/06/2021,2599.04
Neighbourhood & Enforcement Services,Strategic Transport,Transport-Related Expenditure,Fuel,ALLSTAR BUSINESS SOLUTIONS LTD,16/06/2021,5457.45
Neighbourhood & Enforcement Services,Strategic Transport,Transport-Related Expenditure,Fuel,ALLSTAR BUSINESS SOLUTIONS LTD,25/06/2021,3847.41
Neighbourhood & Enforcement Services,Strategic Transport,Transport-Related Expenditure,Intra Committee - Transport,DAYS RENTAL,28/06/2021,203
Neighbourhood & Enforcement Services,Strategic Transport,Transport-Related Expenditure,Intra Committee - Transport,DAYS RENTAL,28/06/2021,293.44
Neighbourhood & Enforcement Services,Strategic Transport,Transport-Related Expenditure,Intra Committee - Transport,DAYS RENTAL,28/06/2021,196
Neighbourhood & Enforcement Services,Strategic Transport,Transport-Related Expenditure,Intra Committee - Transport,DAYS RENTAL,28/06/2021,201.88
Neighbourhood & Enforcement Services,Strategic Transport,Transport-Related Expenditure,Intra Committee - Transport,DAYS RENTAL,28/06/2021,207.48
Neighbourhood & Enforcement Services,Strategic Transport,Transport-Related Expenditure,Intra Committee - Transport,DAYS RENTAL,28/06/2021,207.48
